Workbook

Sheet 40104
A1: م | B1: DATE التاريخ | C1: NO TRUCK رقم السيارة | D1: NO TICKET رقم الفاتورة | E1: DESTINATION الموقع | F1: CRUCHER الكسارة | G1: MATERIAL المادة | H1: NETWET الوزن | I1: RATE سعر الطن | J1: TOTAL الاجمالى | K1: FUJ ت/فجيرة | L1: SAEEDY ت/ساعدي | M1: DHAID ت/الذيد | N1: ZUBAIR ت/الزبير | O1: ALGHAIL ت/الغيل | P1: KADRAA ت/كدرة | Q1: DIESEL الديزل | R1: SALARY الراتب | S1: NAME DRIVER اسم السائق | T1: NOTICE ملاحظات
A2: =IF(B2="","",MAX($A$1:A1)+1) -> 1 | B2: 2019-03-01 | C2: 40104 | D2: 141337 | E2: MUSSAFAH | F2: AL FUTTAIM | G2: Road base | H2: 78.14 | I2: =IF(B2="","",(IF(AND(F2="RIDI SIDI"),"16.65",IF(AND(F2="CENTRAL",E2="DUBAI"),"19",IF(AND(F2="CENTRAL",E2="JEBEL ALI"),"21",IF(AND(F2="AL RAWASI"),"16.65",IF(AND(F2="AL NAKHEEL"),"16.65",IF(AND(F2="WB"),"22.60",IF(AND(F2="AL BARRAK",E2="DUCON"),"21.97",IF(AND(F2="AL KAWTHER",E2="DUCON"),"21.97",IF(AND(F2="AL KAWTHER"),"22.5",IF(AND(F2="AL FUTTAIM",E2="JEBEL ALI"),"8.75",IF(AND(F2="AL FUTTAIM",E2="MAFRAQ"),"16",IF(AND(F2="AL FUTTAIM",E2="AL QUOZ"),"7.70",IF(AND(F2="AL FUTTAIM",E2="MUSSAFAH"),"16.90",IF(AND(F2="AL FUTTAIM",E2="NAD AL SHEBA"),"8.50",IF(AND(F2="AL FUTTAIM",E2="MAHAWI"),"16.90",IF(AND(F2="AL RAWDA",E2="MADAM"),"24.50",)))))))))))))))))*1) -> 16.9 | J2: =IF(B2="","",I2*H2) -> 1320.566 | M2: 420.5 | P2: 550 | Q2: 0 | R2: 180 | S2: رانا (جاسويندر) | T2: =IF(OR(R2=100,R2=115),"National","") -> 
A3: =IF(B3="","",MAX($A$1:A2)+1) -> 2 | B3: 2019-03-02 | C3: 40104 | D3: 141396 | E3: AL QUOZ | F3: AL FUTTAIM | G3: Road base | H3: 79.54 | I3: =IF(B3="","",(IF(AND(F3="RIDI SIDI"),"16.65",IF(AND(F3="CENTRAL",E3="DUBAI"),"19",IF(AND(F3="CENTRAL",E3="JEBEL ALI"),"21",IF(AND(F3="AL RAWASI"),"16.65",IF(AND(F3="AL NAKHEEL"),"16.65",IF(AND(F3="WB"),"22.60",IF(AND(F3="AL BARRAK",E3="DUCON"),"21.97",IF(AND(F3="AL KAWTHER",E3="DUCON"),"21.97",IF(AND(F3="AL KAWTHER"),"22.5",IF(AND(F3="AL FUTTAIM",E3="JEBEL ALI"),"8.75",IF(AND(F3="AL FUTTAIM",E3="MAFRAQ"),"16",IF(AND(F3="AL FUTTAIM",E3="AL QUOZ"),"7.70",IF(AND(F3="AL FUTTAIM",E3="MUSSAFAH"),"16.90",IF(AND(F3="AL FUTTAIM",E3="NAD AL SHEBA"),"8.50",IF(AND(F3="AL FUTTAIM",E3="MAHAWI"),"16.90",IF(AND(F3="AL RAWDA",E3="MADAM"),"24.50",)))))))))))))))))*1) -> 7.7 | J3: 612.458 | M3: 420.5 | P3: 550 | Q3: 0 | R3: 70 | S3: رانا (جاسويندر)
A4: =IF(B4="","",MAX($A$1:A3)+1) -> 3 | B4: 2019-03-03 | C4: 40104 | D4: 2213818 | E4: Cement Factory | F4: AL RAWASI | G4: Road base | H4: 79.58 | I4: 16.65 | J4: 1325.007 | L4: 300 | M4: 420.5 | Q4: 0 | R4: 75 | S4: رانا (جاسويندر)
A5: =IF(B5="","",MAX($A$1:A4)+1) -> 4 | B5: 2019-03-03 | C5: 40104 | D5: 141521 | E5: JEBEL ALI | F5: AL FUTTAIM | G5: Road base | H5: 78.52 | I5: 8.75 | J5: 687.05 | M5: 420.5 | P5: 550 | Q5: 0 | R5: 80 | S5: رانا (جاسويندر)
A6: =IF(B6="","",MAX($A$1:A5)+1) -> 5 | B6: 2019-03-03 | C6: 40104 | D6: 141437 | E6: MUSSAFAH | F6: AL FUTTAIM | G6: Road base | H6: 78.28 | I6: 16.9 | J6: 1322.932 | M6: 420.5 | P6: 550 | Q6: 0 | R6: 180 | S6: رانا (جاسويندر)
A7: =IF(B7="","",MAX($A$1:A6)+1) -> 6 | B7: 2019-03-04 | C7: 40104 | D7: 141564 | E7: AL QUOZ | F7: AL FUTTAIM | G7: Road base | H7: 79.56 | I7: 7.7 | J7: 612.612 | M7: 420.5 | P7: 550 | Q7: 0 | R7: 70 | S7: رانا (جاسويندر)
A8: =IF(B8="","",MAX($A$1:A7)+1) -> 7 | B8: 2019-03-04 | C8: 40104 | D8: 141611 | E8: JEBEL ALI | F8: AL RAWASI | G8: Road base | H8: 78.72 | I8: 16.65 | J8: 1310.688 | M8: 420.5 | P8: 550 | Q8: 0 | R8: 80 | S8: رانا (جاسويندر)
A9: =IF(B9="","",MAX($A$1:A8)+1) -> 8 | B9: 2019-03-05 | C9: 40104 | D9: 141658 | E9: MAFRAQ | F9: AL FUTTAIM | G9: Road base | H9: 76.54 | I9: 16 | J9: 1224.64 | M9: 420.5 | P9: 550 | Q9: 0 | R9: 160 | S9: رانا (جاسويندر)
A10: =IF(B10="","",MAX($A$1:A9)+1) -> 9 | B10: 2019-03-06 | C10: 40104 | D10: 2214141 | E10: Cement Factory | F10: AL RAWASI | G10: Road base | H10: 83.58 | I10: 16.65 | J10: 1391.607 | L10: 300 | Q10: 0 | R10: 100 | S10: رانا (جاسويندر) | T10: National
A11: =IF(B11="","",MAX($A$1:A10)+1) -> 10 | B11: 2019-03-06 | C11: 40104 | D11: 2214280 | E11: Cement Factory | F11: AL RAWASI | G11: Road base | H11: 78.76 | I11: 16.65 | J11: 1311.354 | L11: 300 | M11: 420.5 | Q11: 0 | R11: 75 | S11: رانا (جاسويندر)
A12: =IF(B12="","",MAX($A$1:A11)+1) -> 11 | B12: 2019-03-06 | C12: 40104 | D12: 2214214 | E12: Cement Factory | F12: AL RAWASI | G12: Road base | H12: 81.24 | I12: 16.65 | J12: 1352.646 | L12: 300 | M12: 420.5 | Q12: 0 | R12: 75 | S12: رانا (جاسويندر)
A13: =IF(B13="","",MAX($A$1:A12)+1) -> 12 | B13: 2019-03-07 | C13: 40104 | D13: 2214314 | E13: Cement Factory | F13: AL RAWASI | G13: Road base | H13: 86.42 | I13: 16.65 | J13: 1438.893 | L13: 300 | Q13: 0 | R13: 100 | S13: رانا (جاسويندر) | T13: National
A14: =IF(B14="","",MAX($A$1:A13)+1) -> 13 | B14: 2019-03-07 | C14: 40104 | D14: 2214461 | E14: Cement Factory | F14: AL RAWASI | G14: Road base | H14: 80.42 | I14: 16.65 | J14: 1338.993 | L14: 300 | M14: 420.5 | Q14: 0 | R14: 75 | S14: رانا (جاسويندر)
A15: =IF(B15="","",MAX($A$1:A14)+1) -> 14 | B15: 2019-03-07 | C15: 40104 | D15: 141845 | E15: JEBEL ALI | F15: AL FUTTAIM | G15: Road base | H15: 77.66 | I15: 8.75 | J15: 679.525 | M15: 420.5 | P15: 550 | Q15: 0 | R15: 80 | S15: رانا (جاسويندر)
A16: =IF(B16="","",MAX($A$1:A15)+1) -> 15 | B16: 2019-03-08 | C16: 40104 | D16: 2214611 | E16: Cement Factory | F16: AL RAWASI | G16: Road base | H16: 84 | I16: 16.65 | J16: 1398.6 | L16: 300 | Q16: 0 | R16: 100 | S16: رانا (جاسويندر) | T16: National
A17: =IF(B17="","",MAX($A$1:A16)+1) -> 16 | B17: 2019-03-08 | C17: 40104 | D17: 2214848 | E17: Cement Factory | F17: AL RAWASI | G17: Road base | H17: 89.6 | I17: 16.65 | J17: 1491.84 | L17: 300 | M17: 420.5 | Q17: 0 | R17: 75 | S17: رانا (جاسويندر)
A18: =IF(B18="","",MAX($A$1:A17)+1) -> 17 | B18: 2019-03-08 | C18: 40104 | D18: 2214775 | E18: Cement Factory | F18: AL RAWASI | G18: Road base | H18: 74.64 | I18: 16.65 | J18: 1242.756 | L18: 300 | M18: 420.5 | Q18: 0 | R18: 75 | S18: رانا (جاسويندر)
A19: =IF(B19="","",MAX($A$1:A18)+1) -> 18 | B19: 2019-03-09 | C19: 40104 | D19: 2214914 | E19: Cement Factory | F19: AL RAWASI | G19: Road base | H19: 84.62 | I19: 16.65 | J19: 1408.923 | L19: 300 | Q19: 0 | R19: 100 | S19: رانا (جاسويندر) | T19: National
A20: =IF(B20="","",MAX($A$1:A19)+1) -> 19 | B20: 2019-03-09 | C20: 40104 | D20: 2215117 | E20: Cement Factory | F20: AL RAWASI | G20: Road base | H20: 80.76 | I20: 16.65 | J20: 1344.654 | L20: 300 | M20: 420.5 | Q20: 0 | R20: 75 | S20: رانا (جاسويندر)
A21: =IF(B21="","",MAX($A$1:A20)+1) -> 20 | B21: 2019-03-09 | C21: 40104 | D21: 2215049 | E21: Cement Factory | F21: AL RAWASI | G21: Road base | H21: 87.8 | I21: 16.65 | J21: 1461.87 | L21: 300 | M21: 420.5 | Q21: 0 | R21: 75 | S21: رانا (جاسويندر)
A22: =IF(B22="","",MAX($A$1:A21)+1) -> 21 | B22: 2019-03-10 | C22: 40104 | D22: 2215149 | E22: Cement Factory | F22: AL RAWASI | G22: Road base | H22: 81.84 | I22: 16.65 | J22: 1362.636 | L22: 300 | Q22: 0 | R22: 100 | S22: رانا (جاسويندر) | T22: National
A23: =IF(B23="","",MAX($A$1:A22)+1) -> 22 | B23: 2019-03-10 | C23: 40104 | D23: 142192 | E23: AL QUOZ | F23: AL FUTTAIM | G23: Road base | H23: 78.3 | I23: 7.7 | J23: 602.91 | M23: 420.5 | P23: 550 | Q23: 0 | R23: 70 | S23: رانا (جاسويندر)
A24: =IF(B24="","",MAX($A$1:A23)+1) -> 23 | B24: 2019-03-11 | C24: 40104 | D24: 2215276 | E24: Cement Factory | F24: AL RAWASI | G24: Road base | H24: 75.52 | I24: 16.65 | J24: 1257.408 | L24: 300 | Q24: 0 | R24: 100 | S24: رانا (جاسويندر) | T24: National
A25: =IF(B25="","",MAX($A$1:A24)+1) -> 24 | B25: 2019-03-11 | C25: 40104 | D25: 901370 | E25: DUCON | F25: AL BARRAK | G25: Road base | H25: 76.82 | I25: 21.97 | J25: 1687.7354 | K25: 540 | M25: 420.5 | Q25: 0 | R25: 90 | S25: رانا (جاسويندر)
A26: =IF(B26="","",MAX($A$1:A25)+1) -> 25 | B26: 2019-03-12 | C26: 40104 | D26: 2215474 | E26: Cement Factory | F26: AL RAWASI | G26: Road base | H26: 81.52 | I26: 16.65 | J26: 1357.308 | L26: 300 | Q26: 0 | R26: 100 | S26: رانا (جاسويندر) | T26: National
A27: =IF(B27="","",MAX($A$1:A26)+1) -> 26 | B27: 2019-03-12 | C27: 40104 | D27: 901558 | E27: DUCON | F27: AL BARRAK | G27: Road base | H27: 83.56 | I27: 21.97 | J27: 1835.8132 | K27: 590 | M27: 420.5 | Q27: 0 | R27: 80 | S27: رانا (جاسويندر)
A28: =IF(B28="","",MAX($A$1:A27)+1) -> 27 | B28: 2019-03-13 | C28: 40104 | D28: 2217647 | E28: Cement Factory | F28: AL RAWASI | G28: Road base | H28: 83.58 | I28: 16.65 | J28: 1391.607 | L28: 300 | Q28: 0 | R28: 100 | S28: رانا (جاسويندر) | T28: National
A29: =IF(B29="","",MAX($A$1:A28)+1) -> 28 | B29: 2019-03-13 | C29: 40104 | D29: 142555 | E29: AL QUOZ | F29: AL FUTTAIM | G29: Road base | H29: 75.74 | I29: 7.7 | J29: 583.198 | M29: 420.5 | P29: 550 | Q29: 0 | R29: 70 | S29: رانا (جاسويندر)
A30: =IF(B30="","",MAX($A$1:A29)+1) -> 29 | B30: 2019-03-13 | C30: 40104 | D30: 901920 | E30: DUCON | F30: AL BARRAK | G30: Road base | H30: 74.3 | I30: 21.97 | J30: 1632.371 | K30: 520 | M30: 420.5 | Q30: 0 | R30: 80 | S30: رانا (جاسويندر)
A31: =IF(B31="","",MAX($A$1:A30)+1) -> 30 | B31: 2019-03-14 | C31: 40104 | D31: 2215628 | E31: Cement Factory | F31: AL RAWASI | G31: Road base | H31: 80.96 | I31: 16.65 | J31: 1347.984 | L31: 300 | M31: 420.5 | Q31: 0 | R31: 75 | S31: رانا (جاسويندر)
A32: =IF(B32="","",MAX($A$1:A31)+1) -> 31 | B32: 2019-03-15 | C32: 40104 | D32: 2215716 | E32: Cement Factory | F32: AL RAWASI | G32: Road base | H32: 86 | I32: 16.65 | J32: 1431.9 | L32: 300 | Q32: 0 | R32: 100 | S32: رانا (جاسويندر) | T32: National
A33: =IF(B33="","",MAX($A$1:A32)+1) -> 32 | B33: 2019-03-15 | C33: 40104 | D33: 2215938 | E33: Cement Factory | F33: AL RAWASI | G33: Road base | H33: 85.74 | I33: 16.65 | J33: 1427.571 | L33: 300 | M33: 420.5 | Q33: 0 | R33: 75 | S33: رانا (جاسويندر)
A34: =IF(B34="","",MAX($A$1:A33)+1) -> 33 | B34: 2019-03-15 | C34: 40104 | D34: 142810 | E34: AL QUOZ | F34: AL FUTTAIM | G34: Road base | H34: 79.54 | I34: =IF(B34="","",(IF(AND(F34="RIDI SIDI"),"16.65",IF(AND(F34="CENTRAL",E34="DUBAI"),"19",IF(AND(F34="CENTRAL",E34="JEBEL ALI"),"21",IF(AND(F34="AL RAWASI"),"16.65",IF(AND(F34="AL NAKHEEL"),"16.65",IF(AND(F34="WB"),"22.60",IF(AND(F34="AL BARRAK",E34="DUCON"),"21.97",IF(AND(F34="AL KAWTHER",E34="DUCON"),"21.97",IF(AND(F34="AL KAWTHER"),"22.5",IF(AND(F34="AL FUTTAIM",E34="JEBEL ALI"),"8.75",IF(AND(F34="AL FUTTAIM",E34="MAFRAQ"),"16",IF(AND(F34="AL FUTTAIM",E34="AL QUOZ"),"7.70",IF(AND(F34="AL FUTTAIM",E34="MUSSAFAH"),"16.90",IF(AND(F34="AL FUTTAIM",E34="NAD AL SHEBA"),"8.50",IF(AND(F34="AL FUTTAIM",E34="MAHAWI"),"16.90",IF(AND(F34="AL RAWDA",E34="MADAM"),"24.50",)))))))))))))))))*1) -> 7.7 | J34: =IF(B34="","",I34*H34) -> 612.458 | M34: 420.5 | P34: 550 | Q34: 0 | R34: 70 | S34: رانا (جاسويندر)
A35: =IF(B35="","",MAX($A$1:A34)+1) -> 34 | B35: 2019-03-16 | C35: 40104 | D35: 2216017 | E35: Cement Factory | F35: AL RAWASI | G35: Road base | H35: 81.5 | I35: 16.65 | J35: 1356.975 | L35: 300 | Q35: 0 | R35: 100 | S35: رانا (جاسويندر) | T35: National
A36: =IF(B36="","",MAX($A$1:A35)+1) -> 35 | B36: 2019-03-16 | C36: 40104 | D36: 142881 | E36: AL QUOZ | F36: AL FUTTAIM | G36: Road base | H36: 77.22 | I36: 7.7 | J36: 594.594 | M36: 420.5 | P36: 550 | Q36: 0 | R36: 70 | S36: رانا (جاسويندر)
A37: =IF(B37="","",MAX($A$1:A36)+1) -> 36 | B37: 2019-03-17 | C37: 40104 | D37: 2216348 | E37: Cement Factory | F37: AL RAWASI | G37: Road base | H37: 77.04 | I37: 16.65 | J37: 1282.716 | L37: 300 | M37: 420.5 | Q37: 0 | R37: 75 | S37: رانا (جاسويندر)
A38: =IF(B38="","",MAX($A$1:A37)+1) -> 37 | B38: 2019-03-17 | C38: 40104 | D38: 2216298 | E38: Cement Factory | F38: AL RAWASI | G38: Road base | H38: 84.62 | I38: 16.65 | J38: 1408.923 | L38: 300 | M38: 420.5 | Q38: 0 | R38: 75 | S38: رانا (جاسويندر)
A39: =IF(B39="","",MAX($A$1:A38)+1) -> 38 | B39: 2019-03-18 | C39: 40104 | D39: 2216379 | E39: Cement Factory | F39: AL RAWASI | G39: Road base | H39: 81.66 | I39: 16.65 | J39: 1359.639 | L39: 300 | Q39: 0 | R39: 100 | S39: رانا (جاسويندر) | T39: National
A40: =IF(B40="","",MAX($A$1:A39)+1) ->  | C40: 40104 | E40: Cement Factory | F40: AL RAWASI | G40: Road base | Q40: 0 | S40: رانا (جاسويندر)
A41: =IF(B41="","",MAX($A$1:A40)+1) ->  | C41: 40104 | E41: DUCON | F41: AL KAWTHER | G41: Road base | Q41: 0 | S41: رانا (جاسويندر)
A42: =IF(B42="","",MAX($A$1:A41)+1) ->  | C42: 40104 | E42: Cement Factory | F42: AL RAWASI | G42: Road base | Q42: 0 | S42: رانا (جاسويندر)
A43: =IF(B43="","",MAX($A$1:A42)+1) ->  | C43: 40104 | E43: Cement Factory | F43: AL RAWASI | G43: Road base | Q43: 0 | S43: رانا (جاسويندر)
A44: =IF(B44="","",MAX($A$1:A43)+1) ->  | C44: 40104 | E44: DUCON | F44: AL KAWTHER | G44: Road base | Q44: 0 | S44: رانا (جاسويندر)
A45: =IF(B45="","",MAX($A$1:A44)+1) ->  | C45: 40104 | E45: Cement Factory | F45: AL RAWASI | G45: Road base | Q45: 0 | S45: رانا (جاسويندر)
A46: =IF(B46="","",MAX($A$1:A45)+1) ->  | C46: 40104 | E46: Cement Factory | F46: AL NAKHEEL | G46: Road base | Q46: 0 | S46: رانا (جاسويندر)
A47: =IF(B47="","",MAX($A$1:A46)+1) ->  | C47: 40104 | E47: DUCON | F47: AL KAWTHER | G47: Road base | Q47: 0 | S47: رانا (جاسويندر)
A48: =IF(B48="","",MAX($A$1:A47)+1) ->  | C48: 40104 | E48: Cement Factory | F48: AL RAWASI | G48: Road base | Q48: 0 | S48: رانا (جاسويندر)
A49: =IF(B49="","",MAX($A$1:A48)+1) ->  | C49: 40104 | E49: Cement Factory | F49: AL RAWASI | G49: Road base | Q49: 0 | S49: رانا (جاسويندر)
A50: =IF(B50="","",MAX($A$1:A49)+1) ->  | C50: 40104 | E50: Cement Factory | F50: AL RAWASI | G50: Road base | Q50: 0 | S50: رانا (جاسويندر)
A51: =IF(B51="","",MAX($A$1:A50)+1) ->  | C51: 40104 | E51: Cement Factory | F51: AL RAWASI | G51: Road base | Q51: 0 | S51: رانا (جاسويندر)
A52: =IF(B52="","",MAX($A$1:A51)+1) ->  | C52: 40104 | E52: DUCON | F52: AL KAWTHER | G52: Road base | Q52: 0 | S52: رانا (جاسويندر)
A53: =IF(B53="","",MAX($A$1:A52)+1) ->  | C53: 40104 | E53: Cement Factory | F53: AL RAWASI | G53: Road base | Q53: 0 | S53: رانا (جاسويندر)
A54: =IF(B54="","",MAX($A$1:A53)+1) ->  | C54: 40104 | E54: DUBAI | F54: CENTRAL | G54: Road base | Q54: 0 | S54: رانا (جاسويندر)
A55: =IF(B55="","",MAX($A$1:A54)+1) ->  | C55: 40104 | E55: DUCON | F55: AL KAWTHER | G55: Road base | Q55: 0 | S55: رانا (جاسويندر)
A56: =IF(B56="","",MAX($A$1:A55)+1) ->  | C56: 40104 | E56: Cement Factory | F56: AL RAWASI | G56: Road base | Q56: 0 | S56: رانا (جاسويندر)
A57: =IF(B57="","",MAX($A$1:A56)+1) ->  | C57: 40104 | E57: Cement Factory | F57: AL RAWASI | G57: Road base | Q57: 0 | S57: رانا (جاسويندر)
A58: =IF(B58="","",MAX($A$1:A57)+1) ->  | C58: 40104 | E58: Cement Factory | F58: AL RAWASI | G58: Road base | Q58: 0 | S58: رانا (جاسويندر)
A59: =IF(B59="","",MAX($A$1:A58)+1) ->  | C59: 40104 | E59: DUCON | F59: AL KAWTHER | G59: Road base | Q59: 0 | S59: رانا (جاسويندر)
A60: =IF(B60="","",MAX($A$1:A59)+1) ->  | C60: 40104 | E60: DUCON | F60: AL KAWTHER | G60: Road base | Q60: 0 | S60: رانا (جاسويندر)
A61: =IF(B61="","",MAX($A$1:A60)+1) ->  | C61: 40104 | E61: DUCON | F61: AL KAWTHER | G61: Road base | Q61: 0 | S61: رانا (جاسويندر)
A62: =IF(B62="","",MAX($A$1:A61)+1) ->  | C62: 40104 | E62: DUCON | F62: AL KAWTHER | G62: Road base | Q62: 0 | S62: رانا (جاسويندر)
A63: =IF(B63="","",MAX($A$1:A62)+1) ->  | C63: 40104 | E63: Cement Factory | F63: AL RAWASI | G63: Road base | Q63: 0 | S63: رانا (جاسويندر)
A64: =IF(B64="","",MAX($A$1:A63)+1) ->  | C64: 40104 | E64: DUCON | F64: AL KAWTHER | G64: Road base | Q64: 0 | S64: رانا (جاسويندر)
A65: =IF(B65="","",MAX($A$1:A64)+1) ->  | C65: 40104 | E65: Cement Factory | F65: AL RAWASI | G65: Road base | Q65: 0 | S65: رانا (جاسويندر)
A66: =IF(B66="","",MAX($A$1:A65)+1) ->  | C66: 40104 | E66: Cement Factory | F66: AL RAWASI | G66: Road base | I66: =IF(B66="","",(IF(AND(F66="RIDI SIDI"),"16.65",IF(AND(F66="CENTRAL",E66="DUBAI"),"19",IF(AND(F66="CENTRAL",E66="JEBEL ALI"),"21",IF(AND(F66="AL RAWASI"),"16.65",IF(AND(F66="AL NAKHEEL"),"16.65",IF(AND(F66="WB"),"22.60",IF(AND(F66="AL BARRAK",E66="DUCON"),"21.97",IF(AND(F66="AL KAWTHER",E66="DUCON"),"21.97",IF(AND(F66="AL KAWTHER"),"22.5",IF(AND(F66="AL FUTTAIM",E66="JEBEL ALI"),"8.75",IF(AND(F66="AL FUTTAIM",E66="MAFRAQ"),"16",IF(AND(F66="AL FUTTAIM",E66="AL QUOZ"),"7.70",IF(AND(F66="AL FUTTAIM",E66="MUSSAFAH"),"16.90",IF(AND(F66="AL FUTTAIM",E66="NAD AL SHEBA"),"8.50",IF(AND(F66="AL FUTTAIM",E66="MAHAWI"),"16.90",IF(AND(F66="AL RAWDA",E66="MADAM"),"24.50",)))))))))))))))))*1) ->  | J66: =IF(B66="","",I66*H66) ->  | Q66: 0 | S66: رانا (جاسويندر) | T66: =IF(OR(R66=100,R66=115),"National","") -> 
A67: =IF(B67="","",MAX($A$1:A66)+1) ->  | C67: 40104 | E67: DUCON | F67: AL KAWTHER | G67: Road base | Q67: 0 | S67: رانا (جاسويندر)
A68: =IF(B68="","",MAX($A$1:A67)+1) ->  | C68: 40104 | E68: Cement Factory | F68: AL RAWASI | G68: Road base | Q68: 0 | S68: رانا (جاسويندر)
A69: =IF(B69="","",MAX($A$1:A68)+1) ->  | C69: 40104 | E69: DUBAI | F69: CENTRAL | G69: Road base | Q69: 0 | S69: رانا (جاسويندر)
A70: =IF(B70="","",MAX($A$1:A69)+1) ->  | C70: 40104 | E70: DUCON | F70: AL BARRAK | G70: Road base | Q70: 0 | S70: رانا (جاسويندر)
A71: =IF(B71="","",MAX($A$1:A70)+1) ->  | C71: 40104 | E71: Cement Factory | F71: AL RAWASI | G71: Road base | Q71: 0 | S71: رانا (جاسويندر)
A72: =IF(B72="","",MAX($A$1:A71)+1) ->  | C72: 40104 | E72: Cement Factory | F72: RIDI SIDI | G72: Road base | Q72: 0 | S72: رانا (جاسويندر)
A73: =IF(B73="","",MAX($A$1:A72)+1) ->  | C73: 40104 | E73: Cement Factory | F73: RIDI SIDI | G73: Road base | Q73: 0 | S73: رانا (جاسويندر)
A74: =IF(B74="","",MAX($A$1:A73)+1) ->  | C74: 40104 | E74: Cement Factory | F74: RIDI SIDI | G74: Road base | Q74: 0 | S74: رانا (جاسويندر)
A75: =IF(B75="","",MAX($A$1:A74)+1) ->  | C75: 40104 | E75: Cement Factory | F75: RIDI SIDI | G75: Road base | Q75: 0 | S75: رانا (جاسويندر)
A76: =IF(B76="","",MAX($A$1:A75)+1) ->  | C76: 40104 | E76: Cement Factory | F76: RIDI SIDI | G76: Road base | Q76: 0 | S76: رانا (جاسويندر)
A77: =IF(B77="","",MAX($A$1:A76)+1) ->  | C77: 40104 | E77: Cement Factory | F77: RIDI SIDI | G77: Road base | Q77: 0 | S77: رانا (جاسويندر)
A78: =IF(B78="","",MAX($A$1:A77)+1) ->  | C78: 40104 | E78: Cement Factory | F78: RIDI SIDI | G78: Road base | Q78: 0 | S78: رانا (جاسويندر)
A79: =IF(B79="","",MAX($A$1:A78)+1) ->  | C79: 40104 | E79: Cement Factory | F79: RIDI SIDI | G79: Road base | Q79: 0 | S79: رانا (جاسويندر)
A80: =IF(B80="","",MAX($A$1:A79)+1) ->  | C80: 40104 | E80: AL QUOZ | F80: AL FUTTAIM | G80: Road base | Q80: 0 | S80: رانا (جاسويندر)
A81: =IF(B81="","",MAX($A$1:A80)+1) ->  | C81: 40104 | E81: MAFRAQ | F81: AL FUTTAIM | G81: Road base | Q81: 0 | R81: 700 | S81: رانا (جاسويندر)
B82: =SUBTOTAL(2,B2:B81) -> 38 | H82: =SUBTOTAL(9,Table2[NETWET الوزن]) -> 3063.84 | J82: =SUBTOTAL(9,Table2[TOTAL الاجمالى]) -> 46811.3606 | K82: =SUBTOTAL(9,K2:K81) -> 1650 | L82: =SUBTOTAL(9,L2:L81) -> 6900 | M82: 11353.5 | N82: 0 | O82: 0 | P82: 6600 | Q82: 0 | R82: =SUBTOTAL(9,R2:R81) -> 4130
K83: =SUBTOTAL(2,K2:K81) -> 3 | L83: =SUBTOTAL(2,L2:L81) -> 23 | M83: 27 | N83: 0 | O83: 0 | P83: 12 | Q83: 8.446
Q84: =Q82*Q83 -> 0
J87: كامل المصاريف
J88: الديزل | L88: =Q82 -> 0
C89: وارد السيارة | E89: =J82 -> 46811.3606 | J89: الاطارات | L89: 0
C90: كامل المصاريف | E90: =L95 -> 35657.43 | J90: تكت | L90: =SUM(K82:P82) -> 26503.5
C91: الصافي | E91: =E89-E90 -> 11153.9306 | J91: قطع غيار
J92: راتب السائق | L92: =R82 -> 4130
J93: فواتير متفرقة | L93: 5023.93
J94: رسوم تصريح /9
J95: الاجمالي | L95: =SUM(L88:M94) -> 35657.43

Sheet Sheet3

Sheet Sheet7

Sheet 47912
A1: م | B1: DATE التاريخ | C1: NO TRUCK رقم السيارة | D1: NO TICKET رقم الفاتورة | E1: DESTINATION الموقع | F1: CRUCHER الكسارة | G1: MATERIAL المادة | H1: NETWET الوزن | I1: RATE سعر الطن | J1: TOTAL الاجمالى | K1: FUJ ت/فجيرة | L1: SAEEDY ت/ساعدي | M1: DHAID ت/الذيد | N1: ZUBAIR ت/الزبير | O1: ALGHAIL ت/الغيل | P1: KADRAA ت/كدرة | Q1: DIESEL الديزل | R1: SALARY الراتب | S1: NAME DRIVER اسم السائق | T1: NOTICE ملاحظات
A2: =IF(B2="","",MAX($A$1:A1)+1) -> 1 | B2: 2019-03-01 | C2: 47912 | D2: 141335 | E2: AL QUOZ | F2: AL FUTTAIM | G2: Road base | H2: 75.76 | I2: =IF(B2="","",(IF(AND(F2="RIDI SIDI"),"16.65",IF(AND(F2="CENTRAL",E2="DUBAI"),"19",IF(AND(F2="CENTRAL",E2="JEBEL ALI"),"21",IF(AND(F2="AL RAWASI"),"16.65",IF(AND(F2="AL NAKHEEL"),"16.65",IF(AND(F2="WB"),"22.60",IF(AND(F2="AL BARRAK",E2="DUCON"),"21.97",IF(AND(F2="AL KAWTHER",E2="DUCON"),"21.97",IF(AND(F2="AL KAWTHER"),"22.5",IF(AND(F2="AL FUTTAIM",E2="JEBEL ALI"),"8.75",IF(AND(F2="AL FUTTAIM",E2="MAFRAQ"),"16",IF(AND(F2="AL FUTTAIM",E2="AL QUOZ"),"7.70",IF(AND(F2="AL FUTTAIM",E2="MUSSAFAH"),"16.90",IF(AND(F2="AL FUTTAIM",E2="NAD AL SHEBA"),"8.50",IF(AND(F2="AL FUTTAIM",E2="MAHAWI"),"16.90",IF(AND(F2="AL RAWDA",E2="MADAM"),"24.50",)))))))))))))))))*1) -> 7.7 | J2: =IF(B2="","",I2*H2) -> 583.352 | M2: 420.5 | P2: 550 | Q2: 0 | R2: 70 | S2: زاهد | T2: =IF(OR(R2=100,R2=115),"National","") -> 
A3: =IF(B3="","",MAX($A$1:A2)+1) -> 2 | B3: 2019-03-02 | C3: 47912 | D3: 2213475 | E3: Cement Factory | F3: AL RAWASI | G3: Road base | H3: 78.88 | I3: 16.65 | J3: 1313.352 | L3: 300 | M3: 420.5 | Q3: 0 | R3: 75 | S3: زاهد
A4: =IF(B4="","",MAX($A$1:A3)+1) -> 3 | B4: 2019-03-02 | C4: 47912 | D4: 141368 | E4: AL QUOZ | F4: AL FUTTAIM | G4: Road base | H4: 78.16 | I4: 7.7 | J4: 601.832 | M4: 420.5 | P4: 550 | Q4: 0 | R4: 70 | S4: زاهد
A5: =IF(B5="","",MAX($A$1:A4)+1) -> 4 | B5: 2019-03-03 | C5: 47912 | D5: 2213628 | E5: Cement Factory | F5: AL RAWASI | G5: Road base | H5: 80.26 | I5: 16.65 | J5: 1336.329 | L5: 300 | Q5: 0 | R5: 100 | S5: زاهد | T5: National
A6: =IF(B6="","",MAX($A$1:A5)+1) -> 5 | B6: 2019-03-03 | C6: 47912 | D6: 2213792 | E6: Cement Factory | F6: AL RAWASI | G6: Road base | H6: 79.14 | I6: 16.65 | J6: 1317.681 | L6: 300 | M6: 420.5 | Q6: 0 | R6: 75 | S6: زاهد
A7: =IF(B7="","",MAX($A$1:A6)+1) -> 6 | B7: 2019-03-04 | C7: 47912 | D7: 2213937 | E7: Cement Factory | F7: AL RAWASI | G7: Road base | H7: 70.34 | I7: 16.65 | J7: 1171.161 | L7: 300 | M7: 420.5 | Q7: 0 | R7: 75 | S7: زاهد
A8: =IF(B8="","",MAX($A$1:A7)+1) -> 7 | B8: 2019-03-04 | C8: 47912 | D8: 141605 | E8: JEBEL ALI | F8: AL FUTTAIM | G8: Road base | H8: 77.4 | I8: 8.75 | J8: 677.25 | M8: 420.5 | P8: 550 | Q8: 0 | R8: 80 | S8: زاهد
A9: =IF(B9="","",MAX($A$1:A8)+1) -> 8 | B9: 2019-03-04 | C9: 47912 | D9: 2213874 | E9: Cement Factory | F9: AL RAWASI | G9: Road base | H9: 77.2 | I9: 16.65 | J9: 1285.38 | L9: 300 | Q9: 0 | R9: 100 | S9: زاهد | T9: National
A10: =IF(B10="","",MAX($A$1:A9)+1) -> 9 | B10: 2019-03-05 | C10: 47912 | D10: 2214101 | E10: Cement Factory | F10: AL RAWASI | G10: Road base | H10: 74.32 | I10: 16.65 | J10: 1237.428 | L10: 300 | M10: 420.5 | Q10: 0 | R10: 75 | S10: زاهد
A11: =IF(B11="","",MAX($A$1:A10)+1) -> 10 | B11: 2019-03-05 | C11: 47912 | D11: 141657 | E11: JEBEL ALI | F11: AL FUTTAIM | G11: Road base | H11: 73.94 | I11: 8.75 | J11: 646.975 | M11: 420.5 | P11: 550 | Q11: 0 | R11: 80 | S11: زاهد
A12: =IF(B12="","",MAX($A$1:A11)+1) -> 11 | B12: 2019-03-06 | C12: 47912 | D12: 2214237 | E12: Cement Factory | F12: AL RAWASI | G12: Road base | H12: 77.08 | I12: 16.65 | J12: 1283.382 | L12: 300 | M12: 420.5 | Q12: 0 | R12: 75 | S12: زاهد
A13: =IF(B13="","",MAX($A$1:A12)+1) -> 12 | B13: 2019-03-06 | C13: 47912 | D13: 2214136 | E13: Cement Factory | F13: AL RAWASI | G13: Road base | H13: 79.44 | I13: 16.65 | J13: 1322.676 | L13: 300 | Q13: 0 | R13: 100 | S13: زاهد | T13: National
A14: =IF(B14="","",MAX($A$1:A13)+1) -> 13 | B14: 2019-03-07 | C14: 47912 | D14: 2214329 | E14: Cement Factory | F14: AL RAWASI | G14: Road base | H14: 79.76 | I14: 16.65 | J14: 1328.004 | L14: 300 | Q14: 0 | R14: 100 | S14: زاهد | T14: National
A15: =IF(B15="","",MAX($A$1:A14)+1) -> 14 | B15: 2019-03-07 | C15: 47912 | D15: 2214358 | E15: Cement Factory | F15: AL RAWASI | G15: Road base | H15: 73.08 | I15: 16.65 | J15: 1216.782 | L15: 300 | M15: 420.5 | Q15: 0 | R15: 75 | S15: زاهد
A16: =IF(B16="","",MAX($A$1:A15)+1) -> 15 | B16: 2019-03-07 | C16: 47912 | D16: 2214434 | E16: Cement Factory | F16: AL RAWASI | G16: Road base | H16: 80.16 | I16: 16.65 | J16: 1334.664 | L16: 300 | M16: 420.5 | Q16: 0 | R16: 75 | S16: زاهد
A17: =IF(B17="","",MAX($A$1:A16)+1) -> 16 | B17: 2019-03-08 | C17: 47912 | D17: 2214560 | E17: Cement Factory | F17: AL RAWASI | G17: Road base | H17: 73.84 | I17: 16.65 | J17: 1229.436 | L17: 300 | Q17: 0 | R17: 100 | S17: زاهد | T17: National
A18: =IF(B18="","",MAX($A$1:A17)+1) -> 17 | B18: 2019-03-08 | C18: 47912 | D18: 2214792 | E18: Cement Factory | F18: AL RAWASI | G18: Road base | H18: 79.32 | I18: 16.65 | J18: 1320.678 | L18: 300 | M18: 420.5 | Q18: 0 | R18: 75 | S18: زاهد
A19: =IF(B19="","",MAX($A$1:A18)+1) -> 18 | B19: 2019-03-09 | C19: 47912 | D19: 2214894 | E19: Cement Factory | F19: AL RAWASI | G19: Road base | H19: 81.5 | I19: 16.65 | J19: 1356.975 | L19: 300 | Q19: 0 | R19: 100 | S19: زاهد | T19: National
A20: =IF(B20="","",MAX($A$1:A19)+1) -> 19 | B20: 2019-03-09 | C20: 47912 | D20: 2215052 | E20: Cement Factory | F20: AL NAKHEEL | G20: Road base | H20: 71.36 | I20: 16.65 | J20: 1188.144 | L20: 300 | M20: 420.5 | Q20: 0 | R20: 75 | S20: زاهد
A21: =IF(B21="","",MAX($A$1:A20)+1) -> 20 | B21: 2019-03-09 | C21: 47912 | D21: 2215103 | E21: Cement Factory | F21: AL RAWASI | G21: Road base | H21: 78.56 | I21: 16.65 | J21: 1308.024 | L21: 300 | M21: 420.5 | Q21: 0 | R21: 75 | S21: زاهد
A22: =IF(B22="","",MAX($A$1:A21)+1) -> 21 | B22: 2019-03-10 | C22: 47912 | D22: 2215152 | E22: Cement Factory | F22: AL RAWASI | G22: Road base | H22: 76.32 | I22: 16.65 | J22: 1270.728 | L22: 300 | Q22: 0 | R22: 100 | S22: زاهد | T22: National
A23: =IF(B23="","",MAX($A$1:A22)+1) -> 22 | B23: 2019-03-10 | C23: 47912 | D23: 2215209 | E23: Cement Factory | F23: AL NAKHEEL | G23: Road base | H23: 69.46 | I23: 16.65 | J23: 1156.509 | L23: 300 | M23: 420.5 | Q23: 0 | R23: 75 | S23: زاهد
A24: =IF(B24="","",MAX($A$1:A23)+1) -> 23 | B24: 2019-03-10 | C24: 47912 | D24: 142188 | E24: JEBEL ALI | F24: AL FUTTAIM | G24: Road base | H24: 77.02 | I24: 8.75 | J24: 673.925 | M24: 420.5 | P24: 550 | Q24: 0 | R24: 80 | S24: زاهد
A25: =IF(B25="","",MAX($A$1:A24)+1) -> 24 | B25: 2019-03-11 | C25: 47912 | D25: 2215282 | E25: Cement Factory | F25: AL RAWASI | G25: Road base | H25: 78.36 | I25: 16.65 | J25: 1304.694 | L25: 300 | Q25: 0 | R25: 100 | S25: زاهد | T25: National
A26: =IF(B26="","",MAX($A$1:A25)+1) -> 25 | B26: 2019-03-11 | C26: 47912 | D26: 2215399 | E26: Cement Factory | F26: AL RAWASI | G26: Road base | H26: 79.5 | I26: 16.65 | J26: 1323.675 | L26: 300 | M26: 420.5 | Q26: 0 | R26: 75 | S26: زاهد
A27: =IF(B27="","",MAX($A$1:A26)+1) -> 26 | B27: 2019-03-12 | C27: 47912 | D27: 2215473 | E27: Cement Factory | F27: AL RAWASI | G27: Road base | H27: 73.34 | I27: 16.65 | J27: 1221.111 | L27: 300 | Q27: 0 | R27: 100 | S27: زاهد | T27: National
A28: =IF(B28="","",MAX($A$1:A27)+1) -> 27 | B28: 2019-03-12 | C28: 47912 | D28: 2217516 | E28: Cement Factory | F28: AL RAWASI | G28: Road base | H28: 74.58 | I28: 16.65 | J28: 1241.757 | L28: 300 | M28: 420.5 | Q28: 0 | R28: 75 | S28: زاهد
A29: =IF(B29="","",MAX($A$1:A28)+1) -> 28 | B29: 2019-03-12 | C29: 47912 | D29: 2217571 | E29: Cement Factory | F29: AL RAWASI | G29: Road base | H29: 78.34 | I29: 16.65 | J29: 1304.361 | L29: 300 | M29: 420.5 | Q29: 0 | R29: 75 | S29: زاهد
A30: =IF(B30="","",MAX($A$1:A29)+1) -> 29 | B30: 2019-03-13 | C30: 47912 | D30: 142639 | E30: AL QUOZ | F30: AL FUTTAIM | G30: Road base | H30: 77.6 | I30: 7.7 | J30: 597.52 | M30: 420.5 | P30: 550 | Q30: 0 | R30: 70 | S30: زاهد
A31: =IF(B31="","",MAX($A$1:A30)+1) -> 30 | B31: 2019-03-13 | C31: 47912 | D31: 142556 | E31: AL QUOZ | F31: AL FUTTAIM | G31: Road base | H31: 75.84 | I31: 7.7 | J31: 583.968 | M31: 420.5 | P31: 550 | Q31: 0 | R31: 70 | S31: زاهد
A32: =IF(B32="","",MAX($A$1:A31)+1) -> 31 | B32: 2019-03-14 | C32: 47912 | D32: 2215590 | E32: Cement Factory | F32: AL RAWASI | G32: Road base | H32: 80.36 | I32: 16.65 | J32: 1337.994 | L32: 300 | M32: 420.5 | Q32: 0 | R32: 75 | S32: زاهد
A33: =IF(B33="","",MAX($A$1:A32)+1) -> 32 | B33: 2019-03-15 | C33: 47912 | D33: 2215743 | E33: Cement Factory | F33: AL RAWASI | G33: Road base | H33: 74.76 | I33: 16.65 | J33: 1244.754 | L33: 300 | Q33: 0 | R33: 100 | S33: زاهد | T33: National
A34: =IF(B34="","",MAX($A$1:A33)+1) -> 33 | B34: 2019-03-15 | C34: 47912 | D34: 2215952 | E34: Cement Factory | F34: AL RAWASI | G34: Road base | H34: 85 | I34: =IF(B34="","",(IF(AND(F34="RIDI SIDI"),"16.65",IF(AND(F34="CENTRAL",E34="DUBAI"),"19",IF(AND(F34="CENTRAL",E34="JEBEL ALI"),"21",IF(AND(F34="AL RAWASI"),"16.65",IF(AND(F34="AL NAKHEEL"),"16.65",IF(AND(F34="WB"),"22.60",IF(AND(F34="AL BARRAK",E34="DUCON"),"21.97",IF(AND(F34="AL KAWTHER",E34="DUCON"),"21.97",IF(AND(F34="AL KAWTHER"),"22.5",IF(AND(F34="AL FUTTAIM",E34="JEBEL ALI"),"8.75",IF(AND(F34="AL FUTTAIM",E34="MAFRAQ"),"16",IF(AND(F34="AL FUTTAIM",E34="AL QUOZ"),"7.70",IF(AND(F34="AL FUTTAIM",E34="MUSSAFAH"),"16.90",IF(AND(F34="AL FUTTAIM",E34="NAD AL SHEBA"),"8.50",IF(AND(F34="AL FUTTAIM",E34="MAHAWI"),"16.90",IF(AND(F34="AL RAWDA",E34="MADAM"),"24.50",)))))))))))))))))*1) -> 16.65 | J34: =IF(B34="","",I34*H34) -> 1415.25 | L34: 300 | M34: 420.5 | Q34: 0 | R34: 75 | S34: زاهد
A35: =IF(B35="","",MAX($A$1:A34)+1) -> 34 | B35: 2019-03-16 | C35: 47912 | D35: 2216022 | E35: Cement Factory | F35: AL RAWASI | G35: Road base | H35: 74.68 | I35: 16.65 | J35: 1243.422 | L35: 300 | Q35: 0 | R35: 100 | S35: زاهد | T35: National
A36: =IF(B36="","",MAX($A$1:A35)+1) -> 35 | B36: 2019-03-16 | C36: 47912 | D36: 2216156 | E36: Cement Factory | F36: AL RAWASI | G36: Road base | H36: 77.22 | I36: 16.65 | J36: 1285.713 | L36: 300 | M36: 420.5 | Q36: 0 | R36: 72 | S36: زاهد
A37: =IF(B37="","",MAX($A$1:A36)+1) -> 36 | B37: 2019-03-17 | C37: 47912 | D37: 2216242 | E37: Cement Factory | F37: AL RAWASI | G37: Road base | H37: 72.74 | I37: 16.65 | J37: 1211.121 | L37: 300 | Q37: 0 | R37: 100 | S37: زاهد | T37: National
A38: =IF(B38="","",MAX($A$1:A37)+1) ->  | C38: 47912 | E38: Cement Factory | F38: AL RAWASI | G38: Road base | Q38: 0 | S38: زاهد
A39: =IF(B39="","",MAX($A$1:A38)+1) ->  | C39: 47912 | E39: DUBAI | F39: CENTRAL | G39: Road base | Q39: 0 | S39: زاهد
A40: =IF(B40="","",MAX($A$1:A39)+1) ->  | C40: 47912 | E40: DUBAI | F40: CENTRAL | G40: Road base | Q40: 0 | S40: زاهد
A41: =IF(B41="","",MAX($A$1:A40)+1) ->  | C41: 47912 | E41: Cement Factory | F41: AL RAWASI | G41: Road base | Q41: 0 | S41: زاهد
A42: =IF(B42="","",MAX($A$1:A41)+1) ->  | C42: 47912 | E42: Cement Factory | F42: AL RAWASI | G42: Road base | Q42: 0 | S42: زاهد
A43: =IF(B43="","",MAX($A$1:A42)+1) ->  | C43: 47912 | E43: Cement Factory | F43: AL RAWASI | G43: Road base | Q43: 0 | S43: زاهد
A44: =IF(B44="","",MAX($A$1:A43)+1) ->  | C44: 47912 | E44: Cement Factory | F44: AL RAWASI | G44: Road base | Q44: 0 | S44: زاهد
A45: =IF(B45="","",MAX($A$1:A44)+1) ->  | C45: 47912 | E45: Cement Factory | F45: AL RAWASI | G45: Road base | Q45: 0 | S45: زاهد
A46: =IF(B46="","",MAX($A$1:A45)+1) ->  | C46: 47912 | E46: Cement Factory | F46: AL RAWASI | G46: Road base | Q46: 0 | S46: زاهد
A47: =IF(B47="","",MAX($A$1:A46)+1) ->  | C47: 47912 | E47: Cement Factory | F47: AL RAWASI | G47: Road base | Q47: 0 | S47: زاهد
A48: =IF(B48="","",MAX($A$1:A47)+1) ->  | C48: 47912 | E48: Cement Factory | F48: AL RAWASI | G48: Road base | Q48: 0 | S48: زاهد
A49: =IF(B49="","",MAX($A$1:A48)+1) ->  | C49: 47912 | E49: Cement Factory | F49: AL RAWASI | G49: Road base | Q49: 0 | S49: زاهد
A50: =IF(B50="","",MAX($A$1:A49)+1) ->  | C50: 47895 | E50: DUBAI | F50: CENTRAL | G50: Road base | Q50: 0 | S50: زاهد
A51: =IF(B51="","",MAX($A$1:A50)+1) ->  | C51: 47895 | E51: DUBAI | F51: CENTRAL | G51: Road base | Q51: 0 | S51: زاهد
A52: =IF(B52="","",MAX($A$1:A51)+1) ->  | C52: 47895 | E52: DUCON | F52: AL BARRAK | G52: Road base | Q52: 0 | S52: زاهد
A53: =IF(B53="","",MAX($A$1:A52)+1) ->  | C53: 47895 | E53: Cement Factory | F53: AL RAWASI | G53: Road base | Q53: 0 | S53: زاهد
A54: =IF(B54="","",MAX($A$1:A53)+1) ->  | C54: 47895 | E54: Cement Factory | F54: AL RAWASI | G54: Road base | Q54: 0 | S54: زاهد
A55: =IF(B55="","",MAX($A$1:A54)+1) ->  | C55: 47895 | E55: DUBAI | F55: CENTRAL | G55: Road base | Q55: 0 | S55: زاهد
A56: =IF(B56="","",MAX($A$1:A55)+1) ->  | C56: 47895 | E56: DUBAI | F56: CENTRAL | G56: Road base | Q56: 0 | S56: زاهد
A57: =IF(B57="","",MAX($A$1:A56)+1) ->  | C57: 47895 | E57: DUBAI | F57: CENTRAL | G57: Road base | Q57: 0 | S57: زاهد
A58: =IF(B58="","",MAX($A$1:A57)+1) ->  | C58: 47895 | E58: Cement Factory | F58: AL NAKHEEL | G58: Road base | Q58: 0 | S58: زاهد
A59: =IF(B59="","",MAX($A$1:A58)+1) ->  | C59: 47895 | E59: Cement Factory | F59: AL RAWASI | G59: Road base | Q59: 0 | S59: زاهد
A60: =IF(B60="","",MAX($A$1:A59)+1) ->  | C60: 47895 | E60: Cement Factory | F60: AL RAWASI | G60: Road base | Q60: 0 | S60: زاهد
A61: =IF(B61="","",MAX($A$1:A60)+1) ->  | C61: 47895 | E61: Cement Factory | F61: AL RAWASI | G61: Road base | Q61: 0 | S61: زاهد
A62: =IF(B62="","",MAX($A$1:A61)+1) ->  | C62: 47895 | E62: Cement Factory | F62: AL RAWASI | G62: Road base | Q62: 0 | S62: زاهد
A63: =IF(B63="","",MAX($A$1:A62)+1) ->  | C63: 47895 | E63: Cement Factory | F63: AL RAWASI | G63: Road base | Q63: 0 | S63: زاهد
A64: =IF(B64="","",MAX($A$1:A63)+1) ->  | C64: 47895 | E64: Cement Factory | F64: AL RAWASI | G64: Road base | Q64: 0 | S64: زاهد
A65: =IF(B65="","",MAX($A$1:A64)+1) ->  | C65: 47895 | E65: Cement Factory | F65: AL NAKHEEL | G65: Road base | Q65: 0 | S65: زاهد
A66: =IF(B66="","",MAX($A$1:A65)+1) ->  | C66: 47895 | E66: Cement Factory | F66: AL RAWASI | G66: Road base | I66: =IF(B66="","",(IF(AND(F66="RIDI SIDI"),"16.65",IF(AND(F66="CENTRAL",E66="DUBAI"),"19",IF(AND(F66="CENTRAL",E66="JEBEL ALI"),"21",IF(AND(F66="AL RAWASI"),"16.65",IF(AND(F66="AL NAKHEEL"),"16.65",IF(AND(F66="WB"),"22.60",IF(AND(F66="AL BARRAK",E66="DUCON"),"21.97",IF(AND(F66="AL KAWTHER",E66="DUCON"),"21.97",IF(AND(F66="AL KAWTHER"),"22.5",IF(AND(F66="AL FUTTAIM",E66="JEBEL ALI"),"8.75",IF(AND(F66="AL FUTTAIM",E66="MAFRAQ"),"16",IF(AND(F66="AL FUTTAIM",E66="AL QUOZ"),"7.70",IF(AND(F66="AL FUTTAIM",E66="MUSSAFAH"),"16.90",IF(AND(F66="AL FUTTAIM",E66="NAD AL SHEBA"),"8.50",IF(AND(F66="AL FUTTAIM",E66="MAHAWI"),"16.90",IF(AND(F66="AL RAWDA",E66="MADAM"),"24.50",)))))))))))))))))*1) ->  | J66: =IF(B66="","",I66*H66) ->  | Q66: 0 | S66: زاهد | T66: =IF(OR(R66=100,R66=115),"National","") -> 
A67: =IF(B67="","",MAX($A$1:A66)+1) ->  | C67: 47895 | E67: Cement Factory | F67: AL RAWASI | G67: Road base | Q67: 0 | S67: زاهد
A68: =IF(B68="","",MAX($A$1:A67)+1) ->  | C68: 47895 | E68: Cement Factory | F68: AL RAWASI | G68: Road base | Q68: 0 | S68: زاهد
A69: =IF(B69="","",MAX($A$1:A68)+1) ->  | C69: 47895 | E69: Cement Factory | F69: AL RAWASI | G69: Road base | Q69: 0 | S69: زاهد
A70: =IF(B70="","",MAX($A$1:A69)+1) ->  | C70: 47895 | E70: Cement Factory | F70: AL RAWASI | G70: Road base | Q70: 0 | S70: زاهد
A71: =IF(B71="","",MAX($A$1:A70)+1) ->  | C71: 47895 | E71: Cement Factory | F71: AL RAWASI | G71: Road base | Q71: 0 | S71: زاهد
A72: =IF(B72="","",MAX($A$1:A71)+1) ->  | C72: 47895 | E72: Cement Factory | F72: RIDI SIDI | G72: Road base | Q72: 0 | S72: زاهد
A73: =IF(B73="","",MAX($A$1:A72)+1) ->  | C73: 47895 | E73: Cement Factory | F73: RIDI SIDI | G73: Road base | Q73: 0 | S73: زاهد
A74: =IF(B74="","",MAX($A$1:A73)+1) ->  | C74: 47895 | E74: Cement Factory | F74: RIDI SIDI | G74: Road base | Q74: 0 | S74: زاهد
A75: =IF(B75="","",MAX($A$1:A74)+1) ->  | C75: 47895 | E75: Cement Factory | F75: RIDI SIDI | G75: Road base | Q75: 0 | S75: زاهد
A76: =IF(B76="","",MAX($A$1:A75)+1) ->  | C76: 47895 | E76: Cement Factory | F76: RIDI SIDI | G76: Road base | Q76: 0 | S76: زاهد
A77: =IF(B77="","",MAX($A$1:A76)+1) ->  | C77: 47895 | E77: Cement Factory | F77: RIDI SIDI | G77: Road base | Q77: 0 | S77: زاهد
A78: =IF(B78="","",MAX($A$1:A77)+1) ->  | C78: 47895 | E78: Cement Factory | F78: RIDI SIDI | G78: Road base | Q78: 0 | S78: زاهد
B79: =SUBTOTAL(2,B2:B78) -> 36 | H79: =SUBTOTAL(9,H2:H78) -> 2764.62 | J79: =SUBTOTAL(9,J2:J78) -> 41476.007 | K79: 0 | L79: 8700 | M79: 10092 | N79: 0 | O79: 0 | P79: 3850 | Q79: 0 | R79: 2992 | T79: =IF(R79=100,"National","") -> 
K80: =SUBTOTAL(2,K2:K78) -> 0 | L80: 29 | M80: 24 | N80: 0 | O80: 0 | P80: 7 | Q80: 8.446
Q81: =Q79*Q80 -> 0
J84: كامل المصاريف
J85: الديزل | L85: =Q79 -> 0
C86: وارد السيارة | E86: =J79 -> 41476.007 | J86: الاطارات | L86: 0
C87: كامل المصاريف | E87: =L92 -> 30657.93 | J87: تكت | L87: =SUM(K79:P79) -> 22642
C88: الصافي | E88: =E86-E87 -> 10818.077 | J88: قطع غيار
J89: راتب السائق | L89: =R79 -> 2992
J90: فواتير متفرقة | L90: 5023.93
J91: رسوم تصريح /9
J92: الاجمالي | L92: =SUM(L85:M91) -> 30657.93

Sheet 40223
A1: م | B1: DATE التاريخ | C1: NO TRUCK رقم السيارة | D1: NO TICKET رقم الفاتورة | E1: DESTINATION الموقع | F1: CRUCHER الكسارة | G1: MATERIAL المادة | H1: NETWET الوزن | I1: RATE سعر الطن | J1: TOTAL الاجمالى | K1: FUJ ت/فجيرة | L1: SAEEDY ت/ساعدي | M1: DHAID ت/الذيد | N1: ZUBAIR ت/الزبير | O1: ALGHAIL ت/الغيل | P1: KADRAA ت/كدرة | Q1: DIESEL الديزل | R1: SALARY الراتب | S1: NAME DRIVER اسم السائق | T1: NOTICE ملاحظات
A2: =IF(B2="","",MAX($A$1:A1)+1) -> 1 | B2: 2019-03-01 | C2: 40223 | D2: 141343 | E2: MUSSAFAH | F2: AL FUTTAIM | G2: Road base | H2: 77.78 | I2: =IF(B2="","",(IF(AND(F2="RIDI SIDI"),"16.65",IF(AND(F2="CENTRAL",E2="DUBAI"),"19",IF(AND(F2="CENTRAL",E2="JEBEL ALI"),"21",IF(AND(F2="AL RAWASI"),"16.65",IF(AND(F2="AL NAKHEEL"),"16.65",IF(AND(F2="WB"),"22.60",IF(AND(F2="AL BARRAK",E2="DUCON"),"21.97",IF(AND(F2="AL KAWTHER",E2="DUCON"),"21.97",IF(AND(F2="AL KAWTHER"),"22.5",IF(AND(F2="AL FUTTAIM",E2="JEBEL ALI"),"8.75",IF(AND(F2="AL FUTTAIM",E2="MAFRAQ"),"16",IF(AND(F2="AL FUTTAIM",E2="AL QUOZ"),"7.70",IF(AND(F2="AL FUTTAIM",E2="MUSSAFAH"),"16.90",IF(AND(F2="AL FUTTAIM",E2="NAD AL SHEBA"),"8.50",IF(AND(F2="AL FUTTAIM",E2="MAHAWI"),"16.90",IF(AND(F2="AL RAWDA",E2="MADAM"),"24.50",)))))))))))))))))*1) -> 16.9 | J2: =IF(B2="","",I2*H2) -> 1314.482 | M2: 420.5 | P2: 550 | Q2: 0 | R2: 180 | S2: فاريندر (بورى) | T2: =IF(OR(R2=100,R2=115),"National","") -> 
A3: =IF(B3="","",MAX($A$1:A2)+1) -> 2 | B3: 2019-03-02 | C3: 40223 | D3: 141397 | E3: AL QUOZ | F3: AL FUTTAIM | G3: Road base | H3: 76.76 | I3: 7.7 | J3: =IF(B3="","",I3*H3) -> 591.052 | M3: 420.5 | P3: 550 | Q3: 0 | R3: 70 | S3: فاريندر (بورى)
A4: =IF(B4="","",MAX($A$1:A3)+1) -> 3 | B4: 2019-03-03 | C4: 40223 | D4: 141485 | E4: AL QUOZ | F4: AL FUTTAIM | G4: Road base | H4: 75.32 | I4: 7.7 | J4: 579.964 | M4: 420.5 | P4: 550 | Q4: 0 | R4: 70 | S4: فاريندر (بورى)
A5: =IF(B5="","",MAX($A$1:A4)+1) -> 4 | B5: 2019-03-03 | C5: 40223 | D5: 141441 | E5: MUSSAFAH | F5: AL FUTTAIM | G5: Road base | H5: 80.52 | I5: 16.9 | J5: 1360.788 | M5: 420.5 | P5: 550 | Q5: 0 | R5: 180 | S5: فاريندر (بورى)
A6: =IF(B6="","",MAX($A$1:A5)+1) -> 5 | B6: 2019-03-04 | C6: 40223 | D6: 141536 | E6: MAFRAQ | F6: AL FUTTAIM | G6: Road base | H6: 76.02 | I6: 16 | J6: 1216.32 | M6: 420.5 | P6: 550 | Q6: 0 | R6: 160 | S6: فاريندر (بورى)
A7: =IF(B7="","",MAX($A$1:A6)+1) -> 6 | B7: 2019-03-04 | C7: 40223 | D7: 141576 | E7: AL QUOZ | F7: AL FUTTAIM | G7: Road base | H7: 75.16 | I7: 7.7 | J7: 578.732 | M7: 420.5 | P7: 550 | Q7: 0 | R7: 70 | S7: فاريندر (بورى)
A8: =IF(B8="","",MAX($A$1:A7)+1) -> 7 | B8: 2019-03-04 | C8: 40223 | D8: 141637 | E8: JEBEL ALI | F8: AL FUTTAIM | G8: Road base | H8: 76.94 | I8: 8.75 | J8: 673.225 | M8: 420.5 | P8: 550 | Q8: 0 | R8: 80 | S8: فاريندر (بورى)
A9: =IF(B9="","",MAX($A$1:A8)+1) -> 8 | B9: 2019-03-05 | C9: 40223 | D9: 141735 | E9: MAFRAQ | F9: AL FUTTAIM | G9: Road base | H9: 77.42 | I9: 16 | J9: 1238.72 | M9: 420.5 | P9: 550 | Q9: 0 | R9: 160 | S9: فاريندر (بورى)
A10: =IF(B10="","",MAX($A$1:A9)+1) -> 9 | B10: 2019-03-05 | C10: 40223 | D10: 141703 | E10: AL QUOZ | F10: AL FUTTAIM | G10: Road base | H10: 77.74 | I10: 7.7 | J10: 598.598 | M10: 420.5 | P10: 550 | Q10: 0 | R10: 70 | S10: فاريندر (بورى)
A11: =IF(B11="","",MAX($A$1:A10)+1) -> 10 | B11: 2019-03-05 | C11: 40223 | D11: 141670 | E11: JEBEL ALI | F11: AL FUTTAIM | G11: Road base | H11: 76.62 | I11: 8.75 | J11: 670.425 | M11: 420.5 | P11: 550 | Q11: 0 | R11: 80 | S11: فاريندر (بورى)
A12: =IF(B12="","",MAX($A$1:A11)+1) -> 11 | B12: 2019-03-06 | C12: 40223 | D12: 141781 | E12: AL QUOZ | F12: AL FUTTAIM | G12: Road base | H12: 75.62 | I12: 7.7 | J12: 582.274 | M12: 420.5 | P12: 550 | Q12: 0 | R12: 70 | S12: فاريندر (بورى)
A13: =IF(B13="","",MAX($A$1:A12)+1) -> 12 | B13: 2019-03-07 | C13: 40223 | D13: 2214604 | E13: Cement Factory | F13: AL RAWASI | G13: Road base | H13: 87.84 | I13: 16.65 | J13: 1462.536 | L13: 300 | Q13: 0 | R13: 100 | S13: فاريندر (بورى) | T13: National
A14: =IF(B14="","",MAX($A$1:A13)+1) -> 13 | B14: 2019-03-07 | C14: 40223 | D14: 2214335 | E14: Cement Factory | F14: AL NAKHEEL | G14: Road base | H14: 74.48 | I14: 16.65 | J14: 1240.092 | L14: 300 | Q14: 0 | R14: 100 | S14: فاريندر (بورى) | T14: National
A15: =IF(B15="","",MAX($A$1:A14)+1) -> 14 | B15: 2019-03-07 | C15: 40223 | D15: 141853 | E15: JEBEL ALI | F15: AL FUTTAIM | G15: Road base | H15: 78.26 | I15: 8.75 | J15: 684.775 | M15: 420.5 | P15: 550 | Q15: 0 | R15: 80 | S15: فاريندر (بورى)
A16: =IF(B16="","",MAX($A$1:A15)+1) -> 15 | B16: 2019-03-07 | C16: 40223 | D16: 900718 | E16: DUCON | F16: AL BARRAK | G16: Road base | H16: 71.76 | I16: 21.97 | J16: 1576.5672 | K16: 500 | M16: 420.5 | Q16: 0 | R16: 80 | S16: فاريندر (بورى)
A17: =IF(B17="","",MAX($A$1:A16)+1) -> 16 | B17: 2019-03-08 | C17: 40223 | D17: 2214861 | E17: Cement Factory | F17: AL RAWASI | G17: Road base | H17: 77.7 | I17: 16.65 | J17: 1293.705 | L17: 300 | M17: 420.5 | Q17: 0 | R17: 75 | S17: فاريندر (بورى)
A18: =IF(B18="","",MAX($A$1:A17)+1) -> 17 | B18: 2019-03-08 | C18: 40223 | D18: 141960 | E18: MAFRAQ | F18: AL FUTTAIM | G18: Road base | H18: 79.58 | I18: 16 | J18: 1273.28 | M18: 420.5 | P18: 550 | Q18: 0 | R18: 160 | S18: فاريندر (بورى)
A19: =IF(B19="","",MAX($A$1:A18)+1) -> 18 | B19: 2019-03-09 | C19: 40223 | D19: 142031 | E19: MUSSAFAH | F19: AL FUTTAIM | G19: Road base | H19: 78 | I19: 16.9 | J19: 1318.2 | M19: 420.5 | P19: 550 | Q19: 0 | R19: 180 | S19: فاريندر (بورى)
A20: =IF(B20="","",MAX($A$1:A19)+1) -> 19 | B20: 2019-03-09 | C20: 40223 | D20: 142108 | E20: AL QUOZ | F20: AL FUTTAIM | G20: Road base | H20: 77.6 | I20: 7.7 | J20: 597.52 | M20: 420.5 | P20: 550 | Q20: 0 | R20: 70 | S20: فاريندر (بورى)
A21: =IF(B21="","",MAX($A$1:A20)+1) -> 20 | B21: 2019-03-10 | C21: 40223 | D21: 142167 | E21: MUSSAFAH | F21: AL FUTTAIM | G21: Road base | H21: 76.74 | I21: 16.9 | J21: 1296.906 | M21: 420.5 | P21: 550 | Q21: 0 | R21: 180 | S21: فاريندر (بورى)
A22: =IF(B22="","",MAX($A$1:A21)+1) -> 21 | B22: 2019-03-11 | C22: 40223 | D22: 142303 | E22: MUSSAFAH | F22: AL FUTTAIM | G22: Road base | H22: 81.82 | I22: 16.9 | J22: 1382.758 | M22: 420.5 | P22: 550 | Q22: 0 | R22: 180 | S22: فاريندر (بورى)
A23: =IF(B23="","",MAX($A$1:A22)+1) -> 22 | B23: 2019-03-11 | C23: 40223 | D23: 142391 | E23: MAHAWI | F23: AL FUTTAIM | G23: Road base | H23: 82.7 | I23: 16.9 | J23: 1397.63 | M23: 420.5 | P23: 550 | Q23: 0 | R23: 180 | S23: فاريندر (بورى)
A24: =IF(B24="","",MAX($A$1:A23)+1) -> 23 | B24: 2019-03-11 | C24: 40223 | D24: 2215244 | E24: Cement Factory | F24: AL RAWASI | G24: Road base | H24: 75.76 | I24: 16.65 | J24: 1261.404 | L24: 300 | Q24: 0 | R24: 100 | S24: فاريندر (بورى) | T24: National
A25: =IF(B25="","",MAX($A$1:A24)+1) -> 24 | B25: 2019-03-11 | C25: 40223 | D25: 2215422 | E25: Cement Factory | F25: AL RAWASI | G25: Road base | H25: 79.66 | I25: 16.65 | J25: 1326.339 | L25: 300 | M25: 420.5 | Q25: 0 | R25: 75 | S25: فاريندر (بورى)
A26: =IF(B26="","",MAX($A$1:A25)+1) -> 25 | B26: 2019-03-12 | C26: 40223 | D26: 142460 | E26: JEBEL ALI | F26: AL FUTTAIM | G26: Road base | H26: 77.8 | I26: 8.75 | J26: 680.75 | M26: 420.5 | P26: 550 | Q26: 0 | R26: 80 | S26: فاريندر (بورى)
A27: =IF(B27="","",MAX($A$1:A26)+1) -> 26 | B27: 2019-03-13 | C27: 40223 | D27: 142541 | E27: MUSSAFAH | F27: AL FUTTAIM | G27: Road base | H27: 78.38 | I27: 16.9 | J27: 1324.622 | M27: 420.5 | P27: 550 | Q27: 0 | R27: 180 | S27: فاريندر (بورى)
A28: =IF(B28="","",MAX($A$1:A27)+1) -> 27 | B28: 2019-03-13 | C28: 40223 | D28: 142599 | E28: AL QUOZ | F28: AL FUTTAIM | G28: Road base | H28: 76.4 | I28: 7.7 | J28: 588.28 | M28: 420.5 | P28: 550 | Q28: 0 | R28: 70 | S28: فاريندر (بورى)
A29: =IF(B29="","",MAX($A$1:A28)+1) -> 28 | B29: 2019-03-13 | C29: 40223 | D29: 142665 | E29: JEBEL ALI | F29: AL FUTTAIM | G29: Road base | H29: 77.36 | I29: 8.75 | J29: 676.9 | M29: 420.5 | P29: 550 | Q29: 0 | R29: 80 | S29: فاريندر (بورى)
A30: =IF(B30="","",MAX($A$1:A29)+1) -> 29 | B30: 2019-03-14 | C30: 40223 | D30: 2215674 | E30: Cement Factory | F30: AL RAWASI | G30: Road base | H30: 77.2 | I30: 16.65 | J30: 1285.38 | L30: 300 | M30: 420.5 | Q30: 0 | R30: 75 | S30: فاريندر (بورى)
A31: =IF(B31="","",MAX($A$1:A30)+1) -> 30 | B31: 2019-03-14 | C31: 40223 | D31: 142793 | E31: MAFRAQ | F31: AL FUTTAIM | G31: Road base | H31: 78.12 | I31: 16 | J31: 1249.92 | M31: 420.5 | P31: 550 | Q31: 0 | R31: 160 | S31: فاريندر (بورى)
A32: =IF(B32="","",MAX($A$1:A31)+1) -> 31 | B32: 2019-03-15 | C32: 40223 | D32: 142819 | E32: AL QUOZ | F32: AL FUTTAIM | G32: Road base | H32: 77.92 | I32: 7.7 | J32: 599.984 | M32: 420.5 | P32: 550 | Q32: 0 | R32: 70 | S32: فاريندر (بورى)
A33: =IF(B33="","",MAX($A$1:A32)+1) -> 32 | B33: 2019-03-16 | C33: 40223 | D33: 2216043 | E33: Cement Factory | F33: AL RAWASI | G33: Road base | H33: 82.44 | I33: 16.65 | J33: 1372.626 | L33: 300 | Q33: 0 | R33: 100 | S33: فاريندر (بورى) | T33: National
A34: =IF(B34="","",MAX($A$1:A33)+1) -> 33 | B34: 2019-03-16 | C34: 40223 | D34: 142874 | E34: JEBEL ALI | F34: AL FUTTAIM | G34: Road base | H34: 74.86 | I34: 8.75 | J34: 655.025 | M34: 420.5 | P34: 550 | Q34: 0 | R34: 80 | S34: فاريندر (بورى)
A35: =IF(B35="","",MAX($A$1:A34)+1) -> 34 | B35: 2019-03-16 | C35: 40223 | D35: 142934 | E35: MAFRAQ | F35: AL FUTTAIM | G35: Road base | H35: 78.52 | I35: 16 | J35: 1256.32 | M35: 420.5 | P35: 550 | Q35: 0 | R35: 160 | S35: فاريندر (بورى)
A36: =IF(B36="","",MAX($A$1:A35)+1) -> 35 | B36: 2019-03-17 | C36: 40223 | D36: 902719 | E36: DUCON | F36: AL BARRAK | G36: Road base | H36: 80.64 | I36: 21.97 | J36: 1771.6608 | K36: 570 | M36: 420.5 | Q36: 0 | R36: 80 | S36: فاريندر (بورى)
A37: =IF(B37="","",MAX($A$1:A36)+1) -> 36 | B37: 2019-03-18 | C37: 40223 | D37: 2216384 | E37: Cement Factory | F37: AL RAWASI | G37: Road base | H37: 79.8 | I37: 16.65 | J37: 1328.67 | L37: 300 | Q37: 0 | R37: 75 | S37: فاريندر (بورى)
A38: =IF(B38="","",MAX($A$1:A37)+1) ->  | C38: 40223 | E38: MAFRAQ | F38: AL FUTTAIM | G38: Road base | Q38: 0 | R38: 160 | S38: فاريندر (بورى)
A39: =IF(B39="","",MAX($A$1:A38)+1) ->  | C39: 40223 | E39: AL QUOZ | F39: AL FUTTAIM | G39: Road base | Q39: 0 | R39: 70 | S39: فاريندر (بورى)
A40: =IF(B40="","",MAX($A$1:A39)+1) ->  | C40: 40223 | E40: MAFRAQ | F40: AL FUTTAIM | G40: Road base | Q40: 0 | R40: 160 | S40: فاريندر (بورى)
A41: =IF(B41="","",MAX($A$1:A40)+1) ->  | C41: 40223 | E41: AL QUOZ | F41: AL FUTTAIM | G41: Road base | Q41: 0 | R41: 70 | S41: فاريندر (بورى)
A42: =IF(B42="","",MAX($A$1:A41)+1) ->  | C42: 40223 | E42: MADAM | F42: AL RAWDA | G42: Road base | Q42: 0 | R42: 80 | S42: فاريندر (بورى)
A43: =IF(B43="","",MAX($A$1:A42)+1) ->  | C43: 40223 | E43: MADAM | F43: AL RAWDA | G43: Road base | Q43: 0 | R43: 80 | S43: فاريندر (بورى)
A44: =IF(B44="","",MAX($A$1:A43)+1) ->  | C44: 40223 | E44: DUBAI | F44: CENTRAL | G44: Road base | Q44: 0 | S44: فاريندر (بورى)
A45: =IF(B45="","",MAX($A$1:A44)+1) ->  | C45: 40223 | E45: Cement Factory | F45: AL RAWASI | G45: Road base | Q45: 0 | S45: فاريندر (بورى)
A46: =IF(B46="","",MAX($A$1:A45)+1) ->  | C46: 40223 | E46: Cement Factory | F46: AL RAWASI | G46: Road base | Q46: 0 | S46: فاريندر (بورى)
A47: =IF(B47="","",MAX($A$1:A46)+1) ->  | C47: 40223 | E47: Cement Factory | F47: AL RAWASI | G47: Road base | Q47: 0 | S47: فاريندر (بورى)
A48: =IF(B48="","",MAX($A$1:A47)+1) ->  | C48: 40223 | E48: DUCON | F48: AL KAWTHER | G48: Road base | Q48: 0 | S48: فاريندر (بورى)
A49: =IF(B49="","",MAX($A$1:A48)+1) ->  | C49: 40223 | E49: DUBAI | F49: CENTRAL | G49: Road base | Q49: 0 | S49: فاريندر (بورى)
A50: =IF(B50="","",MAX($A$1:A49)+1) ->  | C50: 40223 | E50: Cement Factory | F50: AL RAWASI | G50: Road base | Q50: 0 | S50: فاريندر (بورى)
A51: =IF(B51="","",MAX($A$1:A50)+1) ->  | C51: 40223 | E51: Cement Factory | F51: AL RAWASI | G51: Road base | Q51: 0 | S51: فاريندر (بورى)
A52: =IF(B52="","",MAX($A$1:A51)+1) ->  | C52: 40223 | E52: Cement Factory | F52: AL RAWASI | G52: Road base | Q52: 0 | S52: فاريندر (بورى)
A53: =IF(B53="","",MAX($A$1:A52)+1) ->  | C53: 40223 | E53: DUCON | F53: AL KAWTHER | G53: Road base | Q53: 0 | S53: فاريندر (بورى)
A54: =IF(B54="","",MAX($A$1:A53)+1) ->  | C54: 40223 | E54: Cement Factory | F54: AL RAWASI | G54: Road base | Q54: 0 | S54: فاريندر (بورى)
A55: =IF(B55="","",MAX($A$1:A54)+1) ->  | C55: 40223 | E55: Cement Factory | F55: AL RAWASI | G55: Road base | Q55: 0 | S55: فاريندر (بورى)
A56: =IF(B56="","",MAX($A$1:A55)+1) ->  | C56: 40223 | E56: DUCON | F56: AL KAWTHER | G56: Road base | Q56: 0 | S56: فاريندر (بورى)
A57: =IF(B57="","",MAX($A$1:A56)+1) ->  | C57: 40223 | E57: Cement Factory | F57: AL RAWASI | G57: Road base | Q57: 0 | S57: فاريندر (بورى)
A58: =IF(B58="","",MAX($A$1:A57)+1) ->  | C58: 40223 | E58: Cement Factory | F58: AL RAWASI | G58: Road base | Q58: 0 | S58: فاريندر (بورى)
A59: =IF(B59="","",MAX($A$1:A58)+1) ->  | C59: 40223 | E59: Cement Factory | F59: AL RAWASI | G59: Road base | Q59: 0 | S59: فاريندر (بورى)
A60: =IF(B60="","",MAX($A$1:A59)+1) ->  | C60: 40223 | E60: DUBAI | F60: CENTRAL | G60: Road base | Q60: 0 | S60: فاريندر (بورى)
A61: =IF(B61="","",MAX($A$1:A60)+1) ->  | C61: 40223 | E61: Cement Factory | F61: AL RAWASI | G61: Road base | Q61: 0 | S61: فاريندر (بورى)
A62: =IF(B62="","",MAX($A$1:A61)+1) ->  | C62: 40223 | E62: Cement Factory | F62: AL RAWASI | G62: Road base | Q62: 0 | S62: فاريندر (بورى)
A63: =IF(B63="","",MAX($A$1:A62)+1) ->  | C63: 40223 | E63: Cement Factory | F63: AL NAKHEEL | G63: Road base | Q63: 0 | S63: فاريندر (بورى)
A64: =IF(B64="","",MAX($A$1:A63)+1) ->  | C64: 40223 | E64: Cement Factory | F64: AL RAWASI | G64: Road base | Q64: 0 | S64: فاريندر (بورى)
A65: =IF(B65="","",MAX($A$1:A64)+1) ->  | C65: 40223 | E65: DUCON | F65: AL KAWTHER | G65: Road base | Q65: 0 | S65: فاريندر (بورى)
A66: =IF(B66="","",MAX($A$1:A65)+1) ->  | C66: 40223 | E66: DUCON | F66: AL KAWTHER | G66: Road base | I66: =IF(B66="","",(IF(AND(F66="RIDI SIDI"),"16.65",IF(AND(F66="CENTRAL",E66="DUBAI"),"19",IF(AND(F66="CENTRAL",E66="JEBEL ALI"),"21",IF(AND(F66="AL RAWASI"),"16.65",IF(AND(F66="AL NAKHEEL"),"16.65",IF(AND(F66="WB"),"22.60",IF(AND(F66="AL BARRAK",E66="DUCON"),"21.97",IF(AND(F66="AL KAWTHER",E66="DUCON"),"21.97",IF(AND(F66="AL KAWTHER"),"22.5",IF(AND(F66="AL FUTTAIM",E66="JEBEL ALI"),"8.75",IF(AND(F66="AL FUTTAIM",E66="MAFRAQ"),"16",IF(AND(F66="AL FUTTAIM",E66="AL QUOZ"),"7.70",IF(AND(F66="AL FUTTAIM",E66="MUSSAFAH"),"16.90",IF(AND(F66="AL FUTTAIM",E66="NAD AL SHEBA"),"8.50",IF(AND(F66="AL FUTTAIM",E66="MAHAWI"),"16.90",IF(AND(F66="AL RAWDA",E66="MADAM"),"24.50",)))))))))))))))))*1) ->  | Q66: 0 | S66: فاريندر (بورى) | T66: =IF(OR(R66=100,R66=115),"National","") -> 
A67: =IF(B67="","",MAX($A$1:A66)+1) ->  | C67: 40223 | E67: Cement Factory | F67: AL RAWASI | G67: Road base | J67: =IF(B67="","",I67*H67) ->  | Q67: 0 | S67: فاريندر (بورى)
A68: =IF(B68="","",MAX($A$1:A67)+1) ->  | C68: 40223 | E68: Cement Factory | F68: AL RAWASI | G68: Road base | Q68: 0 | S68: فاريندر (بورى)
A69: =IF(B69="","",MAX($A$1:A68)+1) ->  | C69: 40223 | E69: DUCON | F69: AL KAWTHER | G69: Road base | Q69: 0 | S69: فاريندر (بورى)
A70: =IF(B70="","",MAX($A$1:A69)+1) ->  | C70: 40223 | E70: Cement Factory | F70: AL RAWASI | G70: Road base | Q70: 0 | S70: فاريندر (بورى)
A71: =IF(B71="","",MAX($A$1:A70)+1) ->  | C71: 40223 | E71: DUBAI | F71: CENTRAL | G71: Road base | Q71: 0 | S71: فاريندر (بورى)
A72: =IF(B72="","",MAX($A$1:A71)+1) ->  | C72: 40223 | E72: Cement Factory | F72: AL RAWASI | G72: Road base | Q72: 0 | S72: فاريندر (بورى)
A73: =IF(B73="","",MAX($A$1:A72)+1) ->  | C73: 40223 | E73: Cement Factory | F73: AL RAWASI | G73: Road base | Q73: 0 | S73: فاريندر (بورى)
B74: =SUBTOTAL(2,B2:B73) -> 36 | D74: =SUBTOTAL(2,B2:B73) -> 36 | H74: =SUBTOTAL(9,H2:H73) -> 2807.24 | I74: 489.54 | J74: 38306.43 | K74: 1070 | L74: 2400 | M74: 13035.5 | N74: 0 | O74: 0 | P74: 14300 | Q74: 0 | R74: 4580 | T74: =IF(R74=100,"National","") -> 
K75: =SUBTOTAL(2,K2:K73) -> 2 | L75: 8 | M75: 31 | N75: 0 | O75: 0 | P75: 26 | Q75: 8.446 | R75: =R74-35 -> 4545
Q76: =Q74*Q75 -> 0
J79: كامل المصاريف
J80: الديزل | L80: =Q74 -> 0
C81: وارد السيارة | E81: =J74 -> 38306.43 | J81: الاطارات | L81: 0
C82: كامل المصاريف | E82: =L87 -> 40409.43 | J82: تكت | L82: =SUM(K74:P74) -> 30805.5
C83: الصافي | E83: =E81-E82 -> -2103 | J83: قطع غيار
J84: راتب السائق | L84: =R74 -> 4580
J85: فواتير متفرقة | L85: 5023.93
J86: رسوم تصريح /9
J87: الاجمالي | L87: =SUM(L80:M86) -> 40409.43

Sheet 40224
A1: م | B1: DATE التاريخ | C1: NO TRUCK رقم السيارة | D1: NO TICKET رقم الفاتورة | E1: DESTINATION الموقع | F1: CRUCHER الكسارة | G1: MATERIAL المادة | H1: NETWET الوزن | I1: RATE سعر الطن | J1: TOTAL الاجمالى | K1: FUJ ت/فجيرة | L1: SAEEDY ت/ساعدي | M1: DHAID ت/الذيد | N1: ZUBAIR ت/الزبير | O1: ALGHAIL ت/الغيل | P1: KADRAA ت/كدرة | Q1: DIESEL الديزل | R1: SALARY الراتب | S1: NAME DRIVER اسم السائق | T1: NOTICE ملاحظات
A2: =IF(B2="","",MAX($A$1:A1)+1) -> 1 | B2: 2019-03-01 | C2: 40224 | D2: 141342 | E2: MUSSAFAH | F2: AL FUTTAIM | G2: Road base | H2: 81.04 | I2: =IF(B2="","",(IF(AND(F2="RIDI SIDI"),"16.65",IF(AND(F2="CENTRAL",E2="DUBAI"),"19",IF(AND(F2="CENTRAL",E2="JEBEL ALI"),"21",IF(AND(F2="AL RAWASI"),"16.65",IF(AND(F2="AL NAKHEEL"),"16.65",IF(AND(F2="WB"),"22.60",IF(AND(F2="AL BARRAK",E2="DUCON"),"21.97",IF(AND(F2="AL KAWTHER",E2="DUCON"),"21.97",IF(AND(F2="AL KAWTHER"),"22.5",IF(AND(F2="AL FUTTAIM",E2="JEBEL ALI"),"8.75",IF(AND(F2="AL FUTTAIM",E2="MAFRAQ"),"16",IF(AND(F2="AL FUTTAIM",E2="AL QUOZ"),"7.70",IF(AND(F2="AL FUTTAIM",E2="MUSSAFAH"),"16.90",IF(AND(F2="AL FUTTAIM",E2="NAD AL SHEBA"),"8.50",IF(AND(F2="AL FUTTAIM",E2="MAHAWI"),"16.90",IF(AND(F2="AL RAWDA",E2="MADAM"),"24.50",)))))))))))))))))*1) -> 16.9 | J2: =IF(B2="","",I2*H2) -> 1369.576 | M2: 420.5 | P2: 550 | Q2: 0 | R2: 180 | S2: مهندس (جورجيندر) | T2: =IF(OR(R2=100,R2=115),"National","") -> 
A3: =IF(B3="","",MAX($A$1:A2)+1) -> 2 | B3: 2019-03-02 | C3: 40224 | D3: 141415 | E3: MAFRAQ | F3: AL FUTTAIM | G3: Road base | H3: 77.92 | I3: 16 | J3: 1246.72 | M3: 420.5 | P3: 550 | Q3: 0 | R3: 160 | S3: مهندس (جورجيندر)
A4: =IF(B4="","",MAX($A$1:A3)+1) -> 3 | B4: 2019-03-02 | C4: 40224 | D4: 141381 | E4: AL QUOZ | F4: AL FUTTAIM | G4: Road base | H4: 77 | I4: 7.7 | J4: 592.9 | M4: 420.5 | P4: 550 | Q4: 0 | R4: 70 | S4: مهندس (جورجيندر)
A5: =IF(B5="","",MAX($A$1:A4)+1) -> 4 | B5: 2019-03-03 | C5: 40224 | D5: 141528 | E5: MAFRAQ | F5: AL FUTTAIM | G5: Road base | H5: 79.54 | I5: 16 | J5: 1272.64 | M5: 420.5 | P5: 550 | Q5: 0 | R5: 160 | S5: مهندس (جورجيندر)
A6: =IF(B6="","",MAX($A$1:A5)+1) -> 5 | B6: 2019-03-03 | C6: 40224 | D6: 899839 | E6: DUCON | F6: AL BARRAK | G6: Road base | H6: 71.48 | I6: 21.97 | J6: 1570.4156 | K6: 500 | M6: 420.5 | Q6: 0 | R6: 90 | S6: مهندس (جورجيندر)
A7: =IF(B7="","",MAX($A$1:A6)+1) -> 6 | B7: 2019-03-04 | C7: 40224 | D7: 141643 | E7: MAFRAQ | F7: AL FUTTAIM | G7: Road base | H7: 77.12 | I7: 16 | J7: 1233.92 | M7: 420.5 | P7: 550 | Q7: 0 | R7: 160 | S7: مهندس (جورجيندر)
A8: =IF(B8="","",MAX($A$1:A7)+1) -> 7 | B8: 2019-03-04 | C8: 40224 | D8: 141588 | E8: JEBEL ALI | F8: AL FUTTAIM | G8: Road base | H8: 78.24 | I8: 8.75 | J8: 684.6 | M8: 420.5 | P8: 550 | Q8: 0 | R8: 80 | S8: مهندس (جورجيندر)
A9: =IF(B9="","",MAX($A$1:A8)+1) -> 8 | B9: 2019-03-05 | C9: 40224 | D9: 141687 | E9: AL QUOZ | F9: AL FUTTAIM | G9: Road base | H9: 74.18 | I9: 7.7 | J9: 571.186 | M9: 420.5 | P9: 550 | Q9: 0 | R9: 70 | S9: مهندس (جورجيندر)
A10: =IF(B10="","",MAX($A$1:A9)+1) -> 9 | B10: 2019-03-06 | C10: 40224 | D10: 2214124 | E10: Cement Factory | F10: AL RAWASI | G10: Road base | H10: 83.74 | I10: 16.65 | J10: 1394.271 | L10: 300 | M10: 420.5 | Q10: 0 | R10: 75 | S10: مهندس (جورجيندر)
A11: =IF(B11="","",MAX($A$1:A10)+1) -> 10 | B11: 2019-03-06 | C11: 40224 | D11: 2214210 | E11: Cement Factory | F11: AL RAWASI | G11: Road base | H11: 82.82 | I11: 16.65 | J11: 1378.953 | L11: 300 | M11: 420.5 | Q11: 0 | R11: 75 | S11: مهندس (جورجيندر)
A12: =IF(B12="","",MAX($A$1:A11)+1) -> 11 | B12: 2019-03-06 | C12: 40224 | D12: 2214281 | E12: Cement Factory | F12: AL RAWASI | G12: Road base | H12: 85 | I12: 16.65 | J12: 1415.25 | L12: 300 | M12: 420.5 | Q12: 0 | R12: 75 | S12: مهندس (جورجيندر)
A13: =IF(B13="","",MAX($A$1:A12)+1) -> 12 | B13: 2019-03-07 | C13: 40224 | D13: 2214317 | E13: Cement Factory | F13: AL RAWASI | G13: Road base | H13: 84.46 | I13: 16.65 | J13: 1406.259 | L13: 300 | Q13: 0 | R13: 100 | S13: مهندس (جورجيندر) | T13: National
A14: =IF(B14="","",MAX($A$1:A13)+1) -> 13 | B14: 2019-03-07 | C14: 40224 | D14: 141891 | E14: AL QUOZ | F14: AL FUTTAIM | G14: Road base | H14: 75.3 | I14: 7.7 | J14: 579.81 | M14: 420.5 | P14: 550 | Q14: 0 | R14: 70 | S14: مهندس (جورجيندر)
A15: =IF(B15="","",MAX($A$1:A14)+1) -> 14 | B15: 2019-03-07 | C15: 40224 | D15: 141843 | E15: JEBEL ALI | F15: AL FUTTAIM | G15: Road base | H15: 75.58 | I15: 8.75 | J15: 661.325 | M15: 420.5 | P15: 550 | Q15: 0 | R15: 80 | S15: مهندس (جورجيندر)
A16: =IF(B16="","",MAX($A$1:A15)+1) -> 15 | B16: 2019-03-08 | C16: 40224 | D16: 2214557 | E16: Cement Factory | F16: AL RAWASI | G16: Road base | H16: 87.64 | I16: 16.65 | J16: 1459.206 | L16: 300 | Q16: 0 | R16: 100 | S16: مهندس (جورجيندر) | T16: National
A17: =IF(B17="","",MAX($A$1:A16)+1) -> 16 | B17: 2019-03-08 | C17: 40224 | D17: 2214765 | E17: Cement Factory | F17: AL RAWASI | G17: Road base | H17: 86.14 | I17: 16.65 | J17: 1434.231 | L17: 300 | M17: 420.5 | Q17: 0 | R17: 75 | S17: مهندس (جورجيندر)
A18: =IF(B18="","",MAX($A$1:A17)+1) -> 17 | B18: 2019-03-08 | C18: 40224 | D18: 2214684 | E18: Cement Factory | F18: AL RAWASI | G18: Road base | H18: 82.68 | I18: 16.65 | J18: 1376.622 | L18: 300 | M18: 420.5 | Q18: 0 | R18: 75 | S18: مهندس (جورجيندر)
A19: =IF(B19="","",MAX($A$1:A18)+1) -> 18 | B19: 2019-03-08 | C19: 40224 | D19: 141999 | E19: MAFRAQ | F19: AL FUTTAIM | G19: Road base | H19: 78.72 | I19: 16 | J19: 1259.52 | M19: 420.5 | P19: 550 | Q19: 0 | R19: 160 | S19: مهندس (جورجيندر)
A20: =IF(B20="","",MAX($A$1:A19)+1) -> 19 | B20: 2019-03-09 | C20: 40224 | D20: 142137 | E20: MUSSAFAH | F20: AL FUTTAIM | G20: Road base | H20: 79.3 | I20: 16.9 | J20: 1340.17 | M20: 420.5 | P20: 550 | Q20: 0 | R20: 180 | S20: مهندس (جورجيندر)
A21: =IF(B21="","",MAX($A$1:A20)+1) -> 20 | B21: 2019-03-09 | C21: 40224 | D21: 900991 | E21: DUCON | F21: AL BARRAK | G21: Road base | H21: 70.44 | I21: 21.97 | J21: 1547.5668 | K21: 490 | M21: 420.5 | Q21: 0 | R21: 90 | S21: مهندس (جورجيندر)
A22: =IF(B22="","",MAX($A$1:A21)+1) -> 21 | B22: 2019-03-10 | C22: 40224 | D22: 142216 | E22: AL QUOZ | F22: AL FUTTAIM | G22: Road base | H22: 76.06 | I22: 7.7 | J22: 585.662 | M22: 420.5 | P22: 550 | Q22: 0 | R22: 70 | S22: مهندس (جورجيندر)
A23: =IF(B23="","",MAX($A$1:A22)+1) -> 22 | B23: 2019-03-11 | C23: 40224 | D23: 2215256 | E23: Cement Factory | F23: AL RAWASI | G23: Road base | H23: 84.88 | I23: 16.65 | J23: 1413.252 | L23: 300 | Q23: 0 | R23: 100 | S23: مهندس (جورجيندر) | T23: National
A24: =IF(B24="","",MAX($A$1:A23)+1) -> 23 | B24: 2019-03-11 | C24: 40224 | D24: 2215406 | E24: Cement Factory | F24: AL RAWASI | G24: Road base | H24: 84.44 | I24: 16.65 | J24: 1405.926 | L24: 300 | M24: 420.5 | Q24: 0 | R24: 75 | S24: مهندس (جورجيندر)
A25: =IF(B25="","",MAX($A$1:A24)+1) -> 24 | B25: 2019-03-11 | C25: 40224 | D25: 2215322 | E25: Cement Factory | F25: AL RAWASI | G25: Road base | H25: 82.14 | I25: 16.65 | J25: 1367.631 | L25: 300 | M25: 420.5 | Q25: 0 | R25: 75 | S25: مهندس (جورجيندر)
A26: =IF(B26="","",MAX($A$1:A25)+1) -> 25 | B26: 2019-03-12 | C26: 40224 | D26: 2215475 | E26: Cement Factory | F26: AL RAWASI | G26: Road base | H26: 81 | I26: 16.65 | J26: 1348.65 | L26: 300 | Q26: 0 | R26: 100 | S26: مهندس (جورجيندر) | T26: National
A27: =IF(B27="","",MAX($A$1:A26)+1) -> 26 | B27: 2019-03-12 | C27: 40224 | D27: 142498 | E27: MAFRAQ | F27: AL FUTTAIM | G27: Road base | H27: 73.72 | I27: 16 | J27: 1179.52 | M27: 420.5 | P27: 550 | Q27: 0 | R27: 160 | S27: مهندس (جورجيندر)
A28: =IF(B28="","",MAX($A$1:A27)+1) -> 27 | B28: 2019-03-12 | C28: 40224 | D28: 142415 | E28: AL QUOZ | F28: AL FUTTAIM | G28: Road base | H28: 75.34 | I28: 7.7 | J28: 580.118 | M28: 420.5 | P28: 550 | Q28: 0 | R28: 70 | S28: مهندس (جورجيندر)
A29: =IF(B29="","",MAX($A$1:A28)+1) -> 28 | B29: 2019-03-13 | C29: 40224 | D29: 142643 | E29: JEBEL ALI | F29: AL FUTTAIM | G29: Road base | H29: 79.08 | I29: 8.75 | J29: 691.95 | M29: 420.5 | P29: 550 | Q29: 0 | R29: 80 | S29: مهندس (جورجيندر)
A30: =IF(B30="","",MAX($A$1:A29)+1) -> 29 | B30: 2019-03-13 | C30: 40224 | D30: 142572 | E30: AL QUOZ | F30: AL FUTTAIM | G30: Road base | H30: 76.14 | I30: 7.7 | J30: 586.278 | M30: 420.5 | P30: 550 | Q30: 0 | R30: 70 | S30: مهندس (جورجيندر)
A31: =IF(B31="","",MAX($A$1:A30)+1) -> 30 | B31: 2019-03-14 | C31: 40224 | D31: 2215682 | E31: Cement Factory | F31: AL RAWASI | G31: Road base | H31: 85.56 | I31: 16.65 | J31: 1424.574 | L31: 300 | M31: 420.5 | Q31: 0 | R31: 75 | S31: مهندس (جورجيندر)
A32: =IF(B32="","",MAX($A$1:A31)+1) -> 31 | B32: 2019-03-14 | C32: 40224 | D32: 142708 | E32: AL QUOZ | F32: AL FUTTAIM | G32: Road base | H32: 77.6 | I32: 7.7 | J32: 597.52 | M32: 420.5 | P32: 550 | Q32: 0 | R32: 70 | S32: مهندس (جورجيندر)
A33: =IF(B33="","",MAX($A$1:A32)+1) -> 32 | B33: 2019-03-15 | C33: 40224 | D33: 2215752 | E33: Cement Factory | F33: AL RAWASI | G33: Road base | H33: 81.86 | I33: 16.65 | J33: 1362.969 | L33: 300 | Q33: 0 | R33: 100 | S33: مهندس (جورجيندر) | T33: National
A34: =IF(B34="","",MAX($A$1:A33)+1) -> 33 | B34: 2019-03-15 | C34: 40224 | D34: 142807 | E34: AL QUOZ | F34: AL FUTTAIM | G34: Road base | H34: 78.14 | I34: 7.7 | J34: 601.678 | M34: 420.5 | P34: 550 | Q34: 0 | R34: 70 | S34: مهندس (جورجيندر)
A35: =IF(B35="","",MAX($A$1:A34)+1) -> 34 | B35: 2019-03-16 | C35: 40224 | D35: 2216005 | E35: Cement Factory | F35: AL RAWASI | G35: Road base | H35: 84.52 | I35: 16.65 | J35: 1407.258 | L35: 300 | Q35: 0 | R35: 100 | S35: مهندس (جورجيندر) | T35: National
A36: =IF(B36="","",MAX($A$1:A35)+1) -> 35 | B36: 2019-03-16 | C36: 40224 | D36: 142871 | E36: JEBEL ALI | F36: AL FUTTAIM | G36: Road base | H36: 79.9 | I36: 8.75 | J36: 699.125 | M36: 420.5 | P36: 550 | Q36: 0 | R36: 80 | S36: مهندس (جورجيندر)
A37: =IF(B37="","",MAX($A$1:A36)+1) -> 36 | B37: 2019-03-16 | C37: 40224 | D37: 142923 | E37: MAFRAQ | F37: AL FUTTAIM | G37: Road base | H37: 78.96 | I37: 16 | J37: 1263.36 | M37: 420.5 | P37: 550 | Q37: 0 | R37: 160 | S37: مهندس (جورجيندر)
A38: =IF(B38="","",MAX($A$1:A37)+1) -> 37 | B38: 2019-03-17 | C38: 40224 | D38: 902709 | E38: DUCON | F38: AL BARRAK | G38: Road base | H38: 83.66 | I38: 21.97 | J38: 1838.0102 | K38: 590 | M38: 420.5 | Q38: 0 | R38: 80 | S38: مهندس (جورجيندر)
A39: =IF(B39="","",MAX($A$1:A38)+1) -> 38 | B39: 2019-03-18 | C39: 40224 | D39: 22163545 | E39: Cement Factory | F39: AL RAWASI | G39: Road base | H39: 77.96 | I39: 16.65 | J39: 1298.034 | L39: 300 | Q39: 0 | R39: 100 | S39: مهندس (جورجيندر) | T39: National
A40: =IF(B40="","",MAX($A$1:A39)+1) ->  | C40: 40224 | E40: MAFRAQ | F40: AL FUTTAIM | G40: Road base | Q40: 0 | R40: 160 | S40: مهندس (جورجيندر)
A41: =IF(B41="","",MAX($A$1:A40)+1) ->  | C41: 40224 | E41: MAFRAQ | F41: AL FUTTAIM | G41: Road base | Q41: 0 | R41: 160 | S41: مهندس (جورجيندر)
A42: =IF(B42="","",MAX($A$1:A41)+1) ->  | C42: 40224 | E42: MAFRAQ | F42: AL FUTTAIM | G42: Road base | Q42: 0 | R42: 160 | S42: مهندس (جورجيندر)
A43: =IF(B43="","",MAX($A$1:A42)+1) ->  | C43: 40224 | E43: AL QUOZ | F43: AL FUTTAIM | G43: Road base | Q43: 0 | R43: 70 | S43: مهندس (جورجيندر)
A44: =IF(B44="","",MAX($A$1:A43)+1) ->  | C44: 40224 | E44: MADAM | F44: AL RAWDA | G44: Road base | Q44: 0 | R44: 80 | S44: مهندس (جورجيندر)
A45: =IF(B45="","",MAX($A$1:A44)+1) ->  | C45: 40224 | E45: MADAM | F45: AL RAWDA | G45: Road base | Q45: 0 | R45: 80 | S45: مهندس (جورجيندر)
A46: =IF(B46="","",MAX($A$1:A45)+1) ->  | C46: 40224 | E46: Cement Factory | F46: AL RAWASI | G46: Road base | Q46: 0 | S46: مهندس (جورجيندر)
A47: =IF(B47="","",MAX($A$1:A46)+1) ->  | C47: 40224 | E47: Cement Factory | F47: AL RAWASI | G47: Road base | Q47: 0 | S47: مهندس (جورجيندر)
A48: =IF(B48="","",MAX($A$1:A47)+1) ->  | C48: 40224 | E48: DUCON | F48: AL KAWTHER | G48: Road base | Q48: 0 | S48: مهندس (جورجيندر)
A49: =IF(B49="","",MAX($A$1:A48)+1) ->  | C49: 40224 | E49: DUCON | F49: AL KAWTHER | G49: Road base | Q49: 0 | S49: مهندس (جورجيندر)
A50: =IF(B50="","",MAX($A$1:A49)+1) ->  | C50: 40224 | E50: DUCON | F50: AL KAWTHER | G50: Road base | Q50: 0 | S50: مهندس (جورجيندر)
A51: =IF(B51="","",MAX($A$1:A50)+1) ->  | C51: 40224 | E51: Cement Factory | F51: AL RAWASI | G51: Road base | Q51: 0 | S51: مهندس (جورجيندر)
A52: =IF(B52="","",MAX($A$1:A51)+1) ->  | C52: 40224 | E52: Cement Factory | F52: AL RAWASI | G52: Road base | Q52: 0 | S52: مهندس (جورجيندر)
A53: =IF(B53="","",MAX($A$1:A52)+1) ->  | C53: 40224 | E53: Cement Factory | F53: AL NAKHEEL | G53: Road base | Q53: 0 | S53: مهندس (جورجيندر)
A54: =IF(B54="","",MAX($A$1:A53)+1) ->  | C54: 40224 | E54: DUCON | F54: AL KAWTHER | G54: Road base | Q54: 0 | S54: مهندس (جورجيندر)
A55: =IF(B55="","",MAX($A$1:A54)+1) ->  | C55: 40224 | E55: Cement Factory | F55: AL RAWASI | G55: Road base | Q55: 0 | S55: مهندس (جورجيندر)
A56: =IF(B56="","",MAX($A$1:A55)+1) ->  | C56: 40224 | E56: Cement Factory | F56: AL NAKHEEL | G56: Road base | Q56: 0 | S56: مهندس (جورجيندر)
A57: =IF(B57="","",MAX($A$1:A56)+1) ->  | C57: 40224 | E57: DUCON | F57: AL KAWTHER | G57: Road base | Q57: 0 | S57: مهندس (جورجيندر)
A58: =IF(B58="","",MAX($A$1:A57)+1) ->  | C58: 40224 | E58: Cement Factory | F58: AL RAWASI | G58: Road base | Q58: 0 | S58: مهندس (جورجيندر)
A59: =IF(B59="","",MAX($A$1:A58)+1) ->  | C59: 40224 | E59: Cement Factory | F59: AL RAWASI | G59: Road base | Q59: 0 | S59: مهندس (جورجيندر)
A60: =IF(B60="","",MAX($A$1:A59)+1) ->  | C60: 40224 | E60: Cement Factory | F60: AL RAWASI | G60: Road base | Q60: 0 | S60: مهندس (جورجيندر)
A61: =IF(B61="","",MAX($A$1:A60)+1) ->  | C61: 40224 | E61: DUBAI | F61: CENTRAL | G61: Road base | Q61: 0 | S61: مهندس (جورجيندر)
A62: =IF(B62="","",MAX($A$1:A61)+1) ->  | C62: 40224 | E62: DUCON | F62: AL KAWTHER | G62: Road base | Q62: 0 | S62: مهندس (جورجيندر)
A63: =IF(B63="","",MAX($A$1:A62)+1) ->  | C63: 40224 | E63: Cement Factory | F63: AL RAWASI | G63: Road base | Q63: 0 | S63: مهندس (جورجيندر)
A64: =IF(B64="","",MAX($A$1:A63)+1) ->  | C64: 40224 | E64: Cement Factory | F64: AL RAWASI | G64: Road base | Q64: 0 | S64: مهندس (جورجيندر)
A65: =IF(B65="","",MAX($A$1:A64)+1) ->  | C65: 40224 | E65: Cement Factory | F65: AL RAWASI | G65: Road base | Q65: 0 | S65: مهندس (جورجيندر)
A66: =IF(B66="","",MAX($A$1:A65)+1) ->  | C66: 40224 | E66: DUCON | F66: AL KAWTHER | G66: Road base | I66: =IF(B66="","",(IF(AND(F66="RIDI SIDI"),"16.65",IF(AND(F66="CENTRAL",E66="DUBAI"),"19",IF(AND(F66="CENTRAL",E66="JEBEL ALI"),"21",IF(AND(F66="AL RAWASI"),"16.65",IF(AND(F66="AL NAKHEEL"),"16.65",IF(AND(F66="WB"),"22.60",IF(AND(F66="AL BARRAK",E66="DUCON"),"21.97",IF(AND(F66="AL KAWTHER",E66="DUCON"),"21.97",IF(AND(F66="AL KAWTHER"),"22.5",IF(AND(F66="AL FUTTAIM",E66="JEBEL ALI"),"8.75",IF(AND(F66="AL FUTTAIM",E66="MAFRAQ"),"16",IF(AND(F66="AL FUTTAIM",E66="AL QUOZ"),"7.70",IF(AND(F66="AL FUTTAIM",E66="MUSSAFAH"),"16.90",IF(AND(F66="AL FUTTAIM",E66="NAD AL SHEBA"),"8.50",IF(AND(F66="AL FUTTAIM",E66="MAHAWI"),"16.90",IF(AND(F66="AL RAWDA",E66="MADAM"),"24.50",)))))))))))))))))*1) ->  | J66: =IF(B66="","",I66*H66) ->  | Q66: 0 | S66: مهندس (جورجيندر) | T66: =IF(OR(R66=100,R66=115),"National","") -> 
A67: =IF(B67="","",MAX($A$1:A66)+1) ->  | C67: 40224 | E67: DUCON | F67: AL KAWTHER | G67: Road base | Q67: 0 | S67: مهندس (جورجيندر)
A68: =IF(B68="","",MAX($A$1:A67)+1) ->  | C68: 40224 | E68: Cement Factory | F68: AL RAWASI | G68: Road base | Q68: 0 | S68: مهندس (جورجيندر)
A69: =IF(B69="","",MAX($A$1:A68)+1) ->  | C69: 40224 | E69: DUBAI | F69: CENTRAL | G69: Road base | Q69: 0 | S69: مهندس (جورجيندر)
A70: =IF(B70="","",MAX($A$1:A69)+1) ->  | C70: 40224 | E70: Cement Factory | F70: AL RAWASI | G70: Road base | Q70: 0 | S70: مهندس (جورجيندر)
A71: =IF(B71="","",MAX($A$1:A70)+1) ->  | C71: 40224 | E71: Cement Factory | F71: AL RAWASI | G71: Road base | Q71: 0 | S71: مهندس (جورجيندر)
A72: =IF(B72="","",MAX($A$1:A71)+1) ->  | C72: 40224 | E72: DUCON | F72: AL KAWTHER | G72: Road base | Q72: 0 | S72: مهندس (جورجيندر)
A73: =IF(B73="","",MAX($A$1:A72)+1) ->  | C73: 40224 | E73: Cement Factory | F73: AL RAWASI | G73: Road base | Q73: 0 | S73: مهندس (جورجيندر)
A74: =IF(B74="","",MAX($A$1:A73)+1) ->  | C74: 40224 | E74: Cement Factory | F74: AL RAWASI | G74: Road base | Q74: 0 | S74: مهندس (جورجيندر)
A75: =IF(B75="","",MAX($A$1:A74)+1) ->  | C75: 40224 | E75: Cement Factory | F75: AL RAWASI | G75: Road base | Q75: 0 | S75: مهندس (جورجيندر)
A76: =IF(B76="","",MAX($A$1:A75)+1) ->  | C76: 40224 | E76: Cement Factory | F76: AL RAWASI | G76: Road base | Q76: 0 | S76: مهندس (جورجيندر)
A77: =IF(B77="","",MAX($A$1:A76)+1) ->  | C77: 40224 | E77: DUBAI | F77: CENTRAL | G77: Road base | Q77: 0 | S77: مهندس (جورجيندر)
A78: =IF(B78="","",MAX($A$1:A77)+1) ->  | C78: 40224 | E78: DUCON | F78: AL BARRAK | G78: Road base | Q78: 0 | S78: مهندس (جورجيندر)
A79: =IF(B79="","",MAX($A$1:A78)+1) ->  | C79: 40224 | E79: DUCON | F79: AL BARRAK | G79: Road base | Q79: 0 | S79: مهندس (جورجيندر)
A80: =IF(B80="","",MAX($A$1:A79)+1) ->  | C80: 40224 | E80: AL QUOZ | F80: AL FUTTAIM | G80: Road base | Q80: 0 | S80: مهندس (جورجيندر)
A81: =IF(B81="","",MAX($A$1:A80)+1) ->  | C81: 40224 | E81: MAFRAQ | F81: AL FUTTAIM | G81: Road base | Q81: 0 | R81: 900 | S81: مهندس (جورجيندر)
B82: =SUBTOTAL(2,B2:B81) -> 38 | H82: =SUBTOTAL(9,H2:H81) -> 3029.3 | J82: =SUBTOTAL(9,J2:J81) -> 43446.6566 | K82: 1580 | L82: 4500 | M82: 13035.5 | N82: 0 | O82: 0 | P82: 11000 | Q82: 0 | R82: 5370 | T82: =IF(R82=100,"National","") -> 
K83: =SUBTOTAL(2,K2:K81) -> 3 | L83: =SUBTOTAL(2,L2:L81) -> 15 | M83: 31 | N83: 0 | O83: 0 | P83: 20 | Q83: 8.446
Q84: =Q82*Q83 -> 0
J87: كامل المصاريف
J88: الديزل | L88: =Q82 -> 0
C89: وارد السيارة | E89: =J82 -> 43446.6566 | J89: الاطارات | L89: 0 | Q89: تم خصم الضريبة من خلال المصاريف ولم يتم اضافتها على الوارد
C90: كامل المصاريف | E90: =L95 -> 40509.43 | J90: تكت | L90: =SUM(K82:P82) -> 30115.5
C91: الصافي | E91: =E89-E90 -> 2937.2266 | J91: قطع غيار
J92: راتب السائق | L92: =R82 -> 5370
J93: فواتير متفرقة | L93: 5023.93
J94: رسوم تصريح /9
J95: الاجمالي | L95: =SUM(L88:M94) -> 40509.43

Sheet 40225
A1: م | B1: DATE التاريخ | C1: NO TRUCK رقم السيارة | D1: NO TICKET رقم الفاتورة | E1: DESTINATION الموقع | F1: CRUCHER الكسارة | G1: MATERIAL المادة | H1: NETWET الوزن | I1: RATE سعر الطن | J1: TOTAL الاجمالى | K1: FUJ ت/فجيرة | L1: SAEEDY ت/ساعدي | M1: DHAID ت/الذيد | N1: ZUBAIR ت/الزبير | O1: ALGHAIL ت/الغيل | P1: KADRAA ت/كدرة | Q1: DIESEL الديزل | R1: SALARY الراتب | S1: NAME DRIVER اسم السائق | T1: NOTICE ملاحظات
A2: =IF(B2="","",MAX($A$1:A1)+1) -> 1 | B2: 2019-03-01 | C2: 40225 | D2: 141339 | E2: MUSSAFAH | F2: AL FUTTAIM | G2: Road base | H2: 75.54 | I2: =IF(B2="","",(IF(AND(F2="RIDI SIDI"),"16.65",IF(AND(F2="CENTRAL",E2="DUBAI"),"19",IF(AND(F2="CENTRAL",E2="JEBEL ALI"),"21",IF(AND(F2="AL RAWASI"),"16.65",IF(AND(F2="AL NAKHEEL"),"16.65",IF(AND(F2="WB"),"22.60",IF(AND(F2="AL BARRAK",E2="DUCON"),"21.97",IF(AND(F2="AL KAWTHER",E2="DUCON"),"21.97",IF(AND(F2="AL KAWTHER"),"22.5",IF(AND(F2="AL FUTTAIM",E2="JEBEL ALI"),"8.75",IF(AND(F2="AL FUTTAIM",E2="MAFRAQ"),"16",IF(AND(F2="AL FUTTAIM",E2="AL QUOZ"),"7.70",IF(AND(F2="AL FUTTAIM",E2="MUSSAFAH"),"16.90",IF(AND(F2="AL FUTTAIM",E2="NAD AL SHEBA"),"8.50",IF(AND(F2="AL FUTTAIM",E2="MAHAWI"),"16.90",IF(AND(F2="AL RAWDA",E2="MADAM"),"24.50",)))))))))))))))))*1) -> 16.9 | J2: =IF(B2="","",I2*H2) -> 1276.626 | M2: 420.5 | P2: 550 | Q2: 0 | R2: 180 | S2: هاربانس | T2: =IF(OR(R2=100,R2=115),"National","") -> 
A3: =IF(B3="","",MAX($A$1:A2)+1) -> 2 | B3: 2019-03-02 | C3: 40225 | D3: 141398 | E3: AL QUOZ | F3: AL FUTTAIM | G3: Road base | H3: 76.18 | I3: 7.7 | J3: 586.586 | M3: 420.5 | P3: 550 | Q3: 0 | R3: 70 | S3: هاربانس
A4: =IF(B4="","",MAX($A$1:A3)+1) -> 3 | B4: 2019-03-03 | C4: 40225 | D4: 141484 | E4: AL QUOZ | F4: AL FUTTAIM | G4: Road base | H4: 73.1 | I4: 7.7 | J4: 562.87 | M4: 420.5 | P4: 550 | Q4: 0 | R4: 70 | S4: هاربانس
A5: =IF(B5="","",MAX($A$1:A4)+1) -> 4 | B5: 2019-03-03 | C5: 40225 | D5: 141442 | E5: MUSSAFAH | F5: AL FUTTAIM | G5: Road base | H5: 80.86 | I5: 16.9 | J5: 1366.534 | M5: 420.5 | P5: 550 | Q5: 0 | R5: 180 | S5: هاربانس
A6: =IF(B6="","",MAX($A$1:A5)+1) -> 5 | B6: 2019-03-04 | C6: 40225 | D6: 141560 | E6: AL QUOZ | F6: AL FUTTAIM | G6: Road base | H6: 75.34 | I6: 7.7 | J6: 580.118 | M6: 420.5 | P6: 550 | Q6: 0 | R6: 70 | S6: هاربانس
A7: =IF(B7="","",MAX($A$1:A6)+1) -> 6 | B7: 2019-03-04 | C7: 40225 | D7: 141545 | E7: JEBEL ALI | F7: AL FUTTAIM | G7: Road base | H7: 79.18 | I7: 8.75 | J7: 692.825 | M7: 420.5 | P7: 550 | Q7: 0 | R7: 80 | S7: هاربانس
A8: =IF(B8="","",MAX($A$1:A7)+1) -> 7 | B8: 2019-03-04 | C8: 40225 | D8: 141612 | E8: JEBEL ALI | F8: AL FUTTAIM | G8: Road base | H8: 75.74 | I8: 8.75 | J8: 662.725 | M8: 420.5 | P8: 550 | Q8: 0 | R8: 80 | S8: هاربانس
A9: =IF(B9="","",MAX($A$1:A8)+1) -> 8 | B9: 2019-03-05 | C9: 40225 | D9: 141695 | E9: AL QUOZ | F9: AL FUTTAIM | G9: Road base | H9: 75.96 | I9: 7.7 | J9: 584.892 | M9: 420.5 | P9: 550 | Q9: 0 | R9: 70 | S9: هاربانس
A10: =IF(B10="","",MAX($A$1:A9)+1) -> 9 | B10: 2019-03-05 | C10: 40225 | D10: 141654 | E10: MAFRAQ | F10: AL FUTTAIM | G10: Road base | H10: 77.66 | I10: 16 | J10: 1242.56 | M10: 420.5 | P10: 550 | Q10: 0 | R10: 160 | S10: هاربانس
A11: =IF(B11="","",MAX($A$1:A10)+1) -> 10 | B11: 2019-03-06 | C11: 40225 | D11: 141745 | E11: MUSSAFAH | F11: AL FUTTAIM | G11: Road base | H11: 77.44 | I11: 16.9 | J11: 1308.736 | M11: 420.5 | P11: 550 | Q11: 0 | R11: 180 | S11: هاربانس
A12: =IF(B12="","",MAX($A$1:A11)+1) -> 11 | B12: 2019-03-06 | C12: 40225 | D12: 141788 | E12: AL QUOZ | F12: AL FUTTAIM | G12: Road base | H12: 76.36 | I12: 7.7 | J12: 587.972 | M12: 420.5 | P12: 550 | Q12: 0 | R12: 70 | S12: هاربانس
A13: =IF(B13="","",MAX($A$1:A12)+1) -> 12 | B13: 2019-03-07 | C13: 40225 | D13: 141838 | E13: MAFRAQ | F13: AL FUTTAIM | G13: Road base | H13: 73.92 | I13: 16 | J13: 1182.72 | M13: 420.5 | P13: 550 | Q13: 0 | R13: 160 | S13: هاربانس
A14: =IF(B14="","",MAX($A$1:A13)+1) -> 13 | B14: 2019-03-07 | C14: 40225 | D14: 141894 | E14: AL QUOZ | F14: AL FUTTAIM | G14: Road base | H14: 74.48 | I14: 7.7 | J14: 573.496 | M14: 420.5 | P14: 550 | Q14: 0 | R14: 70 | S14: هاربانس
A15: =IF(B15="","",MAX($A$1:A14)+1) -> 14 | B15: 2019-03-08 | C15: 40225 | D15: 2214600 | E15: Cement Factory | F15: AL RAWASI | G15: Road base | H15: 88.34 | I15: 16.65 | J15: 1470.861 | L15: 300 | Q15: 0 | R15: 100 | S15: هاربانس | T15: National
A16: =IF(B16="","",MAX($A$1:A15)+1) -> 15 | B16: 2019-03-08 | C16: 40225 | D16: 141956 | E16: MAFRAQ | F16: AL FUTTAIM | G16: Road base | H16: 78.5 | I16: 16 | J16: 1256 | M16: 420.5 | P16: 550 | Q16: 0 | R16: 160 | S16: هاربانس
A17: =IF(B17="","",MAX($A$1:A16)+1) -> 16 | B17: 2019-03-09 | C17: 40225 | D17: 2214868 | E17: Cement Factory | F17: AL RAWASI | G17: Road base | H17: 78.48 | I17: 16.65 | J17: 1306.692 | L17: 300 | M17: 420.5 | Q17: 0 | R17: 75 | S17: هاربانس
A18: =IF(B18="","",MAX($A$1:A17)+1) -> 17 | B18: 2019-03-09 | C18: 40225 | D18: 142034 | E18: MUSSAFAH | F18: AL FUTTAIM | G18: Road base | H18: 79.5 | I18: 16.9 | J18: 1343.55 | M18: 420.5 | P18: 550 | Q18: 0 | R18: 180 | S18: هاربانس
A19: =IF(B19="","",MAX($A$1:A18)+1) -> 18 | B19: 2019-03-09 | C19: 40225 | D19: 142090 | E19: AL QUOZ | F19: AL FUTTAIM | G19: Road base | H19: 78.04 | I19: 7.7 | J19: 600.908 | M19: 420.5 | P19: 550 | Q19: 0 | R19: 70 | S19: هاربانس
A20: =IF(B20="","",MAX($A$1:A19)+1) -> 19 | B20: 2019-03-10 | C20: 40225 | D20: 2215216 | E20: Cement Factory | F20: AL RAWASI | G20: Road base | H20: 78.08 | I20: 16.65 | J20: 1300.032 | L20: 300 | M20: 420.5 | Q20: 0 | R20: 75 | S20: هاربانس
A21: =IF(B21="","",MAX($A$1:A20)+1) -> 20 | B21: 2019-03-10 | C21: 40225 | D21: 142166 | E21: MUSSAFAH | F21: AL FUTTAIM | G21: Road base | H21: 75.14 | I21: 16.9 | J21: 1269.866 | M21: 420.5 | P21: 550 | Q21: 0 | R21: 180 | S21: هاربانس
A22: =IF(B22="","",MAX($A$1:A21)+1) -> 21 | B22: 2019-03-10 | C22: 40225 | D22: 142269 | E22: MUSSAFAH | F22: AL FUTTAIM | G22: Road base | H22: 76.28 | I22: 16.9 | J22: 1289.132 | M22: 420.5 | P22: 550 | Q22: 0 | R22: 180 | S22: هاربانس
A23: =IF(B23="","",MAX($A$1:A22)+1) -> 22 | B23: 2019-03-11 | C23: 40225 | D23: 901356 | E23: DUCON | F23: AL BARRAK | G23: Road base | H23: 73.9 | I23: 21.97 | J23: 1623.583 | K23: 520 | M23: 420.5 | Q23: 0 | R23: 90 | S23: هاربانس
A24: =IF(B24="","",MAX($A$1:A23)+1) -> 23 | B24: 2019-03-12 | C24: 40225 | D24: 2215472 | E24: Cement Factory | F24: AL RAWASI | G24: Road base | H24: 81.2 | I24: 16.65 | J24: 1351.98 | L24: 300 | Q24: 0 | R24: 100 | S24: هاربانس | T24: National
A25: =IF(B25="","",MAX($A$1:A24)+1) -> 24 | B25: 2019-03-12 | C25: 40225 | D25: 142473 | E25: AL QUOZ | F25: AL FUTTAIM | G25: Road base | H25: 78.9 | I25: 7.7 | J25: 607.53 | M25: 420.5 | P25: 550 | Q25: 0 | R25: 70 | S25: هاربانس
A26: =IF(B26="","",MAX($A$1:A25)+1) -> 25 | B26: 2019-03-13 | C26: 40225 | D26: 142629 | E26: AL QUOZ | F26: AL FUTTAIM | G26: Road base | H26: 76.6 | I26: 7.7 | J26: 589.82 | M26: 420.5 | P26: 550 | Q26: 0 | R26: 70 | S26: هاربانس
A27: =IF(B27="","",MAX($A$1:A26)+1) -> 26 | B27: 2019-03-13 | C27: 40225 | D27: 142539 | E27: MUSSAFAH | F27: AL FUTTAIM | G27: Road base | H27: 78.48 | I27: 16.9 | J27: 1326.312 | M27: 420.5 | P27: 550 | Q27: 0 | R27: 180 | S27: هاربانس
A28: =IF(B28="","",MAX($A$1:A27)+1) -> 27 | B28: 2019-03-14 | C28: 40225 | D28: 2215690 | E28: Cement Factory | F28: AL RAWASI | G28: Road base | H28: 85.84 | I28: 16.65 | J28: 1429.236 | L28: 300 | M28: 420.5 | Q28: 0 | R28: 75 | S28: هاربانس
A29: =IF(B29="","",MAX($A$1:A28)+1) -> 28 | B29: 2019-03-14 | C29: 40225 | D29: 142717 | E29: AL QUOZ | F29: AL FUTTAIM | G29: Road base | H29: 76.3 | I29: 7.7 | J29: 587.51 | M29: 420.5 | P29: 550 | Q29: 0 | R29: 70 | S29: هاربانس
A30: =IF(B30="","",MAX($A$1:A29)+1) -> 29 | B30: 2019-03-15 | C30: 40225 | D30: 142817 | E30: AL QUOZ | F30: AL FUTTAIM | G30: Road base | H30: 77.86 | I30: 7.7 | J30: 599.522 | M30: 420.5 | P30: 550 | Q30: 0 | R30: 70 | S30: هاربانس
A31: =IF(B31="","",MAX($A$1:A30)+1) -> 30 | B31: 2019-03-15 | C31: 40225 | D31: 142802 | E31: MAFRAQ | F31: AL FUTTAIM | G31: Road base | H31: 80.8 | I31: 16 | J31: 1292.8 | M31: 420.5 | P31: 550 | Q31: 0 | R31: 160 | S31: هاربانس
A32: =IF(B32="","",MAX($A$1:A31)+1) -> 31 | B32: 2019-03-16 | C32: 40225 | D32: 2216038 | E32: Cement Factory | F32: AL RAWASI | G32: Road base | H32: 87.08 | I32: 16.65 | J32: 1449.882 | L32: 300 | Q32: 0 | R32: 100 | S32: هاربانس | T32: National
A33: =IF(B33="","",MAX($A$1:A32)+1) -> 32 | B33: 2019-03-16 | C33: 40225 | D33: 142876 | E33: JEBEL ALI | F33: AL FUTTAIM | G33: Road base | H33: 75.9 | I33: 8.75 | J33: 664.125 | M33: 420.5 | P33: 550 | Q33: 0 | R33: 80 | S33: هاربانس
A34: =IF(B34="","",MAX($A$1:A33)+1) ->  | C34: 40225 | E34: MAFRAQ | F34: AL FUTTAIM | G34: Road base | Q34: 0 | R34: 160 | S34: هاربانس
A35: =IF(B35="","",MAX($A$1:A34)+1) ->  | C35: 40225 | E35: JEBEL ALI | F35: AL FUTTAIM | G35: Road base | Q35: 0 | R35: 80 | S35: هاربانس
A36: =IF(B36="","",MAX($A$1:A35)+1) ->  | C36: 40225 | E36: JEBEL ALI | F36: AL FUTTAIM | G36: Road base | Q36: 0 | R36: 80 | S36: هاربانس
A37: =IF(B37="","",MAX($A$1:A36)+1) ->  | C37: 40225 | E37: AL QUOZ | F37: AL FUTTAIM | G37: Road base | Q37: 0 | R37: 70 | S37: هاربانس
A38: =IF(B38="","",MAX($A$1:A37)+1) ->  | C38: 40225 | E38: AL QUOZ | F38: AL FUTTAIM | G38: Road base | Q38: 0 | R38: 70 | S38: هاربانس
A39: =IF(B39="","",MAX($A$1:A38)+1) ->  | C39: 40225 | E39: MAFRAQ | F39: AL FUTTAIM | G39: Road base | Q39: 0 | R39: 160 | S39: هاربانس
A40: =IF(B40="","",MAX($A$1:A39)+1) ->  | C40: 40225 | E40: AL QUOZ | F40: AL FUTTAIM | G40: Road base | Q40: 0 | R40: 70 | S40: هاربانس
A41: =IF(B41="","",MAX($A$1:A40)+1) ->  | C41: 40225 | E41: MAFRAQ | F41: AL FUTTAIM | G41: Road base | Q41: 0 | R41: 160 | S41: هاربانس
A42: =IF(B42="","",MAX($A$1:A41)+1) ->  | C42: 40225 | E42: AL QUOZ | F42: AL FUTTAIM | G42: Road base | Q42: 0 | R42: 70 | S42: هاربانس
A43: =IF(B43="","",MAX($A$1:A42)+1) ->  | C43: 40225 | E43: MADAM | F43: AL RAWDA | G43: Road base | Q43: 0 | R43: 80 | S43: هاربانس
A44: =IF(B44="","",MAX($A$1:A43)+1) ->  | C44: 40225 | E44: MADAM | F44: AL RAWDA | G44: Road base | Q44: 0 | R44: 80 | S44: هاربانس
A45: =IF(B45="","",MAX($A$1:A44)+1) ->  | C45: 40225 | E45: DUBAI | F45: CENTRAL | G45: Road base | Q45: 0 | S45: هاربانس
A46: =IF(B46="","",MAX($A$1:A45)+1) ->  | C46: 40225 | E46: Cement Factory | F46: AL RAWASI | G46: Road base | Q46: 0 | S46: هاربانس
A47: =IF(B47="","",MAX($A$1:A46)+1) ->  | C47: 40225 | E47: DUBAI | F47: CENTRAL | G47: Road base | Q47: 0 | S47: هاربانس
A48: =IF(B48="","",MAX($A$1:A47)+1) ->  | C48: 40225 | E48: Cement Factory | F48: AL RAWASI | G48: Road base | Q48: 0 | S48: هاربانس
A49: =IF(B49="","",MAX($A$1:A48)+1) ->  | C49: 40225 | E49: Cement Factory | F49: AL RAWASI | G49: Road base | Q49: 0 | S49: هاربانس
A50: =IF(B50="","",MAX($A$1:A49)+1) ->  | C50: 40225 | E50: Cement Factory | F50: AL RAWASI | G50: Road base | Q50: 0 | S50: هاربانس
A51: =IF(B51="","",MAX($A$1:A50)+1) ->  | C51: 40225 | E51: Cement Factory | F51: AL RAWASI | G51: Road base | Q51: 0 | S51: هاربانس
A52: =IF(B52="","",MAX($A$1:A51)+1) ->  | C52: 40225 | E52: DUCON | F52: AL KAWTHER | G52: Road base | Q52: 0 | S52: هاربانس
A53: =IF(B53="","",MAX($A$1:A52)+1) ->  | C53: 40225 | E53: DUBAI | F53: CENTRAL | G53: Road base | Q53: 0 | S53: هاربانس
A54: =IF(B54="","",MAX($A$1:A53)+1) ->  | C54: 40225 | E54: Cement Factory | F54: AL RAWASI | G54: Road base | Q54: 0 | S54: هاربانس
A55: =IF(B55="","",MAX($A$1:A54)+1) ->  | C55: 40225 | E55: Cement Factory | F55: AL RAWASI | G55: Road base | Q55: 0 | S55: هاربانس
A56: =IF(B56="","",MAX($A$1:A55)+1) ->  | C56: 40225 | E56: Cement Factory | F56: AL RAWASI | G56: Road base | Q56: 0 | S56: هاربانس
A57: =IF(B57="","",MAX($A$1:A56)+1) ->  | C57: 40225 | E57: DUCON | F57: AL KAWTHER | G57: Road base | Q57: 0 | S57: هاربانس
A58: =IF(B58="","",MAX($A$1:A57)+1) ->  | C58: 40225 | E58: MADAM | F58: AL RAWDA | G58: Road base | Q58: 0 | S58: هاربانس
A59: =IF(B59="","",MAX($A$1:A58)+1) ->  | C59: 40225 | E59: Cement Factory | F59: AL RAWASI | G59: Road base | Q59: 0 | S59: هاربانس
A60: =IF(B60="","",MAX($A$1:A59)+1) ->  | C60: 40225 | E60: Cement Factory | F60: AL RAWASI | G60: Road base | Q60: 0 | S60: هاربانس
A61: =IF(B61="","",MAX($A$1:A60)+1) ->  | C61: 40225 | E61: DUCON | F61: AL KAWTHER | G61: Road base | Q61: 0 | S61: هاربانس
A62: =IF(B62="","",MAX($A$1:A61)+1) ->  | C62: 40225 | E62: Cement Factory | F62: AL RAWASI | G62: Road base | Q62: 0 | S62: هاربانس
A63: =IF(B63="","",MAX($A$1:A62)+1) ->  | C63: 40225 | E63: Cement Factory | F63: AL RAWASI | G63: Road base | Q63: 0 | S63: هاربانس
A64: =IF(B64="","",MAX($A$1:A63)+1) ->  | C64: 40225 | E64: Cement Factory | F64: AL RAWASI | G64: Road base | Q64: 0 | S64: هاربانس
A65: =IF(B65="","",MAX($A$1:A64)+1) ->  | C65: 40225 | E65: DUBAI | F65: CENTRAL | G65: Road base | Q65: 0 | S65: هاربانس
A66: =IF(B66="","",MAX($A$1:A65)+1) ->  | C66: 40225 | E66: Cement Factory | F66: AL RAWASI | G66: Road base | I66: =IF(B66="","",(IF(AND(F66="RIDI SIDI"),"16.65",IF(AND(F66="CENTRAL",E66="DUBAI"),"19",IF(AND(F66="CENTRAL",E66="JEBEL ALI"),"21",IF(AND(F66="AL RAWASI"),"16.65",IF(AND(F66="AL NAKHEEL"),"16.65",IF(AND(F66="WB"),"22.60",IF(AND(F66="AL BARRAK",E66="DUCON"),"21.97",IF(AND(F66="AL KAWTHER",E66="DUCON"),"21.97",IF(AND(F66="AL KAWTHER"),"22.5",IF(AND(F66="AL FUTTAIM",E66="JEBEL ALI"),"8.75",IF(AND(F66="AL FUTTAIM",E66="MAFRAQ"),"16",IF(AND(F66="AL FUTTAIM",E66="AL QUOZ"),"7.70",IF(AND(F66="AL FUTTAIM",E66="MUSSAFAH"),"16.90",IF(AND(F66="AL FUTTAIM",E66="NAD AL SHEBA"),"8.50",IF(AND(F66="AL FUTTAIM",E66="MAHAWI"),"16.90",IF(AND(F66="AL RAWDA",E66="MADAM"),"24.50",)))))))))))))))))*1) ->  | J66: =IF(B66="","",I66*H66) ->  | Q66: 0 | S66: هاربانس | T66: =IF(OR(R66=100,R66=115),"National","") -> 
A67: =IF(B67="","",MAX($A$1:A66)+1) ->  | C67: 40225 | E67: Cement Factory | F67: AL RAWASI | G67: Road base | Q67: 0 | S67: هاربانس
A68: =IF(B68="","",MAX($A$1:A67)+1) ->  | C68: 40225 | E68: Cement Factory | F68: AL RAWASI | G68: Road base | Q68: 0 | S68: هاربانس
A69: =IF(B69="","",MAX($A$1:A68)+1) ->  | C69: 40225 | E69: Cement Factory | F69: AL RAWASI | G69: Road base | Q69: 0 | S69: هاربانس
A70: =IF(B70="","",MAX($A$1:A69)+1) ->  | C70: 40225 | E70: DUCON | F70: AL KAWTHER | G70: Road base | Q70: 0 | S70: هاربانس
A71: =IF(B71="","",MAX($A$1:A70)+1) ->  | C71: 40225 | E71: DUCON | F71: AL KAWTHER | G71: Road base | Q71: 0 | S71: هاربانس
A72: =IF(B72="","",MAX($A$1:A71)+1) ->  | C72: 40225 | E72: Cement Factory | F72: AL RAWASI | G72: Road base | Q72: 0 | S72: هاربانس
A73: =IF(B73="","",MAX($A$1:A72)+1) ->  | C73: 40225 | E73: Cement Factory | F73: AL RAWASI | G73: Road base | Q73: 0 | S73: هاربانس
A74: =IF(B74="","",MAX($A$1:A73)+1) ->  | C74: 40225 | E74: DUCON | F74: AL KAWTHER | G74: Road base | Q74: 0 | S74: هاربانس
A75: =IF(B75="","",MAX($A$1:A74)+1) ->  | C75: 40225 | E75: DUCON | F75: AL BARRAK | G75: Road base | S75: هاربانس
A76: =IF(B76="","",MAX($A$1:A75)+1) ->  | C76: 40225 | E76: Cement Factory | F76: AL RAWASI | G76: Road base | Q76: 0 | S76: هاربانس
A77: =IF(B77="","",MAX($A$1:A76)+1) ->  | C77: 40225 | E77: DUCON | F77: AL KAWTHER | G77: Road base | Q77: 0 | S77: هاربانس
A78: =IF(B78="","",MAX($A$1:A77)+1) ->  | C78: 40225 | E78: DUCON | F78: AL KAWTHER | G78: Road base | S78: هاربانس
A79: =IF(B79="","",MAX($A$1:A78)+1) ->  | C79: 40225 | E79: Cement Factory | F79: AL RAWASI | G79: Road base | Q79: 0 | S79: هاربانس
A80: =IF(B80="","",MAX($A$1:A79)+1) ->  | C80: 40225 | E80: Cement Factory | F80: AL RAWASI | G80: Road base | Q80: 0 | S80: هاربانس
A81: =IF(B81="","",MAX($A$1:A80)+1) ->  | C81: 40225 | E81: DUCON | F81: AL KAWTHER | G81: Road base | S81: هاربانس
A82: =IF(B82="","",MAX($A$1:A81)+1) ->  | C82: 40225 | E82: Cement Factory | F82: AL RAWASI | G82: Road base | Q82: 0 | S82: هاربانس
A83: =IF(B83="","",MAX($A$1:A82)+1) ->  | C83: 40225 | E83: AL QUOZ | F83: AL FUTTAIM | G83: Road base | Q83: 0 | S83: هاربانس
A84: =IF(B84="","",MAX($A$1:A83)+1) ->  | C84: 40225 | E84: MAFRAQ | F84: AL FUTTAIM | G84: Road base | Q84: 0 | S84: هاربانس
A85: =IF(B85="","",MAX($A$1:A84)+1) ->  | S85: هاربانس
B86: =SUBTOTAL(2,B2:B85) -> 32 | H86: =SUBTOTAL(9,H2:H85) -> 2496.98 | J86: =SUBTOTAL(9,J2:J85) -> 32568.001 | K86: =SUBTOTAL(9,K2:K85) -> 520 | L86: =SUBTOTAL(9,L2:L85) -> 1800 | M86: =SUBTOTAL(9,M2:M85) -> 12194.5 | N86: 0 | O86: 0 | P86: =SUBTOTAL(9,P2:P85) -> 13750 | Q86: 0 | R86: 4605 | T86: =IF(R86=100,"National","") -> 
K87: =SUBTOTAL(2,K2:K85) -> 1 | L87: 6 | M87: 29 | N87: 0 | O87: 0 | P87: 25 | Q87: 8.446
Q88: =Q86*Q87 -> 0
J91: كامل المصاريف
J92: الديزل | L92: =Q86 -> 0
C93: وارد السيارة | E93: =J86 -> 32568.001 | J93: الاطارات | L93: 0 | P93: تم خصم الضريبة من خلال المصاريف ولم يتم اضافتها على الوارد
C94: كامل المصاريف | E94: =L99 -> 37893.43 | J94: تكت | L94: =SUM(K86:P86) -> 28264.5
C95: الصافي | E95: =E93-E94 -> -5325.429 | J95: قطع غيار | N95: 3103.75
J96: راتب السائق | L96: =R86 -> 4605
J97: فواتير متفرقة | L97: 5023.93
J98: رسوم تصريح /9
J99: الاجمالي | L99: =SUM(L92:M98) -> 37893.43

Sheet 40109
A1: م | B1: DATE التاريخ | C1: NO TRUCK رقم السيارة | D1: NO TICKET رقم الفاتورة | E1: DESTINATION الموقع | F1: CRUCHER الكسارة | G1: MATERIAL المادة | H1: NETWET الوزن | I1: RATE سعر الطن | J1: TOTAL الاجمالى | K1: FUJ ت/فجيرة | L1: SAEEDY ت/ساعدي | M1: DHAID ت/الذيد | N1: ZUBAIR ت/الزبير | O1: ALGHAIL ت/الغيل | P1: KADRAA ت/كدرة | Q1: DIESEL الديزل | R1: SALARY الراتب | S1: NAME DRIVER اسم السائق | T1: NOTICE ملاحظات
A2: =IF(B2="","",MAX($A$1:A1)+1) -> 1 | B2: 2019-03-01 | C2: 40109 | D2: 141338 | E2: MUSSAFAH | F2: AL FUTTAIM | G2: Road base | H2: 79.32 | I2: =IF(B2="","",(IF(AND(F2="RIDI SIDI"),"16.65",IF(AND(F2="CENTRAL",E2="DUBAI"),"19",IF(AND(F2="CENTRAL",E2="JEBEL ALI"),"21",IF(AND(F2="AL RAWASI"),"16.65",IF(AND(F2="AL NAKHEEL"),"16.65",IF(AND(F2="WB"),"22.60",IF(AND(F2="AL BARRAK",E2="DUCON"),"21.97",IF(AND(F2="AL KAWTHER",E2="DUCON"),"21.97",IF(AND(F2="AL KAWTHER"),"22.5",IF(AND(F2="AL FUTTAIM",E2="JEBEL ALI"),"8.75",IF(AND(F2="AL FUTTAIM",E2="MAFRAQ"),"16",IF(AND(F2="AL FUTTAIM",E2="AL QUOZ"),"7.70",IF(AND(F2="AL FUTTAIM",E2="MUSSAFAH"),"16.90",IF(AND(F2="AL FUTTAIM",E2="NAD AL SHEBA"),"8.50",IF(AND(F2="AL FUTTAIM",E2="MAHAWI"),"16.90",IF(AND(F2="AL RAWDA",E2="MADAM"),"24.50",)))))))))))))))))*1) -> 16.9 | J2: =IF(B2="","",I2*H2) -> 1340.508 | M2: 420.5 | P2: 550 | Q2: 0 | R2: 180 | S2: هيرا (كانوالديب) | T2: =IF(OR(R2=100,R2=115),"National","") -> 
A3: =IF(B3="","",MAX($A$1:A2)+1) -> 2 | B3: 2019-03-02 | C3: 40109 | D3: 141384 | E3: AL QUOZ | F3: AL FUTTAIM | G3: Road base | H3: 76.32 | I3: 7.7 | J3: 587.664 | M3: 420.5 | P3: 550 | Q3: 0 | R3: 70 | S3: هيرا (كانوالديب)
A4: =IF(B4="","",MAX($A$1:A3)+1) -> 3 | B4: 2019-03-02 | C4: 40109 | D4: 141431 | E4: MAFRAQ | F4: AL FUTTAIM | G4: Road base | H4: 77.42 | I4: 16 | J4: 1238.72 | M4: 420.5 | P4: 550 | Q4: 0 | R4: 160 | S4: هيرا (كانوالديب)
A5: =IF(B5="","",MAX($A$1:A4)+1) -> 4 | B5: 2019-03-03 | C5: 40109 | D5: 141451 | E5: AL QUOZ | F5: AL FUTTAIM | G5: Road base | H5: 77.5 | I5: 7.7 | J5: 596.75 | M5: 420.5 | P5: 550 | Q5: 0 | R5: 70 | S5: هيرا (كانوالديب)
A6: =IF(B6="","",MAX($A$1:A5)+1) -> 5 | B6: 2019-03-03 | C6: 40109 | D6: 141496 | E6: JEBEL ALI | F6: AL FUTTAIM | G6: Road base | H6: 78.78 | I6: 8.75 | J6: 689.325 | M6: 420.5 | P6: 550 | Q6: 0 | R6: 80 | S6: هيرا (كانوالديب)
A7: =IF(B7="","",MAX($A$1:A6)+1) -> 6 | B7: 2019-03-04 | C7: 40109 | D7: 141561 | E7: AL QUOZ | F7: AL FUTTAIM | G7: Road base | H7: 76.12 | I7: 7.7 | J7: 586.124 | M7: 420.5 | P7: 550 | Q7: 0 | R7: 70 | S7: هيرا (كانوالديب)
A8: =IF(B8="","",MAX($A$1:A7)+1) -> 7 | B8: 2019-03-04 | C8: 40109 | D8: 141604 | E8: JEBEL ALI | F8: AL FUTTAIM | G8: Road base | H8: 76.86 | I8: 8.75 | J8: 672.525 | M8: 420.5 | P8: 550 | Q8: 0 | R8: 80 | S8: هيرا (كانوالديب)
A9: =IF(B9="","",MAX($A$1:A8)+1) -> 8 | B9: 2019-03-05 | C9: 40109 | D9: 141738 | E9: MUSSAFAH | F9: AL FUTTAIM | G9: Road base | H9: 77.22 | I9: 16.9 | J9: 1305.018 | M9: 420.5 | P9: 550 | Q9: 0 | R9: 180 | S9: هيرا (كانوالديب)
A10: =IF(B10="","",MAX($A$1:A9)+1) -> 9 | B10: 2019-03-05 | C10: 40109 | D10: 141696 | E10: AL QUOZ | F10: AL FUTTAIM | G10: Road base | H10: 76.28 | I10: 7.7 | J10: 587.356 | M10: 420.5 | P10: 550 | Q10: 0 | R10: 70 | S10: هيرا (كانوالديب)
A11: =IF(B11="","",MAX($A$1:A10)+1) -> 10 | B11: 2019-03-05 | C11: 40109 | D11: 141653 | E11: MAFRAQ | F11: AL FUTTAIM | G11: Road base | H11: 78.32 | I11: 16 | J11: 1253.12 | M11: 420.5 | P11: 550 | Q11: 0 | R11: 160 | S11: هيرا (كانوالديب)
A12: =IF(B12="","",MAX($A$1:A11)+1) -> 11 | B12: 2019-03-06 | C12: 40109 | D12: 141784 | E12: AL QUOZ | F12: AL FUTTAIM | G12: Road base | H12: 77.32 | I12: 7.7 | J12: 595.364 | M12: 420.5 | P12: 550 | Q12: 0 | R12: 70 | S12: هيرا (كانوالديب)
A13: =IF(B13="","",MAX($A$1:A12)+1) -> 12 | B13: 2019-03-07 | C13: 40109 | D13: 2214334 | E13: Cement Factory | F13: AL NAKHEEL | G13: Road base | H13: 76.86 | I13: 16.65 | J13: 1279.719 | L13: 300 | Q13: 0 | R13: 100 | S13: هيرا (كانوالديب) | T13: National
A14: =IF(B14="","",MAX($A$1:A13)+1) -> 13 | B14: 2019-03-07 | C14: 40109 | D14: 2214447 | E14: Cement Factory | F14: AL RAWASI | G14: Road base | H14: 74.78 | I14: 16.65 | J14: 1245.087 | L14: 300 | M14: 420.5 | Q14: 0 | R14: 75 | S14: هيرا (كانوالديب)
A15: =IF(B15="","",MAX($A$1:A14)+1) -> 14 | B15: 2019-03-07 | C15: 40109 | D15: 141851 | E15: JEBEL ALI | F15: AL FUTTAIM | G15: Road base | H15: 79.76 | I15: 8.75 | J15: 697.9 | M15: 420.5 | P15: 550 | Q15: 0 | R15: 80 | S15: هيرا (كانوالديب)
A16: =IF(B16="","",MAX($A$1:A15)+1) -> 15 | B16: 2019-03-08 | C16: 40109 | D16: 2214571 | E16: Cement Factory | F16: AL RAWASI | G16: Road base | H16: 78.08 | I16: 16.65 | J16: 1300.032 | L16: 300 | Q16: 0 | R16: 100 | S16: هيرا (كانوالديب) | T16: National
A17: =IF(B17="","",MAX($A$1:A16)+1) -> 16 | B17: 2019-03-08 | C17: 40109 | D17: 141950 | E17: MAFRAQ | F17: AL FUTTAIM | G17: Road base | H17: 80.2 | I17: 16 | J17: 1283.2 | M17: 420.5 | P17: 550 | Q17: 0 | R17: 160 | S17: هيرا (كانوالديب)
A18: =IF(B18="","",MAX($A$1:A17)+1) -> 17 | B18: 2019-03-09 | C18: 40109 | D18: 2214862 | E18: Cement Factory | F18: AL RAWASI | G18: Road base | H18: 78.44 | I18: 16.65 | J18: 1306.026 | L18: 300 | M18: 420.5 | Q18: 0 | R18: 75 | S18: هيرا (كانوالديب)
A19: =IF(B19="","",MAX($A$1:A18)+1) -> 18 | B19: 2019-03-09 | C19: 40109 | D19: 142086 | E19: AL QUOZ | F19: AL FUTTAIM | G19: Road base | H19: 76.9 | I19: 7.7 | J19: 592.13 | M19: 420.5 | P19: 550 | Q19: 0 | R19: 70 | S19: هيرا (كانوالديب)
A20: =IF(B20="","",MAX($A$1:A19)+1) -> 19 | B20: 2019-03-09 | C20: 40109 | D20: 142032 | E20: MUSSAFAH | F20: AL FUTTAIM | G20: Road base | H20: 77.44 | I20: 16.9 | J20: 1308.736 | M20: 420.5 | P20: 550 | Q20: 0 | R20: 180 | S20: هيرا (كانوالديب)
A21: =IF(B21="","",MAX($A$1:A20)+1) -> 20 | B21: 2019-03-09 | C21: 40109 | D21: 142142 | E21: MUSSAFAH | F21: AL FUTTAIM | G21: Road base | H21: 77.64 | I21: 16.9 | J21: 1312.116 | M21: 420.5 | P21: 550 | Q21: 0 | R21: 180 | S21: هيرا (كانوالديب)
A22: =IF(B22="","",MAX($A$1:A21)+1) -> 21 | B22: 2019-03-10 | C22: 40109 | D22: 2215219 | E22: Cement Factory | F22: AL RAWASI | G22: Road base | H22: 71.36 | I22: 16.65 | J22: 1188.144 | L22: 300 | M22: 420.5 | Q22: 0 | R22: 75 | S22: هيرا (كانوالديب)
A23: =IF(B23="","",MAX($A$1:A22)+1) -> 22 | B23: 2019-03-10 | C23: 40109 | D23: 142279 | E23: MUSSAFAH | F23: AL FUTTAIM | G23: Road base | H23: 79.06 | I23: 16.9 | J23: 1336.114 | M23: 420.5 | P23: 550 | Q23: 0 | R23: 180 | S23: هيرا (كانوالديب)
A24: =IF(B24="","",MAX($A$1:A23)+1) -> 23 | B24: 2019-03-11 | C24: 40109 | D24: 2215375 | E24: Cement Factory | F24: AL RAWASI | G24: Road base | H24: 80.46 | I24: 16.65 | J24: 1339.659 | L24: 300 | M24: 420.5 | Q24: 0 | R24: 75 | S24: هيرا (كانوالديب)
A25: =IF(B25="","",MAX($A$1:A24)+1) -> 24 | B25: 2019-03-11 | C25: 40109 | D25: 142372 | E25: MUSSAFAH | F25: AL FUTTAIM | G25: Road base | H25: 81.96 | I25: 16.9 | J25: 1385.124 | M25: 420.5 | P25: 550 | Q25: 0 | R25: 180 | S25: هيرا (كانوالديب)
A26: =IF(B26="","",MAX($A$1:A25)+1) -> 25 | B26: 2019-03-12 | C26: 40109 | D26: 142462 | E26: JEBEL ALI | F26: AL FUTTAIM | G26: Road base | H26: 76.58 | I26: 8.75 | J26: 670.075 | M26: 420.5 | P26: 550 | Q26: 0 | R26: 80 | S26: هيرا (كانوالديب)
A27: =IF(B27="","",MAX($A$1:A26)+1) -> 26 | B27: 2019-03-13 | C27: 40109 | D27: 142615 | E27: AL QUOZ | F27: AL FUTTAIM | G27: Road base | H27: 76.3 | I27: 7.7 | J27: 587.51 | M27: 420.5 | P27: 550 | Q27: 0 | R27: 70 | S27: هيرا (كانوالديب)
A28: =IF(B28="","",MAX($A$1:A27)+1) -> 27 | B28: 2019-03-13 | C28: 40109 | D28: 142526 | E28: MUSSAFAH | F28: AL FUTTAIM | G28: Road base | H28: 80.06 | I28: 16.9 | J28: 1353.014 | M28: 420.5 | P28: 550 | Q28: 0 | R28: 180 | S28: هيرا (كانوالديب)
A29: =IF(B29="","",MAX($A$1:A28)+1) -> 28 | B29: 2019-03-14 | C29: 40109 | D29: 142671 | E29: AL QUOZ | F29: AL FUTTAIM | G29: Road base | H29: 81.78 | I29: 7.7 | J29: 629.706 | M29: 420.5 | P29: 550 | Q29: 0 | R29: 70 | S29: هيرا (كانوالديب)
A30: =IF(B30="","",MAX($A$1:A29)+1) -> 29 | B30: 2019-03-14 | C30: 40109 | D30: 2215678 | E30: Cement Factory | F30: AL RAWASI | G30: Road base | H30: 79.9 | I30: 16.65 | J30: 1330.335 | L30: 300 | M30: 420.5 | Q30: 0 | R30: 75 | S30: هيرا (كانوالديب)
A31: =IF(B31="","",MAX($A$1:A30)+1) -> 30 | B31: 2019-03-14 | C31: 40109 | D31: 142797 | E31: MAFRAQ | F31: AL FUTTAIM | G31: Road base | H31: 78.78 | I31: 16 | J31: 1260.48 | M31: 420.5 | P31: 550 | Q31: 0 | R31: 160 | S31: هيرا (كانوالديب)
A32: =IF(B32="","",MAX($A$1:A31)+1) -> 31 | B32: 2019-03-15 | C32: 40109 | D32: 142816 | E32: AL QUOZ | F32: AL FUTTAIM | G32: Road base | H32: 79.74 | I32: 7.7 | J32: 613.998 | M32: 420.5 | P32: 550 | Q32: 0 | R32: 70 | S32: هيرا (كانوالديب)
A33: =IF(B33="","",MAX($A$1:A32)+1) -> 32 | B33: 2019-03-16 | C33: 40109 | D33: 2216035 | E33: Cement Factory | F33: AL RAWASI | G33: Road base | H33: 84.4 | I33: 16.65 | J33: 1405.26 | L33: 300 | Q33: 0 | R33: 100 | S33: هيرا (كانوالديب) | T33: National
A34: =IF(B34="","",MAX($A$1:A33)+1) -> 33 | B34: 2019-03-16 | C34: 40109 | D34: 142872 | E34: JEBEL ALI | F34: AL FUTTAIM | G34: Road base | H34: 76.74 | I34: 8.75 | J34: 671.475 | M34: 420.5 | P34: 550 | Q34: 0 | R34: 80 | S34: هيرا (كانوالديب)
A35: =IF(B35="","",MAX($A$1:A34)+1) -> 34 | B35: 2019-03-16 | C35: 40109 | D35: 142936 | E35: MAFRAQ | F35: AL FUTTAIM | G35: Road base | H35: 80.2 | I35: 16 | J35: 1283.2 | M35: 420.5 | P35: 550 | Q35: 0 | R35: 160 | S35: هيرا (كانوالديب)
A36: =IF(B36="","",MAX($A$1:A35)+1) -> 35 | B36: 2019-03-17 | C36: 40109 | D36: 902713 | E36: DUCON | F36: AL BARRAK | G36: Road base | H36: 82.04 | I36: 21.97 | J36: 1802.4188 | K36: 570 | M36: 420.5 | Q36: 0 | R36: 80 | S36: هيرا (كانوالديب)
A37: =IF(B37="","",MAX($A$1:A36)+1) -> 36 | B37: 2019-03-18 | C37: 40109 | D37: 2216372 | E37: Cement Factory | F37: AL RAWASI | G37: Road base | H37: 81.9 | I37: 16.65 | J37: 1363.635 | L37: 300 | Q37: 0 | R37: 100 | S37: هيرا (كانوالديب) | T37: National
A38: =IF(B38="","",MAX($A$1:A37)+1) ->  | C38: 40109 | E38: AL QUOZ | F38: AL FUTTAIM | G38: Road base | Q38: 0 | R38: 70 | S38: هيرا (كانوالديب)
A39: =IF(B39="","",MAX($A$1:A38)+1) ->  | C39: 40109 | E39: DUCON | F39: AL BARRAK | G39: Road base | Q39: 0 | R39: 90 | S39: هيرا (كانوالديب)
A40: =IF(B40="","",MAX($A$1:A39)+1) ->  | C40: 40109 | E40: AL QUOZ | F40: AL FUTTAIM | G40: Road base | Q40: 0 | R40: 70 | S40: هيرا (كانوالديب)
A41: =IF(B41="","",MAX($A$1:A40)+1) ->  | C41: 40109 | E41: AL QUOZ | F41: AL FUTTAIM | G41: Road base | Q41: 0 | R41: 70 | S41: هيرا (كانوالديب)
A42: =IF(B42="","",MAX($A$1:A41)+1) ->  | C42: 40109 | E42: AL QUOZ | F42: AL FUTTAIM | G42: Road base | Q42: 0 | R42: 70 | S42: هيرا (كانوالديب)
A43: =IF(B43="","",MAX($A$1:A42)+1) ->  | C43: 40109 | E43: MAFRAQ | F43: AL FUTTAIM | G43: Road base | Q43: 0 | R43: 160 | S43: هيرا (كانوالديب)
A44: =IF(B44="","",MAX($A$1:A43)+1) ->  | C44: 40109 | E44: AL QUOZ | F44: AL FUTTAIM | G44: Road base | Q44: 0 | R44: 70 | S44: هيرا (كانوالديب)
A45: =IF(B45="","",MAX($A$1:A44)+1) ->  | C45: 40109 | E45: DUCON | F45: AL BARRAK | G45: Road base | Q45: 0 | R45: 90 | S45: هيرا (كانوالديب)
A46: =IF(B46="","",MAX($A$1:A45)+1) ->  | C46: 40109 | E46: AL QUOZ | F46: AL FUTTAIM | G46: Road base | Q46: 0 | R46: 70 | S46: هيرا (كانوالديب)
A47: =IF(B47="","",MAX($A$1:A46)+1) ->  | C47: 40109 | E47: MAFRAQ | F47: AL FUTTAIM | G47: Road base | Q47: 0 | R47: 160 | S47: هيرا (كانوالديب)
A48: =IF(B48="","",MAX($A$1:A47)+1) ->  | C48: 40109 | E48: DUCON | F48: AL KAWTHER | G48: Road base | Q48: 0 | S48: هيرا (كانوالديب)
A49: =IF(B49="","",MAX($A$1:A48)+1) ->  | C49: 40109 | E49: Cement Factory | F49: AL RAWASI | G49: Road base | Q49: 0 | S49: هيرا (كانوالديب)
A50: =IF(B50="","",MAX($A$1:A49)+1) ->  | C50: 40109 | E50: DUCON | F50: AL KAWTHER | G50: Road base | Q50: 0 | S50: هيرا (كانوالديب)
A51: =IF(B51="","",MAX($A$1:A50)+1) ->  | C51: 40109 | E51: DUCON | F51: AL KAWTHER | G51: Road base | Q51: 0 | S51: هيرا (كانوالديب)
A52: =IF(B52="","",MAX($A$1:A51)+1) ->  | C52: 40109 | E52: Cement Factory | F52: AL RAWASI | G52: Road base | Q52: 0 | S52: هيرا (كانوالديب)
A53: =IF(B53="","",MAX($A$1:A52)+1) ->  | C53: 40109 | E53: Cement Factory | F53: AL RAWASI | G53: Road base | Q53: 0 | S53: هيرا (كانوالديب)
A54: =IF(B54="","",MAX($A$1:A53)+1) ->  | C54: 40109 | E54: DUCON | F54: AL KAWTHER | G54: Road base | Q54: 0 | S54: هيرا (كانوالديب)
A55: =IF(B55="","",MAX($A$1:A54)+1) ->  | C55: 40109 | E55: Cement Factory | F55: AL RAWASI | G55: Road base | Q55: 0 | S55: هيرا (كانوالديب)
A56: =IF(B56="","",MAX($A$1:A55)+1) ->  | C56: 40109 | E56: Cement Factory | F56: AL RAWASI | G56: Road base | Q56: 0 | S56: هيرا (كانوالديب)
A57: =IF(B57="","",MAX($A$1:A56)+1) ->  | C57: 40225 | E57: MADAM | F57: AL RAWDA | G57: Road base | Q57: 0 | S57: هيرا (كانوالديب)
A58: =IF(B58="","",MAX($A$1:A57)+1) ->  | C58: 40109 | E58: DUCON | F58: AL KAWTHER | G58: Road base | Q58: 0 | S58: هيرا (كانوالديب)
A59: =IF(B59="","",MAX($A$1:A58)+1) ->  | C59: 40109 | E59: Cement Factory | F59: AL RAWASI | G59: Road base | Q59: 0 | S59: هيرا (كانوالديب)
A60: =IF(B60="","",MAX($A$1:A59)+1) ->  | C60: 40109 | E60: Cement Factory | F60: AL RAWASI | G60: Road base | Q60: 0 | S60: هيرا (كانوالديب)
A61: =IF(B61="","",MAX($A$1:A60)+1) ->  | C61: 40109 | E61: Cement Factory | F61: AL RAWASI | G61: Road base | Q61: 0 | S61: هيرا (كانوالديب)
A62: =IF(B62="","",MAX($A$1:A61)+1) ->  | C62: 40109 | E62: DUBAI | F62: CENTRAL | G62: Road base | Q62: 0 | S62: هيرا (كانوالديب)
A63: =IF(B63="","",MAX($A$1:A62)+1) ->  | C63: 40109 | E63: Cement Factory | F63: AL RAWASI | G63: Road base | Q63: 0 | S63: هيرا (كانوالديب)
A64: =IF(B64="","",MAX($A$1:A63)+1) ->  | C64: 40109 | E64: Cement Factory | F64: AL RAWASI | G64: Road base | Q64: 0 | S64: هيرا (كانوالديب)
A65: =IF(B65="","",MAX($A$1:A64)+1) ->  | C65: 40109 | E65: Cement Factory | F65: AL RAWASI | G65: Road base | Q65: 0 | S65: هيرا (كانوالديب)
A66: =IF(B66="","",MAX($A$1:A65)+1) ->  | C66: 40109 | E66: Cement Factory | F66: AL RAWASI | G66: Road base | I66: =IF(B66="","",(IF(AND(F66="RIDI SIDI"),"16.65",IF(AND(F66="CENTRAL",E66="DUBAI"),"19",IF(AND(F66="CENTRAL",E66="JEBEL ALI"),"21",IF(AND(F66="AL RAWASI"),"16.65",IF(AND(F66="AL NAKHEEL"),"16.65",IF(AND(F66="WB"),"22.60",IF(AND(F66="AL BARRAK",E66="DUCON"),"21.97",IF(AND(F66="AL KAWTHER",E66="DUCON"),"21.97",IF(AND(F66="AL KAWTHER"),"22.5",IF(AND(F66="AL FUTTAIM",E66="JEBEL ALI"),"8.75",IF(AND(F66="AL FUTTAIM",E66="MAFRAQ"),"16",IF(AND(F66="AL FUTTAIM",E66="AL QUOZ"),"7.70",IF(AND(F66="AL FUTTAIM",E66="MUSSAFAH"),"16.90",IF(AND(F66="AL FUTTAIM",E66="NAD AL SHEBA"),"8.50",IF(AND(F66="AL FUTTAIM",E66="MAHAWI"),"16.90",IF(AND(F66="AL RAWDA",E66="MADAM"),"24.50",)))))))))))))))))*1) ->  | J66: =IF(B66="","",I66*H66) ->  | Q66: 0 | S66: هيرا (كانوالديب) | T66: =IF(OR(R66=100,R66=115),"National","") -> 
A67: =IF(B67="","",MAX($A$1:A66)+1) ->  | C67: 40109 | E67: DUCON | F67: AL KAWTHER | G67: Road base | Q67: 0 | S67: هيرا (كانوالديب)
A68: =IF(B68="","",MAX($A$1:A67)+1) ->  | C68: 40109 | E68: DUCON | F68: AL KAWTHER | G68: Road base | Q68: 0 | S68: هيرا (كانوالديب)
A69: =IF(B69="","",MAX($A$1:A68)+1) ->  | C69: 40109 | E69: Cement Factory | F69: AL RAWASI | G69: Road base | Q69: 0 | S69: هيرا (كانوالديب)
A70: =IF(B70="","",MAX($A$1:A69)+1) ->  | C70: 40109 | E70: Cement Factory | F70: AL RAWASI | G70: Road base | Q70: 0 | S70: هيرا (كانوالديب)
A71: =IF(B71="","",MAX($A$1:A70)+1) ->  | C71: 40109 | E71: DUCON | F71: AL KAWTHER | G71: Road base | Q71: 0 | S71: هيرا (كانوالديب)
A72: =IF(B72="","",MAX($A$1:A71)+1) ->  | C72: 40109 | E72: Cement Factory | F72: AL RAWASI | G72: Road base | Q72: 0 | S72: هيرا (كانوالديب)
A73: =IF(B73="","",MAX($A$1:A72)+1) ->  | C73: 40109 | E73: DUCON | F73: AL KAWTHER | G73: Road base | Q73: 0 | S73: هيرا (كانوالديب)
A74: =IF(B74="","",MAX($A$1:A73)+1) ->  | C74: 40109 | E74: Cement Factory | F74: AL RAWASI | G74: Road base | Q74: 0 | S74: هيرا (كانوالديب)
A75: =IF(B75="","",MAX($A$1:A74)+1) ->  | C75: 40109 | E75: Cement Factory | F75: AL RAWASI | G75: Road base | Q75: 0 | S75: هيرا (كانوالديب)
A76: =IF(B76="","",MAX($A$1:A75)+1) ->  | C76: 40109 | E76: Cement Factory | F76: AL RAWASI | G76: Road base | Q76: 0 | S76: هيرا (كانوالديب)
A77: =IF(B77="","",MAX($A$1:A76)+1) ->  | C77: 40109 | E77: Cement Factory | F77: AL RAWASI | G77: Road base | Q77: 0 | S77: هيرا (كانوالديب)
A78: =IF(B78="","",MAX($A$1:A77)+1) ->  | C78: 40109 | E78: Cement Factory | F78: AL RAWASI | G78: Road base | Q78: 0 | S78: هيرا (كانوالديب)
A79: =IF(B79="","",MAX($A$1:A78)+1) ->  | C79: 40109 | E79: DUBAI | F79: CENTRAL | G79: Road base | Q79: 0 | S79: هيرا (كانوالديب)
A80: =IF(B80="","",MAX($A$1:A79)+1) ->  | C80: 40109 | E80: AL QUOZ | F80: AL FUTTAIM | G80: Road base | Q80: 0 | S80: هيرا (كانوالديب)
A81: =IF(B81="","",MAX($A$1:A80)+1) ->  | C81: 40109 | E81: MAFRAQ | F81: AL FUTTAIM | G81: Road base | Q81: 0 | S81: هيرا (كانوالديب)
B82: =SUBTOTAL(2,B2:B81) -> 36 | H82: =SUBTOTAL(9,H2:H81) -> 2822.82 | J82: =SUBTOTAL(9,J2:J81) -> 37997.5678 | K82: 570 | L82: =SUBTOTAL(9,L2:L81) -> 2700 | M82: =SUBTOTAL(9,M2:M81) -> 13456 | N82: 0 | O82: 0 | P82: 14300 | Q82: 0 | R82: 4865 | T82: =IF(R82=100,"National","") -> 
K83: =SUBTOTAL(2,K2:K81) -> 1 | L83: =SUBTOTAL(2,L2:L81) -> 9 | M83: =SUBTOTAL(2,M3:M81) -> 31 | N83: 0 | O83: 0 | P83: 26 | Q83: 8.446
Q84: =Q82*Q83 -> 0
J87: كامل المصاريف
J88: الديزل | L88: =Q82 -> 0
C89: وارد السيارة | E89: =J82 -> 37997.5678 | J89: الاطارات | L89: 0 | P89: تم خصم الضريبة من خلال المصاريف ولم يتم اضافتها على الوارد
C90: كامل المصاريف | E90: =L95 -> 40914.93 | J90: تكت | L90: =SUM(K82:P82) -> 31026
C91: الصافي | E91: =E89-E90 -> -2917.3622 | J91: قطع غيار
J92: راتب السائق | L92: =R82 -> 4865
J93: فواتير متفرقة | L93: 5023.93
J94: رسوم تصريح /9
J95: الاجمالي | L95: =SUM(L88:M94) -> 40914.93

Sheet 52152
A1: م | B1: DATE التاريخ | C1: NO TRUCK رقم السيارة | D1: NO TICKET رقم الفاتورة | E1: DESTINATION الموقع | F1: CRUCHER الكسارة | G1: MATERIAL المادة | H1: NETWET الوزن | I1: RATE سعر الطن | J1: TOTAL الاجمالى | K1: FUJ ت/فجيرة | L1: SAEEDY ت/ساعدي | M1: DHAID ت/الذيد | N1: ZUBAIR ت/الزبير | O1: ALGHAIL ت/الغيل | P1: KADRAA ت/كدرة | Q1: DIESEL الديزل | R1: SALARY الراتب | S1: NAME DRIVER اسم السائق | T1: NOTICE ملاحظات
A2: =IF(B2="","",MAX($A$1:A1)+1) -> 1 | B2: 2019-03-01 | C2: 52152 | D2: 141341 | E2: MUSSAFAH | F2: AL FUTTAIM | G2: Road base | H2: 76.72 | I2: =IF(B2="","",(IF(AND(F2="RIDI SIDI"),"16.65",IF(AND(F2="CENTRAL",E2="DUBAI"),"19",IF(AND(F2="CENTRAL",E2="JEBEL ALI"),"21",IF(AND(F2="AL RAWASI"),"16.65",IF(AND(F2="AL NAKHEEL"),"16.65",IF(AND(F2="WB"),"22.60",IF(AND(F2="AL BARRAK",E2="DUCON"),"21.97",IF(AND(F2="AL KAWTHER",E2="DUCON"),"21.97",IF(AND(F2="AL KAWTHER"),"22.5",IF(AND(F2="AL FUTTAIM",E2="JEBEL ALI"),"8.75",IF(AND(F2="AL FUTTAIM",E2="MAFRAQ"),"16",IF(AND(F2="AL FUTTAIM",E2="AL QUOZ"),"7.70",IF(AND(F2="AL FUTTAIM",E2="MUSSAFAH"),"16.90",IF(AND(F2="AL FUTTAIM",E2="NAD AL SHEBA"),"8.50",IF(AND(F2="AL FUTTAIM",E2="MAHAWI"),"16.90",IF(AND(F2="AL RAWDA",E2="MADAM"),"24.50",)))))))))))))))))*1) -> 16.9 | J2: =IF(B2="","",I2*H2) -> 1296.568 | M2: 420.5 | P2: 550 | Q2: 0 | R2: 180 | S2: مالكيت | T2: =IF(OR(R2=100,R2=115),"National","") -> 
A3: =IF(B3="","",MAX($A$1:A2)+1) -> 2 | B3: 2019-03-02 | C3: 52152 | D3: 141382 | E3: AL QUOZ | F3: AL FUTTAIM | G3: Road base | H3: 76.44 | I3: 7.7 | J3: 588.588 | M3: 420.5 | P3: 550 | Q3: 0 | R3: 70 | S3: مالكيت
A4: =IF(B4="","",MAX($A$1:A3)+1) -> 3 | B4: 2019-03-02 | C4: 52152 | D4: 141414 | E4: MAFRAQ | F4: AL FUTTAIM | G4: Road base | H4: 78.56 | I4: 16 | J4: 1256.96 | M4: 420.5 | P4: 550 | Q4: 0 | R4: 160 | S4: مالكيت
A5: =IF(B5="","",MAX($A$1:A4)+1) -> 4 | B5: 2019-03-03 | C5: 52152 | D5: 141527 | E5: MAFRAQ | F5: AL FUTTAIM | G5: Road base | H5: 76.66 | I5: 16 | J5: 1226.56 | M5: 420.5 | P5: 550 | Q5: 0 | R5: 160 | S5: مالكيت
A6: =IF(B6="","",MAX($A$1:A5)+1) -> 5 | B6: 2019-03-03 | C6: 52152 | D6: 899834 | E6: DUCON | F6: AL BARRAK | G6: Road base | H6: 72.42 | I6: 21.97 | J6: 1591.0674 | K6: 510 | M6: 420.5 | Q6: 0 | R6: 90 | S6: مالكيت
A7: =IF(B7="","",MAX($A$1:A6)+1) -> 6 | B7: 2019-03-04 | C7: 52152 | D7: 141577 | E7: AL QUOZ | F7: AL FUTTAIM | G7: Road base | H7: 77.6 | I7: 7.7 | J7: 597.52 | M7: 420.5 | P7: 550 | Q7: 0 | R7: 70 | S7: مالكيت
A8: =IF(B8="","",MAX($A$1:A7)+1) -> 7 | B8: 2019-03-04 | C8: 52152 | D8: 141639 | E8: JEBEL ALI | F8: AL FUTTAIM | G8: Road base | H8: 78.42 | I8: 8.75 | J8: 686.175 | M8: 420.5 | P8: 550 | Q8: 0 | R8: 80 | S8: مالكيت
A9: =IF(B9="","",MAX($A$1:A8)+1) -> 8 | B9: 2019-03-05 | C9: 52152 | D9: 141694 | E9: AL QUOZ | F9: AL FUTTAIM | G9: Road base | H9: 76.84 | I9: 7.7 | J9: 591.668 | M9: 420.5 | P9: 550 | Q9: 0 | R9: 70 | S9: مالكيت
A10: =IF(B10="","",MAX($A$1:A9)+1) -> 9 | B10: 2019-03-05 | C10: 52152 | D10: 141665 | E10: JEBEL ALI | F10: AL FUTTAIM | G10: Road base | H10: 77.06 | I10: 8.75 | J10: 674.275 | M10: 420.5 | P10: 550 | Q10: 0 | R10: 80 | S10: مالكيت
A11: =IF(B11="","",MAX($A$1:A10)+1) -> 10 | B11: 2019-03-06 | C11: 52152 | D11: 2214226 | E11: Cement Factory | F11: AL RAWASI | G11: Road base | H11: 84.2 | I11: 16.65 | J11: 1401.93 | L11: 300 | M11: 420.5 | Q11: 0 | R11: 75 | S11: مالكيت
A12: =IF(B12="","",MAX($A$1:A11)+1) -> 11 | B12: 2019-03-06 | C12: 52152 | D12: 2214288 | E12: Cement Factory | F12: AL RAWASI | G12: Road base | H12: 87.78 | I12: 16.65 | J12: 1461.537 | L12: 300 | M12: 420.5 | Q12: 0 | R12: 75 | S12: مالكيت
A13: =IF(B13="","",MAX($A$1:A12)+1) -> 12 | B13: 2019-03-06 | C13: 52152 | D13: 2214132 | E13: Cement Factory | F13: AL RAWASI | G13: Road base | H13: 84.24 | I13: 16.65 | J13: 1402.596 | L13: 300 | Q13: 0 | R13: 100 | S13: مالكيت | T13: National
A14: =IF(B14="","",MAX($A$1:A13)+1) -> 13 | B14: 2019-03-07 | C14: 52152 | D14: 2214324 | E14: Cement Factory | F14: AL RAWASI | G14: Road base | H14: 80.6 | I14: 16.65 | J14: 1341.99 | L14: 300 | M14: 420.5 | Q14: 0 | R14: 100 | S14: مالكيت | T14: National
A15: =IF(B15="","",MAX($A$1:A14)+1) -> 14 | B15: 2019-03-07 | C15: 52152 | D15: 141890 | E15: AL QUOZ | F15: AL FUTTAIM | G15: Road base | H15: 75.96 | I15: 7.7 | J15: 584.892 | M15: 420.5 | P15: 550 | Q15: 0 | R15: 70 | S15: مالكيت
A16: =IF(B16="","",MAX($A$1:A15)+1) -> 15 | B16: 2019-03-07 | C16: 52152 | D16: 141846 | E16: JEBEL ALI | F16: AL FUTTAIM | G16: Road base | H16: 74 | I16: 8.75 | J16: 647.5 | M16: 420.5 | P16: 550 | Q16: 0 | R16: 80 | S16: مالكيت
A17: =IF(B17="","",MAX($A$1:A16)+1) -> 16 | B17: 2019-03-08 | C17: 52152 | D17: 2214556 | E17: Cement Factory | F17: AL RAWASI | G17: Road base | H17: 85.22 | I17: 16.65 | J17: 1418.913 | L17: 300 | Q17: 0 | R17: 100 | S17: مالكيت | T17: National
A18: =IF(B18="","",MAX($A$1:A17)+1) -> 17 | B18: 2019-03-08 | C18: 52152 | D18: 2214762 | E18: Cement Factory | F18: AL NAKHEEL | G18: Road base | H18: 80.72 | I18: 16.65 | J18: 1343.988 | L18: 300 | M18: 420.5 | Q18: 0 | R18: 75 | S18: مالكيت
A19: =IF(B19="","",MAX($A$1:A18)+1) -> 18 | B19: 2019-03-08 | C19: 52152 | D19: 2214694 | E19: Cement Factory | F19: AL RAWASI | G19: Road base | H19: 83.46 | I19: 16.65 | J19: 1389.609 | L19: 300 | M19: 420.5 | Q19: 0 | R19: 75 | S19: مالكيت
A20: =IF(B20="","",MAX($A$1:A19)+1) -> 19 | B20: 2019-03-08 | C20: 52152 | D20: 141998 | E20: MAFRAQ | F20: AL FUTTAIM | G20: Road base | H20: 78.8 | I20: 16 | J20: 1260.8 | M20: 420.5 | P20: 550 | Q20: 0 | R20: 160 | S20: مالكيت
A21: =IF(B21="","",MAX($A$1:A20)+1) -> 20 | B21: 2019-03-09 | C21: 52152 | D21: 142130 | E21: MUSSAFAH | F21: AL FUTTAIM | G21: Road base | H21: 77.38 | I21: 16.9 | J21: 1307.722 | M21: 420.5 | P21: 550 | Q21: 0 | R21: 180 | S21: مالكيت
A22: =IF(B22="","",MAX($A$1:A21)+1) -> 21 | B22: 2019-03-09 | C22: 52152 | D22: 900986 | E22: DUCON | F22: AL BARRAK | G22: Road base | H22: 71.02 | I22: 21.97 | J22: 1560.3094 | K22: 500 | M22: 420.5 | Q22: 0 | R22: 90 | S22: مالكيت
A23: =IF(B23="","",MAX($A$1:A22)+1) -> 22 | B23: 2019-03-10 | C23: 52152 | D23: 142215 | E23: AL QUOZ | F23: AL FUTTAIM | G23: Road base | H23: 77.12 | I23: 7.7 | J23: 593.824 | M23: 420.5 | P23: 550 | Q23: 0 | R23: 70 | S23: مالكيت
A24: =IF(B24="","",MAX($A$1:A23)+1) -> 23 | B24: 2019-03-10 | C24: 52152 | D24: 142263 | E24: MUSSAFAH | F24: AL FUTTAIM | G24: Road base | H24: 78.84 | I24: 16.9 | J24: 1332.396 | M24: 420.5 | P24: 550 | Q24: 0 | R24: 180 | S24: مالكيت
A25: =IF(B25="","",MAX($A$1:A24)+1) -> 24 | B25: 2019-03-11 | C25: 52152 | D25: 2215395 | E25: Cement Factory | F25: AL RAWASI | G25: Road base | H25: 81.84 | I25: 16.65 | J25: 1362.636 | L25: 300 | M25: 420.5 | Q25: 0 | R25: 75 | S25: مالكيت
A26: =IF(B26="","",MAX($A$1:A25)+1) -> 25 | B26: 2019-03-11 | C26: 52152 | D26: 142381 | E26: MUSSAFAH | F26: AL FUTTAIM | G26: Road base | H26: 77.96 | I26: 16.9 | J26: 1317.524 | M26: 420.5 | P26: 550 | Q26: 0 | R26: 180 | S26: مالكيت
A27: =IF(B27="","",MAX($A$1:A26)+1) -> 26 | B27: 2019-03-12 | C27: 52152 | D27: 142503 | E27: MAFRAQ | F27: AL FUTTAIM | G27: Road base | H27: 77.34 | I27: 16 | J27: 1237.44 | M27: 420.5 | P27: 550 | Q27: 0 | R27: 160 | S27: مالكيت
A28: =IF(B28="","",MAX($A$1:A27)+1) -> 27 | B28: 2019-03-12 | C28: 52152 | D28: 901594 | E28: DUCON | F28: AL BARRAK | G28: Road base | H28: 73.36 | I28: 21.97 | J28: 1611.7192 | K28: 520 | M28: 420.5 | Q28: 0 | R28: 90 | S28: مالكيت
A29: =IF(B29="","",MAX($A$1:A28)+1) -> 28 | B29: 2019-03-13 | C29: 52152 | D29: 142578 | E29: AL QUOZ | F29: AL FUTTAIM | G29: Road base | H29: 78.82 | I29: 7.7 | J29: 606.914 | M29: 420.5 | P29: 550 | Q29: 0 | R29: 70 | S29: مالكيت
A30: =IF(B30="","",MAX($A$1:A29)+1) -> 29 | B30: 2019-03-13 | C30: 52152 | D30: 142660 | E30: JEBEL ALI | F30: AL FUTTAIM | G30: Road base | H30: 79.02 | I30: 8.75 | J30: 691.425 | M30: 420.5 | P30: 550 | Q30: 0 | R30: 80 | S30: مالكيت
A31: =IF(B31="","",MAX($A$1:A30)+1) -> 30 | B31: 2019-03-14 | C31: 52152 | D31: 2215681 | E31: Cement Factory | F31: AL RAWASI | G31: Road base | H31: 75.92 | I31: 16.65 | J31: 1264.068 | L31: 300 | M31: 420.5 | Q31: 0 | R31: 75 | S31: مالكيت
A32: =IF(B32="","",MAX($A$1:A31)+1) -> 31 | B32: 2019-03-14 | C32: 52152 | D32: 142707 | E32: AL QUOZ | F32: AL FUTTAIM | G32: Road base | H32: 78.06 | I32: 7.7 | J32: 601.062 | M32: 420.5 | P32: 550 | Q32: 0 | R32: 70 | S32: مالكيت
A33: =IF(B33="","",MAX($A$1:A32)+1) -> 32 | B33: 2019-03-15 | C33: 52152 | D33: 2215751 | E33: Cement Factory | F33: AL RAWASI | G33: Road base | H33: 77.82 | I33: 16.65 | J33: 1295.703 | L33: 300 | Q33: 0 | R33: 100 | S33: مالكيت | T33: National
A34: =IF(B34="","",MAX($A$1:A33)+1) -> 33 | B34: 2019-03-15 | C34: 52152 | D34: 142806 | E34: AL QUOZ | F34: AL FUTTAIM | G34: Road base | H34: 78.86 | I34: 7.7 | J34: 607.222 | M34: 420.5 | P34: 550 | Q34: 0 | R34: 70 | S34: مالكيت
A35: =IF(B35="","",MAX($A$1:A34)+1) -> 34 | B35: 2019-03-16 | C35: 52152 | D35: 2216002 | E35: Cement Factory | F35: AL RAWASI | G35: Road base | H35: 87.84 | I35: 16.65 | J35: 1462.536 | L35: 300 | Q35: 0 | R35: 100 | S35: مالكيت | T35: National
A36: =IF(B36="","",MAX($A$1:A35)+1) -> 35 | B36: 2019-03-16 | C36: 52152 | D36: 142922 | E36: MAFRAQ | F36: AL FUTTAIM | G36: Road base | H36: 76.1 | I36: 16 | J36: 1217.6 | M36: 420.5 | P36: 550 | Q36: 0 | R36: 160 | S36: مالكيت
A37: =IF(B37="","",MAX($A$1:A36)+1) -> 36 | B37: 2019-03-16 | C37: 52152 | D37: 1425870 | E37: JEBEL ALI | F37: AL FUTTAIM | G37: Road base | H37: 78.22 | I37: 8.75 | J37: 684.425 | M37: 420.5 | P37: 550 | Q37: 0 | R37: 80 | S37: مالكيت
A38: =IF(B38="","",MAX($A$1:A37)+1) -> 37 | B38: 2019-03-17 | C38: 52152 | D38: 2216349 | E38: Cement Factory | F38: AL RAWASI | G38: Road base | H38: 76.92 | I38: 16.65 | J38: 1280.718 | L38: 300 | M38: 420.5 | Q38: 0 | R38: 75 | S38: مالكيت
A39: =IF(B39="","",MAX($A$1:A38)+1) -> 38 | B39: 2019-03-17 | C39: 52152 | D39: 902701 | E39: DUCON | F39: AL BARRAK | G39: Road base | H39: 82.2 | I39: 21.97 | J39: 1805.934 | K39: 580 | M39: 420.5 | Q39: 0 | R39: 80 | S39: مالكيت
A40: =IF(B40="","",MAX($A$1:A39)+1) ->  | C40: 52152 | E40: MAFRAQ | F40: AL FUTTAIM | G40: Road base | Q40: 0 | R40: 160 | S40: مالكيت
A41: =IF(B41="","",MAX($A$1:A40)+1) ->  | C41: 52152 | E41: AL QUOZ | F41: AL FUTTAIM | G41: Road base | Q41: 0 | R41: 70 | S41: مالكيت
A42: =IF(B42="","",MAX($A$1:A41)+1) ->  | C42: 52152 | E42: AL QUOZ | F42: AL FUTTAIM | G42: Road base | Q42: 0 | R42: 70 | S42: مالكيت
A43: =IF(B43="","",MAX($A$1:A42)+1) ->  | C43: 52152 | E43: DUCON | F43: AL BARRAK | G43: Road base | Q43: 0 | R43: 90 | S43: مالكيت
A44: =IF(B44="","",MAX($A$1:A43)+1) ->  | C44: 52152 | E44: DUCON | F44: AL KAWTHER | G44: Road base | Q44: 0 | S44: مالكيت
A45: =IF(B45="","",MAX($A$1:A44)+1) ->  | C45: 52152 | E45: Cement Factory | F45: AL RAWASI | G45: Road base | Q45: 0 | S45: مالكيت
A46: =IF(B46="","",MAX($A$1:A45)+1) ->  | C46: 52152 | E46: Cement Factory | F46: AL RAWASI | G46: Road base | Q46: 0 | S46: مالكيت
A47: =IF(B47="","",MAX($A$1:A46)+1) ->  | C47: 52152 | E47: DUCON | F47: AL KAWTHER | G47: Road base | Q47: 0 | S47: مالكيت
A48: =IF(B48="","",MAX($A$1:A47)+1) ->  | C48: 52152 | E48: Cement Factory | F48: AL RAWASI | G48: Road base | Q48: 0 | S48: مالكيت
A49: =IF(B49="","",MAX($A$1:A48)+1) ->  | C49: 52152 | E49: DUCON | F49: AL KAWTHER | G49: Road base | Q49: 0 | S49: مالكيت
A50: =IF(B50="","",MAX($A$1:A49)+1) ->  | C50: 52152 | E50: Cement Factory | F50: AL RAWASI | G50: Road base | Q50: 0 | S50: مالكيت
A51: =IF(B51="","",MAX($A$1:A50)+1) ->  | C51: 52152 | E51: Cement Factory | F51: AL RAWASI | G51: Road base | Q51: 0 | S51: مالكيت
A52: =IF(B52="","",MAX($A$1:A51)+1) ->  | C52: 52152 | E52: DUCON | F52: AL KAWTHER | G52: Road base | Q52: 0 | S52: مالكيت
A53: =IF(B53="","",MAX($A$1:A52)+1) ->  | C53: 52152 | E53: MADAM | F53: AL RAWDA | G53: Road base | Q53: 0 | S53: مالكيت
A54: =IF(B54="","",MAX($A$1:A53)+1) ->  | C54: 52152 | E54: Cement Factory | F54: AL RAWASI | G54: Road base | Q54: 0 | S54: مالكيت
A55: =IF(B55="","",MAX($A$1:A54)+1) ->  | C55: 52152 | E55: DUCON | F55: AL KAWTHER | G55: Road base | Q55: 0 | S55: مالكيت
A56: =IF(B56="","",MAX($A$1:A55)+1) ->  | C56: 52152 | E56: Cement Factory | F56: AL RAWASI | G56: Road base | Q56: 0 | S56: مالكيت
A57: =IF(B57="","",MAX($A$1:A56)+1) ->  | C57: 52152 | E57: Cement Factory | F57: AL RAWASI | G57: Road base | Q57: 0 | S57: مالكيت
A58: =IF(B58="","",MAX($A$1:A57)+1) ->  | C58: 52152 | E58: Cement Factory | F58: AL RAWASI | G58: Road base | Q58: 0 | S58: مالكيت
A59: =IF(B59="","",MAX($A$1:A58)+1) ->  | C59: 52152 | E59: DUBAI | F59: CENTRAL | G59: Road base | Q59: 0 | S59: مالكيت
A60: =IF(B60="","",MAX($A$1:A59)+1) ->  | C60: 52152 | E60: DUCON | F60: AL KAWTHER | G60: Road base | Q60: 0 | S60: مالكيت
A61: =IF(B61="","",MAX($A$1:A60)+1) ->  | C61: 52152 | E61: Cement Factory | F61: AL RAWASI | G61: Road base | Q61: 0 | S61: مالكيت
A62: =IF(B62="","",MAX($A$1:A61)+1) ->  | C62: 52152 | E62: Cement Factory | F62: AL RAWASI | G62: Road base | Q62: 0 | S62: مالكيت
A63: =IF(B63="","",MAX($A$1:A62)+1) ->  | C63: 52152 | E63: Cement Factory | F63: AL RAWASI | G63: Road base | Q63: 0 | S63: مالكيت
A64: =IF(B64="","",MAX($A$1:A63)+1) ->  | C64: 52152 | E64: DUCON | F64: AL KAWTHER | G64: Road base | Q64: 0 | S64: مالكيت
A65: =IF(B65="","",MAX($A$1:A64)+1) ->  | C65: 52152 | E65: DUCON | F65: AL KAWTHER | G65: Road base | Q65: 0 | S65: مالكيت
A66: =IF(B66="","",MAX($A$1:A65)+1) ->  | C66: 52152 | E66: Cement Factory | F66: AL RAWASI | G66: Road base | I66: =IF(B66="","",(IF(AND(F66="RIDI SIDI"),"16.65",IF(AND(F66="CENTRAL",E66="DUBAI"),"19",IF(AND(F66="CENTRAL",E66="JEBEL ALI"),"21",IF(AND(F66="AL RAWASI"),"16.65",IF(AND(F66="AL NAKHEEL"),"16.65",IF(AND(F66="WB"),"22.60",IF(AND(F66="AL BARRAK",E66="DUCON"),"21.97",IF(AND(F66="AL KAWTHER",E66="DUCON"),"21.97",IF(AND(F66="AL KAWTHER"),"22.5",IF(AND(F66="AL FUTTAIM",E66="JEBEL ALI"),"8.75",IF(AND(F66="AL FUTTAIM",E66="MAFRAQ"),"16",IF(AND(F66="AL FUTTAIM",E66="AL QUOZ"),"7.70",IF(AND(F66="AL FUTTAIM",E66="MUSSAFAH"),"16.90",IF(AND(F66="AL FUTTAIM",E66="NAD AL SHEBA"),"8.50",IF(AND(F66="AL FUTTAIM",E66="MAHAWI"),"16.90",IF(AND(F66="AL RAWDA",E66="MADAM"),"24.50",)))))))))))))))))*1) ->  | J66: =IF(B66="","",I66*H66) ->  | Q66: 0 | S66: مالكيت | T66: =IF(OR(R66=100,R66=115),"National","") -> 
A67: =IF(B67="","",MAX($A$1:A66)+1) ->  | C67: 52152 | E67: DUBAI | F67: CENTRAL | G67: Road base | Q67: 0 | S67: مالكيت
A68: =IF(B68="","",MAX($A$1:A67)+1) ->  | C68: 52152 | E68: Cement Factory | F68: AL RAWASI | G68: Road base | Q68: 0 | S68: مالكيت
A69: =IF(B69="","",MAX($A$1:A68)+1) ->  | C69: 52152 | E69: DUCON | F69: AL KAWTHER | G69: Road base | Q69: 0 | S69: مالكيت
A70: =IF(B70="","",MAX($A$1:A69)+1) ->  | C70: 52152 | E70: Cement Factory | F70: AL RAWASI | G70: Road base | Q70: 0 | S70: مالكيت
A71: =IF(B71="","",MAX($A$1:A70)+1) ->  | C71: 52152 | E71: Cement Factory | F71: AL RAWASI | G71: Road base | Q71: 0 | S71: مالكيت
A72: =IF(B72="","",MAX($A$1:A71)+1) ->  | C72: 52152 | E72: Cement Factory | F72: AL RAWASI | G72: Road base | Q72: 0 | S72: مالكيت
A73: =IF(B73="","",MAX($A$1:A72)+1) ->  | C73: 52152 | E73: DUCON | F73: AL BARRAK | G73: Road base | Q73: 0 | S73: مالكيت
A74: =IF(B74="","",MAX($A$1:A73)+1) ->  | C74: 52152 | E74: Cement Factory | F74: AL RAWASI | G74: Road base | Q74: 0 | S74: مالكيت
A75: =IF(B75="","",MAX($A$1:A74)+1) ->  | C75: 52152 | E75: DUCON | F75: AL BARRAK | G75: Road base | Q75: 0 | S75: مالكيت
A76: =IF(B76="","",MAX($A$1:A75)+1) ->  | C76: 52152 | E76: DUBAI | F76: CENTRAL | G76: Road base | Q76: 0 | S76: مالكيت
A77: =IF(B77="","",MAX($A$1:A76)+1) ->  | C77: 52152 | E77: DUCON | F77: AL BARRAK | G77: Road base | Q77: 0 | S77: مالكيت
A78: =IF(B78="","",MAX($A$1:A77)+1) ->  | C78: 52152 | E78: Cement Factory | F78: RIDI SIDI | G78: Road base | Q78: 0 | S78: مالكيت
A79: =IF(B79="","",MAX($A$1:A78)+1) ->  | C79: 52152 | E79: Cement Factory | F79: RIDI SIDI | G79: Road base | Q79: 0 | S79: مالكيت
A80: =IF(B80="","",MAX($A$1:A79)+1) ->  | C80: 52152 | E80: AL QUOZ | F80: AL FUTTAIM | G80: Road base | Q80: 0 | S80: مالكيت
A81: =IF(B81="","",MAX($A$1:A80)+1) ->  | C81: 52152 | E81: MAFRAQ | F81: AL FUTTAIM | G81: Road base | Q81: 0 | S81: مالكيت
B82: =SUBTOTAL(2,B2:B81) -> 38 | H82: =SUBTOTAL(9,H2:H81) -> 2990.34 | J82: =SUBTOTAL(9,J2:J81) -> 42604.314 | K82: 2110 | L82: 3600 | M82: 14297 | N82: 0 | O82: 0 | P82: =SUBTOTAL(9,P2:P81) -> 12100 | Q82: =SUBTOTAL(9,Q2:Q81) -> 0 | R82: =SUBTOTAL(9,R2:R81) -> 4245 | T82: =IF(R82=100,"National","") -> 
K83: =SUBTOTAL(2,K2:K81) -> 4 | L83: =SUBTOTAL(2,L2:L81) -> 12 | M83: 34 | N83: 0 | O83: 0 | P83: 22 | Q83: 8.446
Q84: =Q82*Q83 -> 0
J87: كامل المصاريف
J88: الديزل | L88: =Q82 -> 0
C89: وارد السيارة | E89: =J82 -> 42604.314 | J89: الاطارات | L89: 0
C90: كامل المصاريف | E90: =L95 -> 41375.93 | J90: تكت | L90: =SUM(K82:P82) -> 32107
C91: الصافي | E91: =E89-E90 -> 1228.384 | J91: قطع غيار
J92: راتب السائق | L92: =R82 -> 4245
J93: فواتير متفرقة | L93: 5023.93
J94: رسوم تصريح /9
J95: الاجمالي | L95: =SUM(L88:M94) -> 41375.93

Sheet 40229
A1: م | B1: DATE التاريخ | C1: NO TRUCK رقم السيارة | D1: NO TICKET رقم الفاتورة | E1: DESTINATION الموقع | F1: CRUCHER الكسارة | G1: MATERIAL المادة | H1: NETWET الوزن | I1: RATE سعر الطن | J1: TOTAL الاجمالى | K1: FUJ ت/فجيرة | L1: SAEEDY ت/ساعدي | M1: DHAID ت/الذيد | N1: ZUBAIR ت/الزبير | O1: ALGHAIL ت/الغيل | P1: KADRAA ت/كدرة | Q1: DIESEL الديزل | R1: SALARY الراتب | S1: NAME DRIVER اسم السائق | T1: NOTICE ملاحظات
A2: =IF(B2="","",MAX($A$1:A1)+1) -> 1 | B2: 2019-03-01 | C2: 40229 | D2: 141340 | E2: AL QUOZ | F2: AL FUTTAIM | G2: Road base | H2: 71.9 | I2: =IF(B2="","",(IF(AND(F2="RIDI SIDI"),"16.65",IF(AND(F2="CENTRAL",E2="DUBAI"),"19",IF(AND(F2="CENTRAL",E2="JEBEL ALI"),"21",IF(AND(F2="AL RAWASI"),"16.65",IF(AND(F2="AL NAKHEEL"),"16.65",IF(AND(F2="WB"),"22.60",IF(AND(F2="AL BARRAK",E2="DUCON"),"21.97",IF(AND(F2="AL KAWTHER",E2="DUCON"),"21.97",IF(AND(F2="AL KAWTHER"),"22.5",IF(AND(F2="AL FUTTAIM",E2="JEBEL ALI"),"8.75",IF(AND(F2="AL FUTTAIM",E2="MAFRAQ"),"16",IF(AND(F2="AL FUTTAIM",E2="AL QUOZ"),"7.70",IF(AND(F2="AL FUTTAIM",E2="MUSSAFAH"),"16.90",IF(AND(F2="AL FUTTAIM",E2="NAD AL SHEBA"),"8.50",IF(AND(F2="AL FUTTAIM",E2="MAHAWI"),"16.90",IF(AND(F2="AL RAWDA",E2="MADAM"),"24.50",)))))))))))))))))*1) -> 7.7 | J2: =IF(B2="","",I2*H2) -> 553.63 | M2: 420.5 | P2: 550 | Q2: 0 | R2: 70 | S2: ساتبال | T2: =IF(OR(R2=100,R2=115),"National","") -> 
A3: =IF(B3="","",MAX($A$1:A2)+1) -> 2 | B3: 2019-03-01 | C3: 40229 | D3: 141363 | E3: AL QUOZ | F3: AL FUTTAIM | G3: Road base | H3: 76.98 | I3: 7.7 | J3: 592.746 | M3: 420.5 | P3: 550 | Q3: 0 | R3: 70 | S3: ساتبال
A4: =IF(B4="","",MAX($A$1:A3)+1) -> 3 | B4: 2019-03-02 | C4: 40229 | D4: 899558 | E4: DUCON | F4: AL BARRAK | G4: Road base | H4: 72.34 | I4: 21.97 | J4: 1589.3098 | K4: 510 | M4: 420.5 | Q4: 0 | R4: 90 | S4: ساتبال
A5: =IF(B5="","",MAX($A$1:A4)+1) -> 4 | B5: 2019-03-02 | C5: 40229 | D5: 2213550 | E5: Cement Factory | F5: AL NAKHEEL | G5: Road base | H5: 77.4 | I5: 16.65 | J5: 1288.71 | L5: 300 | M5: 420.5 | Q5: 0 | R5: 75 | S5: ساتبال
A6: =IF(B6="","",MAX($A$1:A5)+1) -> 5 | B6: 2019-03-03 | C6: 40229 | D6: 2213622 | E6: Cement Factory | F6: AL NAKHEEL | G6: Road base | H6: 72.24 | I6: 16.65 | J6: 1202.796 | L6: 300 | Q6: 0 | R6: 100 | S6: ساتبال | T6: National
A7: =IF(B7="","",MAX($A$1:A6)+1) -> 6 | B7: 2019-03-03 | C7: 40229 | D7: 2213839 | E7: Cement Factory | F7: AL NAKHEEL | G7: Road base | H7: 73.86 | I7: 16.65 | J7: 1229.769 | L7: 300 | M7: 420.5 | Q7: 0 | R7: 75 | S7: ساتبال
A8: =IF(B8="","",MAX($A$1:A7)+1) -> 7 | B8: 2019-03-03 | C8: 40229 | D8: 141446 | E8: JEBEL ALI | F8: AL FUTTAIM | G8: Road base | H8: 74 | I8: 8.75 | J8: 647.5 | M8: 420.5 | P8: 550 | Q8: 0 | R8: 80 | S8: ساتبال
A9: =IF(B9="","",MAX($A$1:A8)+1) -> 8 | B9: 2019-03-04 | C9: 40229 | D9: 2213866 | E9: Cement Factory | F9: AL NAKHEEL | G9: Road base | H9: 74.52 | I9: 16.65 | J9: 1240.758 | L9: 300 | Q9: 0 | R9: 100 | S9: ساتبال | T9: National
A10: =IF(B10="","",MAX($A$1:A9)+1) -> 9 | B10: 2019-03-04 | C10: 40229 | D10: 2213907 | E10: Cement Factory | F10: AL RAWASI | G10: Road base | H10: 76.34 | I10: 16.65 | J10: 1271.061 | L10: 300 | M10: 420.5 | Q10: 0 | R10: 75 | S10: ساتبال
A11: =IF(B11="","",MAX($A$1:A10)+1) -> 10 | B11: 2019-03-04 | C11: 40229 | D11: 2213953 | E11: Cement Factory | F11: AL RAWASI | G11: Road base | H11: 76.38 | I11: 16.65 | J11: 1271.727 | L11: 300 | M11: 420.5 | Q11: 0 | R11: 75 | S11: ساتبال
A12: =IF(B12="","",MAX($A$1:A11)+1) -> 11 | B12: 2019-03-04 | C12: 40229 | D12: 141622 | E12: JEBEL ALI | F12: AL FUTTAIM | G12: Road base | H12: 77.32 | I12: 8.75 | J12: 676.55 | M12: 420.5 | P12: 550 | Q12: 0 | R12: 80 | S12: ساتبال
A13: =IF(B13="","",MAX($A$1:A12)+1) -> 12 | B13: 2019-03-05 | C13: 40229 | D13: 2214077 | E13: Cement Factory | F13: AL RAWASI | G13: Road base | H13: 76.68 | I13: 16.65 | J13: 1276.722 | L13: 300 | M13: 420.5 | Q13: 0 | R13: 75 | S13: ساتبال
A14: =IF(B14="","",MAX($A$1:A13)+1) -> 13 | B14: 2019-03-06 | C14: 40229 | D14: 2214150 | E14: Cement Factory | F14: AL RAWASI | G14: Road base | H14: 80.04 | I14: 16.65 | J14: 1332.666 | L14: 300 | Q14: 0 | R14: 100 | S14: ساتبال | T14: National
A15: =IF(B15="","",MAX($A$1:A14)+1) -> 14 | B15: 2019-03-06 | C15: 40229 | D15: 2214211 | E15: Cement Factory | F15: AL RAWASI | G15: Road base | H15: 77.76 | I15: 16.65 | J15: 1294.704 | L15: 300 | M15: 420.5 | Q15: 0 | R15: 75 | S15: ساتبال
A16: =IF(B16="","",MAX($A$1:A15)+1) -> 15 | B16: 2019-03-06 | C16: 40229 | D16: 2214268 | E16: Cement Factory | F16: AL RAWASI | G16: Road base | H16: 77.6 | I16: 16.65 | J16: 1292.04 | L16: 300 | M16: 420.5 | Q16: 0 | R16: 75 | S16: ساتبال
A17: =IF(B17="","",MAX($A$1:A16)+1) -> 16 | B17: 2019-03-07 | C17: 40229 | D17: 2214325 | E17: Cement Factory | F17: AL RAWASI | G17: Road base | H17: 76.28 | I17: 16.65 | J17: 1270.062 | L17: 300 | Q17: 0 | R17: 100 | S17: ساتبال | T17: National
A18: =IF(B18="","",MAX($A$1:A17)+1) -> 17 | B18: 2019-03-07 | C18: 40229 | D18: 2214492 | E18: Cement Factory | F18: AL RAWASI | G18: Road base | H18: 73.74 | I18: 16.65 | J18: 1227.771 | L18: 300 | M18: 420.5 | Q18: 0 | R18: 75 | S18: ساتبال
A19: =IF(B19="","",MAX($A$1:A18)+1) -> 18 | B19: 2019-03-07 | C19: 40229 | D19: 141848 | E19: JEBEL ALI | F19: AL FUTTAIM | G19: Road base | H19: 74.46 | I19: 8.75 | J19: 651.525 | M19: 420.5 | P19: 550 | Q19: 0 | R19: 80 | S19: ساتبال
A20: =IF(B20="","",MAX($A$1:A19)+1) -> 19 | B20: 2019-03-08 | C20: 40229 | D20: 2214596 | E20: Cement Factory | F20: AL RAWASI | G20: Road base | H20: 79.36 | I20: 16.65 | J20: 1321.344 | L20: 300 | Q20: 0 | R20: 100 | S20: ساتبال | T20: National
A21: =IF(B21="","",MAX($A$1:A20)+1) -> 20 | B21: 2019-03-08 | C21: 40229 | D21: 2214749 | E21: Cement Factory | F21: AL NAKHEEL | G21: Road base | H21: 76.2 | I21: 16.65 | J21: 1268.73 | L21: 300 | M21: 420.5 | Q21: 0 | R21: 75 | S21: ساتبال
A22: =IF(B22="","",MAX($A$1:A21)+1) -> 21 | B22: 2019-03-08 | C22: 40229 | D22: 2214823 | E22: Cement Factory | F22: AL RAWASI | G22: Road base | H22: 80.5 | I22: 16.65 | J22: 1340.325 | L22: 300 | M22: 420.5 | Q22: 0 | R22: 75 | S22: ساتبال
A23: =IF(B23="","",MAX($A$1:A22)+1) -> 22 | B23: 2019-03-08 | C23: 40229 | D23: 2214685 | E23: Cement Factory | F23: AL RAWASI | G23: Road base | H23: 73.96 | I23: 16.65 | J23: 1231.434 | L23: 300 | M23: 420.5 | Q23: 0 | R23: 75 | S23: ساتبال
A24: =IF(B24="","",MAX($A$1:A23)+1) -> 23 | B24: 2019-03-09 | C24: 40229 | D24: 2214907 | E24: Cement Factory | F24: AL RAWASI | G24: Road base | H24: 76.12 | I24: 16.65 | J24: 1267.398 | L24: 300 | Q24: 0 | R24: 100 | S24: ساتبال | T24: National
A25: =IF(B25="","",MAX($A$1:A24)+1) -> 24 | B25: 2019-03-09 | C25: 40229 | D25: 2215086 | E25: Cement Factory | F25: AL RAWASI | G25: Road base | H25: 83.86 | I25: 16.65 | J25: 1396.269 | L25: 300 | M25: 420.5 | Q25: 0 | R25: 75 | S25: ساتبال
A26: =IF(B26="","",MAX($A$1:A25)+1) -> 25 | B26: 2019-03-10 | C26: 40229 | D26: 2215144 | E26: Cement Factory | F26: AL RAWASI | G26: Road base | H26: 77.02 | I26: 16.65 | J26: 1282.383 | L26: 300 | Q26: 0 | R26: 100 | S26: ساتبال | T26: National
A27: =IF(B27="","",MAX($A$1:A26)+1) -> 26 | B27: 2019-03-10 | C27: 40229 | D27: 142178 | E27: JEBEL ALI | F27: AL FUTTAIM | G27: Road base | H27: 77.82 | I27: 8.75 | J27: 680.925 | M27: 420.5 | P27: 550 | Q27: 0 | R27: 80 | S27: ساتبال
A28: =IF(B28="","",MAX($A$1:A27)+1) -> 27 | B28: 2019-03-11 | C28: 40229 | D28: 2215281 | E28: Cement Factory | F28: AL RAWASI | G28: Road base | H28: 75.48 | I28: 16.65 | J28: 1256.742 | L28: 300 | Q28: 0 | R28: 100 | S28: ساتبال | T28: National
A29: =IF(B29="","",MAX($A$1:A28)+1) -> 28 | B29: 2019-03-11 | C29: 40229 | D29: 2215225 | E29: Cement Factory | F29: AL NAKHEEL | G29: Road base | H29: 68.36 | I29: 16.65 | J29: 1138.194 | L29: 300 | M29: 420.5 | Q29: 0 | R29: 75 | S29: ساتبال
A30: =IF(B30="","",MAX($A$1:A29)+1) -> 29 | B30: 2019-03-11 | C30: 40229 | D30: 2215380 | E30: Cement Factory | F30: AL RAWASI | G30: Road base | H30: 74.96 | I30: 16.65 | J30: 1248.084 | L30: 300 | M30: 420.5 | Q30: 0 | R30: 75 | S30: ساتبال
A31: =IF(B31="","",MAX($A$1:A30)+1) -> 30 | B31: 2019-03-12 | C31: 40229 | D31: 2215451 | E31: Cement Factory | F31: AL RAWASI | G31: Road base | H31: 76.5 | I31: 16.65 | J31: 1273.725 | L31: 300 | Q31: 0 | R31: 100 | S31: ساتبال | T31: National
A32: =IF(B32="","",MAX($A$1:A31)+1) -> 31 | B32: 2019-03-12 | C32: 40229 | D32: 2217510 | E32: Cement Factory | F32: AL RAWASI | G32: Road base | H32: 76.44 | I32: 16.65 | J32: 1272.726 | L32: 300 | M32: 420.5 | Q32: 0 | R32: 75 | S32: ساتبال
A33: =IF(B33="","",MAX($A$1:A32)+1) -> 32 | B33: 2019-03-12 | C33: 40229 | D33: 2217597 | E33: Cement Factory | F33: AL RAWASI | G33: Road base | H33: 73.5 | I33: 16.65 | J33: 1223.775 | L33: 300 | M33: 420.5 | Q33: 0 | R33: 75 | S33: ساتبال
A34: =IF(B34="","",MAX($A$1:A33)+1) -> 33 | B34: 2019-03-13 | C34: 40229 | D34: 142648 | E34: JEBEL ALI | F34: AL FUTTAIM | G34: Road base | H34: 70.24 | I34: 8.75 | J34: 614.6 | M34: 420.5 | P34: 550 | Q34: 0 | R34: 80 | S34: ساتبال
A35: =IF(B35="","",MAX($A$1:A34)+1) -> 34 | B35: 2019-03-13 | C35: 40229 | D35: 2217656 | E35: Cement Factory | F35: AL NAKHEEL | G35: Road base | H35: 73.64 | I35: 16.65 | J35: 1226.106 | L35: 300 | Q35: 0 | R35: 100 | S35: ساتبال | T35: National
A36: =IF(B36="","",MAX($A$1:A35)+1) -> 35 | B36: 2019-03-13 | C36: 40229 | D36: 2217728 | E36: Cement Factory | F36: AL RAWASI | G36: Road base | H36: 72.2 | I36: 16.65 | J36: 1202.13 | L36: 300 | M36: 420.5 | R36: 75 | S36: ساتبال
A37: =IF(B37="","",MAX($A$1:A36)+1) -> 36 | B37: 2019-03-13 | C37: 40229 | D37: 2217818 | E37: Cement Factory | F37: AL RAWASI | G37: Road base | H37: 76.06 | I37: 16.65 | J37: 1266.399 | L37: 300 | M37: 420.5 | Q37: 0 | R37: 75 | S37: ساتبال
A38: =IF(B38="","",MAX($A$1:A37)+1) -> 37 | B38: 2019-03-14 | C38: 40229 | D38: 2215657 | E38: Cement Factory | F38: AL RAWASI | G38: Road base | H38: 75.2 | I38: 16.65 | J38: 1252.08 | L38: 300 | M38: 420.5 | Q38: 0 | R38: 75 | S38: ساتبال
A39: =IF(B39="","",MAX($A$1:A38)+1) -> 38 | B39: 2019-03-14 | C39: 40229 | D39: 142680 | E39: AL QUOZ | F39: AL FUTTAIM | G39: Road base | H39: 70.54 | I39: 7.7 | J39: 543.158 | M39: 420.5 | P39: 550 | Q39: 0 | R39: 70 | S39: ساتبال
A40: =IF(B40="","",MAX($A$1:A39)+1) -> 39 | B40: 2019-03-15 | C40: 40229 | D40: 2215736 | E40: Cement Factory | F40: AL RAWASI | G40: Road base | H40: 73.68 | I40: 16.65 | J40: 1226.772 | L40: 300 | Q40: 0 | R40: 100 | S40: ساتبال | T40: National
A41: =IF(B41="","",MAX($A$1:A40)+1) -> 40 | B41: 2019-03-15 | C41: 40229 | D41: 142805 | E41: AL QUOZ | F41: AL FUTTAIM | G41: Road base | H41: 79.02 | I41: 7.7 | J41: 608.454 | M41: 420.5 | P41: 550 | Q41: 0 | R41: 70 | S41: ساتبال
A42: =IF(B42="","",MAX($A$1:A41)+1) -> 41 | B42: 2019-03-16 | C42: 40229 | D42: 2216036 | E42: Cement Factory | F42: AL RAWASI | G42: Road base | H42: 78.52 | I42: 16.65 | J42: 1307.358 | L42: 300 | Q42: 0 | R42: 100 | S42: ساتبال | T42: National
A43: =IF(B43="","",MAX($A$1:A42)+1) -> 42 | B43: 2019-03-16 | C43: 40229 | D43: 2216122 | E43: Cement Factory | F43: AL RAWASI | G43: Road base | H43: 71.12 | I43: 16.65 | J43: 1184.148 | L43: 300 | M43: 420.5 | Q43: 0 | R43: 75 | S43: ساتبال
A44: =IF(B44="","",MAX($A$1:A43)+1) -> 43 | B44: 2019-03-16 | C44: 40229 | D44: 2216181 | E44: Cement Factory | F44: AL RAWASI | G44: Road base | H44: 67.46 | I44: 16.65 | J44: 1123.209 | L44: 300 | M44: 420.5 | Q44: 0 | R44: 75 | S44: ساتبال
A45: =IF(B45="","",MAX($A$1:A44)+1) -> 44 | B45: 2019-03-17 | C45: 40229 | D45: 2216245 | E45: Cement Factory | F45: AL RAWASI | G45: Road base | H45: 77.26 | I45: 16.65 | J45: 1286.379 | L45: 300 | Q45: 0 | R45: 100 | S45: ساتبال | T45: National
A46: =IF(B46="","",MAX($A$1:A45)+1) ->  | C46: 40229 | E46: Cement Factory | F46: AL RAWASI | G46: Road base | Q46: 0 | S46: ساتبال
A47: =IF(B47="","",MAX($A$1:A46)+1) ->  | C47: 40229 | E47: Cement Factory | F47: AL RAWASI | G47: Road base | Q47: 0 | S47: ساتبال
A48: =IF(B48="","",MAX($A$1:A47)+1) ->  | C48: 40229 | E48: Cement Factory | F48: AL RAWASI | G48: Road base | Q48: 0 | S48: ساتبال
A49: =IF(B49="","",MAX($A$1:A48)+1) ->  | C49: 40229 | E49: Cement Factory | F49: AL RAWASI | G49: Road base | Q49: 0 | S49: ساتبال
A50: =IF(B50="","",MAX($A$1:A49)+1) ->  | C50: 40229 | E50: Cement Factory | F50: AL RAWASI | G50: Road base | Q50: 0 | S50: ساتبال
A51: =IF(B51="","",MAX($A$1:A50)+1) ->  | C51: 40229 | E51: Cement Factory | F51: AL RAWASI | G51: Road base | Q51: 0 | S51: ساتبال
A52: =IF(B52="","",MAX($A$1:A51)+1) ->  | C52: 40229 | E52: Cement Factory | F52: AL RAWASI | G52: Road base | Q52: 0 | S52: ساتبال
A53: =IF(B53="","",MAX($A$1:A52)+1) ->  | C53: 40229 | E53: Cement Factory | F53: AL RAWASI | G53: Road base | Q53: 0 | S53: ساتبال
A54: =IF(B54="","",MAX($A$1:A53)+1) ->  | C54: 40229 | E54: Cement Factory | F54: AL RAWASI | G54: Road base | Q54: 0 | S54: ساتبال
A55: =IF(B55="","",MAX($A$1:A54)+1) ->  | C55: 40229 | E55: Cement Factory | F55: AL RAWASI | G55: Road base | Q55: 0 | S55: ساتبال
A56: =IF(B56="","",MAX($A$1:A55)+1) ->  | C56: 40229 | E56: Cement Factory | F56: AL RAWASI | G56: Road base | Q56: 0 | S56: ساتبال
A57: =IF(B57="","",MAX($A$1:A56)+1) ->  | C57: 40229 | E57: Cement Factory | F57: AL RAWASI | G57: Road base | Q57: 0 | S57: ساتبال
A58: =IF(B58="","",MAX($A$1:A57)+1) ->  | C58: 40229 | E58: Cement Factory | F58: AL RAWASI | G58: Road base | Q58: 0 | S58: ساتبال
A59: =IF(B59="","",MAX($A$1:A58)+1) ->  | C59: 40229 | E59: Cement Factory | F59: AL RAWASI | G59: Road base | Q59: 0 | S59: ساتبال
A60: =IF(B60="","",MAX($A$1:A59)+1) ->  | C60: 40229 | E60: Cement Factory | F60: AL RAWASI | G60: Road base | Q60: 0 | S60: ساتبال
A61: =IF(B61="","",MAX($A$1:A60)+1) ->  | C61: 40229 | E61: Cement Factory | F61: AL RAWASI | G61: Road base | Q61: 0 | S61: ساتبال
A62: =IF(B62="","",MAX($A$1:A61)+1) ->  | C62: 40229 | E62: Cement Factory | F62: AL RAWASI | G62: Road base | Q62: 0 | S62: ساتبال
A63: =IF(B63="","",MAX($A$1:A62)+1) ->  | C63: 40229 | E63: Cement Factory | F63: AL RAWASI | G63: Road base | Q63: 0 | S63: ساتبال
A64: =IF(B64="","",MAX($A$1:A63)+1) ->  | C64: 40229 | E64: Cement Factory | F64: AL RAWASI | G64: Road base | Q64: 0 | S64: ساتبال
A65: =IF(B65="","",MAX($A$1:A64)+1) ->  | C65: 40229 | E65: Cement Factory | F65: AL RAWASI | G65: Road base | Q65: 0 | S65: ساتبال
A66: =IF(B66="","",MAX($A$1:A65)+1) ->  | C66: 40229 | E66: Cement Factory | F66: AL RAWASI | G66: Road base | I66: =IF(B66="","",(IF(AND(F66="RIDI SIDI"),"16.65",IF(AND(F66="CENTRAL",E66="DUBAI"),"19",IF(AND(F66="CENTRAL",E66="JEBEL ALI"),"21",IF(AND(F66="AL RAWASI"),"16.65",IF(AND(F66="AL NAKHEEL"),"16.65",IF(AND(F66="WB"),"22.60",IF(AND(F66="AL BARRAK",E66="DUCON"),"21.97",IF(AND(F66="AL KAWTHER",E66="DUCON"),"21.97",IF(AND(F66="AL KAWTHER"),"22.5",IF(AND(F66="AL FUTTAIM",E66="JEBEL ALI"),"8.75",IF(AND(F66="AL FUTTAIM",E66="MAFRAQ"),"16",IF(AND(F66="AL FUTTAIM",E66="AL QUOZ"),"7.70",IF(AND(F66="AL FUTTAIM",E66="MUSSAFAH"),"16.90",IF(AND(F66="AL FUTTAIM",E66="NAD AL SHEBA"),"8.50",IF(AND(F66="AL FUTTAIM",E66="MAHAWI"),"16.90",IF(AND(F66="AL RAWDA",E66="MADAM"),"24.50",)))))))))))))))))*1) ->  | J66: =IF(B66="","",I66*H66) ->  | Q66: 0 | S66: ساتبال | T66: =IF(OR(R66=100,R66=115),"National","") -> 
A67: =IF(B67="","",MAX($A$1:A66)+1) ->  | C67: 40229 | E67: Cement Factory | F67: AL RAWASI | G67: Road base | Q67: 0 | S67: ساتبال
A68: =IF(B68="","",MAX($A$1:A67)+1) ->  | C68: 40229 | E68: Cement Factory | F68: AL RAWASI | G68: Road base | Q68: 0 | S68: ساتبال
A69: =IF(B69="","",MAX($A$1:A68)+1) ->  | C69: 40229 | E69: Cement Factory | F69: AL RAWASI | G69: Road base | Q69: 0 | S69: ساتبال
A70: =IF(B70="","",MAX($A$1:A69)+1) ->  | C70: 40229 | E70: Cement Factory | F70: AL RAWASI | G70: Road base | Q70: 0 | S70: ساتبال
A71: =IF(B71="","",MAX($A$1:A70)+1) ->  | C71: 40229 | E71: Cement Factory | F71: AL BARRAK | G71: Road base | Q71: 0 | S71: ساتبال
A72: =IF(B72="","",MAX($A$1:A71)+1) ->  | C72: 40229 | E72: Cement Factory | F72: RIDI SIDI | G72: Road base | Q72: 0 | S72: ساتبال
A73: =IF(B73="","",MAX($A$1:A72)+1) ->  | C73: 40229 | E73: Cement Factory | F73: RIDI SIDI | G73: Road base | Q73: 0 | S73: ساتبال
A74: =IF(B74="","",MAX($A$1:A73)+1) ->  | C74: 40229 | E74: Cement Factory | F74: RIDI SIDI | G74: Road base | Q74: 0 | S74: ساتبال
A75: =IF(B75="","",MAX($A$1:A74)+1) ->  | C75: 40229 | E75: Cement Factory | F75: RIDI SIDI | G75: Road base | Q75: 0 | S75: ساتبال
A76: =IF(B76="","",MAX($A$1:A75)+1) ->  | C76: 40229 | E76: Cement Factory | F76: RIDI SIDI | G76: Road base | Q76: 0 | S76: ساتبال
A77: =IF(B77="","",MAX($A$1:A76)+1) ->  | C77: 40229 | E77: Cement Factory | F77: RIDI SIDI | G77: Road base | Q77: 0 | S77: ساتبال
A78: =IF(B78="","",MAX($A$1:A77)+1) ->  | C78: 40229 | E78: Cement Factory | F78: RIDI SIDI | G78: Road base | Q78: 0 | S78: ساتبال
A79: =IF(B79="","",MAX($A$1:A78)+1) ->  | C79: 40229 | E79: Cement Factory | F79: RIDI SIDI | G79: Road base | Q79: 0 | S79: ساتبال
A80: =IF(B80="","",MAX($A$1:A79)+1) ->  | C80: 40229 | E80: AL QUOZ | F80: AL FUTTAIM | G80: Road base | Q80: 0 | S80: ساتبال
A81: =IF(B81="","",MAX($A$1:A80)+1) ->  | C81: 40229 | E81: MAFRAQ | F81: AL FUTTAIM | G81: Road base | Q81: 0 | S81: ساتبال
B82: =SUBTOTAL(2,B2:B81) -> 44 | H82: =SUBTOTAL(9,H2:H81) -> 3314.86 | J82: =SUBTOTAL(9,J2:J81) -> 49952.8938 | K82: =SUBTOTAL(9,K2:K81) -> 510 | L82: =SUBTOTAL(9,L2:L81) -> 10200 | M82: 13035.5 | N82: 0 | O82: 0 | P82: 4950 | Q82: 0 | R82: 3645 | T82: =IF(R82=100,"National","") -> 
K83: =SUBTOTAL(2,K2:K81) -> 1 | L83: =SUBTOTAL(2,L2:L81) -> 34 | M83: 31 | N83: 0 | O83: 0 | P83: 9 | Q83: 8.446
Q84: =Q82*Q83 -> 0
J87: كامل المصاريف
J88: الديزل | L88: =Q82 -> 0
C89: وارد السيارة | E89: =J82 -> 49952.8938 | J89: الاطارات | L89: 0 | P89: تم خصم الضريبة من خلال المصاريف ولم يتم اضافتها على الوارد
C90: كامل المصاريف | E90: =L95 -> 37364.43 | J90: تكت | L90: =SUM(K82:P82) -> 28695.5
C91: الصافي | E91: =E89-E90 -> 12588.4638 | J91: قطع غيار
J92: راتب السائق | L92: =R82 -> 3645
J93: فواتير متفرقة | L93: 5023.93
J94: رسوم تصريح /9
J95: الاجمالي | L95: =SUM(L88:M94) -> 37364.43

Sheet 25905
A1: م | B1: DATE التاريخ | C1: NO TRUCK رقم السيارة | D1: NO TICKET رقم الفاتورة | E1: DESTINATION الموقع | F1: CRUCHER الكسارة | G1: MATERIAL المادة | H1: NETWET الوزن | I1: RATE سعر الطن | J1: TOTAL الاجمالى | K1: FUJ ت/فجيرة | L1: SAEEDY ت/ساعدي | M1: DHAID ت/الذيد | N1: ZUBAIR ت/الزبير | O1: ALGHAIL ت/الغيل | P1: KADRAA ت/كدرة | Q1: DIESEL الديزل | R1: SALARY الراتب | S1: NAME DRIVER اسم السائق | T1: NOTICE ملاحظات
A2: =IF(B2="","",MAX($A$1:A1)+1) -> 1 | B2: 2019-03-01 | C2: 25905 | D2: 141336 | E2: MUSSAFAH | F2: AL FUTTAIM | G2: Road base | H2: 78.54 | I2: =IF(B2="","",(IF(AND(F2="RIDI SIDI"),"16.65",IF(AND(F2="CENTRAL",E2="DUBAI"),"19",IF(AND(F2="CENTRAL",E2="JEBEL ALI"),"21",IF(AND(F2="AL RAWASI"),"16.65",IF(AND(F2="AL NAKHEEL"),"16.65",IF(AND(F2="WB"),"22.60",IF(AND(F2="AL BARRAK",E2="DUCON"),"21.97",IF(AND(F2="AL KAWTHER",E2="DUCON"),"21.97",IF(AND(F2="AL KAWTHER"),"22.5",IF(AND(F2="AL FUTTAIM",E2="JEBEL ALI"),"8.75",IF(AND(F2="AL FUTTAIM",E2="MAFRAQ"),"16",IF(AND(F2="AL FUTTAIM",E2="AL QUOZ"),"7.70",IF(AND(F2="AL FUTTAIM",E2="MUSSAFAH"),"16.90",IF(AND(F2="AL FUTTAIM",E2="NAD AL SHEBA"),"8.50",IF(AND(F2="AL FUTTAIM",E2="MAHAWI"),"16.90",IF(AND(F2="AL RAWDA",E2="MADAM"),"24.50",)))))))))))))))))*1) -> 16.9 | J2: =IF(B2="","",I2*H2) -> 1327.326 | M2: 420.5 | P2: 550 | Q2: 0 | R2: 180 | S2: سانديب | T2: =IF(OR(R2=100,R2=115),"National","") -> 
A3: =IF(B3="","",MAX($A$1:A2)+1) -> 2 | B3: 2019-03-02 | C3: 25905 | D3: 141432 | E3: JEBEL ALI | F3: AL FUTTAIM | G3: Road base | H3: 75.94 | I3: 8.75 | J3: 664.475 | M3: 420.5 | P3: 550 | Q3: 0 | R3: 80 | S3: سانديب
A4: =IF(B4="","",MAX($A$1:A3)+1) -> 3 | B4: 2019-03-02 | C4: 25905 | D4: 141383 | E4: AL QUOZ | F4: AL FUTTAIM | G4: Road base | H4: 76.58 | I4: 7.7 | J4: 589.666 | M4: 420.5 | P4: 550 | Q4: 0 | R4: 70 | S4: سانديب
A5: =IF(B5="","",MAX($A$1:A4)+1) -> 4 | B5: 2019-03-03 | C5: 25905 | D5: 141489 | E5: MAFRAQ | F5: AL FUTTAIM | G5: Road base | H5: 77.2 | I5: 16 | J5: 1235.2 | M5: 420.5 | P5: 550 | Q5: 0 | R5: 160 | S5: سانديب
A6: =IF(B6="","",MAX($A$1:A5)+1) -> 5 | B6: 2019-03-03 | C6: 25905 | D6: 141448 | E6: AL QUOZ | F6: AL FUTTAIM | G6: Road base | H6: 76.54 | I6: 7.7 | J6: 589.358 | M6: 420.5 | P6: 550 | Q6: 0 | R6: 70 | S6: سانديب
A7: =IF(B7="","",MAX($A$1:A6)+1) -> 6 | B7: 2019-03-04 | C7: 25905 | D7: 141619 | E7: JEBEL ALI | F7: AL FUTTAIM | G7: Road base | H7: 78.48 | I7: 8.75 | J7: 686.7 | M7: 420.5 | P7: 550 | Q7: 0 | R7: 80 | S7: سانديب
A8: =IF(B8="","",MAX($A$1:A7)+1) -> 7 | B8: 2019-03-04 | C8: 25905 | D8: 141566 | E8: AL QUOZ | F8: AL FUTTAIM | G8: Road base | H8: 75.38 | I8: 7.7 | J8: 580.426 | M8: 420.5 | P8: 550 | Q8: 0 | R8: 70 | S8: سانديب
A9: =IF(B9="","",MAX($A$1:A8)+1) -> 8 | B9: 2019-03-05 | C9: 25905 | D9: 141733 | E9: MAFRAQ | F9: AL FUTTAIM | G9: Road base | H9: 74.9 | I9: 16 | J9: 1198.4 | M9: 420.5 | P9: 550 | Q9: 0 | R9: 160 | S9: سانديب
A10: =IF(B10="","",MAX($A$1:A9)+1) -> 9 | B10: 2019-03-05 | C10: 25905 | D10: 141667 | E10: JEBEL ALI | F10: AL FUTTAIM | G10: Road base | H10: 76.9 | I10: 8.75 | J10: 672.875 | M10: 420.5 | P10: 550 | Q10: 0 | R10: 80 | S10: سانديب
A11: =IF(B11="","",MAX($A$1:A10)+1) -> 10 | B11: 2019-03-05 | C11: 25905 | D11: 141700 | E11: AL QUOZ | F11: AL FUTTAIM | G11: Road base | H11: 74.88 | I11: 7.7 | J11: 576.576 | M11: 420.5 | P11: 550 | Q11: 0 | R11: 70 | S11: سانديب
A12: =IF(B12="","",MAX($A$1:A11)+1) -> 11 | B12: 2019-03-05 | C12: 25905 | D12: 141666 | E12: JEBEL ALI | F12: AL FUTTAIM | G12: Road base | H12: 76.92 | I12: 8.75 | J12: 673.05 | M12: 420.5 | P12: 550 | Q12: 0 | R12: 80 | S12: سانديب
A13: =IF(B13="","",MAX($A$1:A12)+1) -> 12 | B13: 2019-03-06 | C13: 25905 | D13: 2214219 | E13: Cement Factory | F13: AL RAWASI | G13: Road base | H13: 82.64 | I13: 16.65 | J13: 1375.956 | L13: 300 | M13: 420.5 | Q13: 0 | R13: 75 | S13: سانديب
A14: =IF(B14="","",MAX($A$1:A13)+1) -> 13 | B14: 2019-03-06 | C14: 25905 | D14: 2214293 | E14: Cement Factory | F14: AL RAWASI | G14: Road base | H14: 86.96 | I14: 16.65 | J14: 1447.884 | L14: 300 | M14: 420.5 | Q14: 0 | R14: 75 | S14: سانديب
A15: =IF(B15="","",MAX($A$1:A14)+1) -> 14 | B15: 2019-03-07 | C15: 25905 | D15: 2214336 | E15: Cement Factory | F15: AL NAKHEEL | G15: Road base | H15: 75.92 | I15: 16.65 | J15: 1264.068 | L15: 300 | Q15: 0 | R15: 100 | S15: سانديب | T15: National
A16: =IF(B16="","",MAX($A$1:A15)+1) -> 15 | B16: 2019-03-07 | C16: 25905 | D16: 2214392 | E16: Cement Factory | F16: AL RAWASI | G16: Road base | H16: 82.76 | I16: 16.65 | J16: 1377.954 | L16: 300 | M16: 420.5 | Q16: 0 | R16: 75 | S16: سانديب
A17: =IF(B17="","",MAX($A$1:A16)+1) -> 16 | B17: 2019-03-08 | C17: 25905 | D17: 2214574 | E17: Cement Factory | F17: AL RAWASI | G17: Road base | H17: 84.7 | I17: 16.65 | J17: 1410.255 | L17: 300 | Q17: 0 | R17: 100 | S17: سانديب | T17: National
A18: =IF(B18="","",MAX($A$1:A17)+1) -> 17 | B18: 2019-03-08 | C18: 25905 | D18: 141951 | E18: MAFRAQ | F18: AL FUTTAIM | G18: Road base | H18: 77.56 | I18: 16 | J18: 1240.96 | M18: 420.5 | P18: 550 | Q18: 0 | R18: 160 | S18: سانديب
A19: =IF(B19="","",MAX($A$1:A18)+1) -> 18 | B19: 2019-03-09 | C19: 25905 | D19: 2214865 | E19: Cement Factory | F19: AL RAWASI | G19: Road base | H19: 85.08 | I19: 16.65 | J19: 1416.582 | L19: 300 | M19: 420.5 | Q19: 0 | R19: 75 | S19: سانديب
A20: =IF(B20="","",MAX($A$1:A19)+1) -> 19 | B20: 2019-03-09 | C20: 25905 | D20: 142033 | E20: MUSSAFAH | F20: AL FUTTAIM | G20: Road base | H20: 79.52 | I20: 16.9 | J20: 1343.888 | M20: 420.5 | P20: 550 | Q20: 0 | R20: 180 | S20: سانديب
A21: =IF(B21="","",MAX($A$1:A20)+1) -> 20 | B21: 2019-03-09 | C21: 25905 | D21: 142150 | E21: MUSSAFAH | F21: AL FUTTAIM | G21: Road base | H21: 76.6 | I21: 16.9 | J21: 1294.54 | M21: 420.5 | P21: 550 | Q21: 0 | R21: 180 | S21: سانديب
A22: =IF(B22="","",MAX($A$1:A21)+1) -> 21 | B22: 2019-03-09 | C22: 25905 | D22: 142095 | E22: JEBEL ALI | F22: AL FUTTAIM | G22: Road base | H22: 79.12 | I22: 8.75 | J22: 692.3 | M22: 420.5 | P22: 550 | Q22: 0 | R22: 80 | S22: سانديب
A23: =IF(B23="","",MAX($A$1:A22)+1) -> 22 | B23: 2019-03-11 | C23: 25905 | D23: 2215384 | E23: Cement Factory | F23: AL RAWASI | G23: Road base | H23: 81.6 | I23: 16.65 | J23: 1358.64 | L23: 300 | M23: 420.5 | Q23: 0 | R23: 75 | S23: سانديب
A24: =IF(B24="","",MAX($A$1:A23)+1) -> 23 | B24: 2019-03-11 | C24: 25905 | D24: 2215226 | E24: Cement Factory | F24: AL RAWASI | G24: Road base | H24: 73.36 | I24: 16.65 | J24: 1221.444 | L24: 300 | M24: 420.5 | Q24: 0 | R24: 75 | S24: سانديب
A25: =IF(B25="","",MAX($A$1:A24)+1) -> 24 | B25: 2019-03-11 | C25: 25905 | D25: 142380 | E25: MUSSAFAH | F25: AL FUTTAIM | G25: Road base | H25: 80.76 | I25: 16.9 | J25: 1364.844 | M25: 420.5 | P25: 550 | Q25: 0 | R25: 180 | S25: سانديب
A26: =IF(B26="","",MAX($A$1:A25)+1) -> 25 | B26: 2019-03-11 | C26: 25905 | D26: 142299 | E26: MUSSAFAH | F26: AL FUTTAIM | G26: Road base | H26: 80.2 | I26: 16.9 | J26: 1355.38 | M26: 420.5 | P26: 550 | Q26: 0 | R26: 180 | S26: سانديب
A27: =IF(B27="","",MAX($A$1:A26)+1) -> 26 | B27: 2019-03-12 | C27: 25905 | D27: 142459 | E27: JEBEL ALI | F27: AL FUTTAIM | G27: Road base | H27: 78.08 | I27: 8.75 | J27: 683.2 | M27: 420.5 | P27: 550 | Q27: 0 | R27: 80 | S27: سانديب
A28: =IF(B28="","",MAX($A$1:A27)+1) -> 27 | B28: 2019-03-13 | C28: 25905 | D28: 142617 | E28: AL QUOZ | F28: AL FUTTAIM | G28: Road base | H28: 78.1 | I28: 7.7 | J28: 601.37 | M28: 420.5 | P28: 550 | Q28: 0 | R28: 70 | S28: سانديب
A29: =IF(B29="","",MAX($A$1:A28)+1) -> 28 | B29: 2019-03-13 | C29: 25905 | D29: 142529 | E29: JEBEL ALI | F29: AL FUTTAIM | G29: Road base | H29: 80.32 | I29: 8.75 | J29: 702.8 | M29: 420.5 | P29: 550 | Q29: 0 | R29: 80 | S29: سانديب
A30: =IF(B30="","",MAX($A$1:A29)+1) -> 29 | B30: 2019-03-14 | C30: 25905 | D30: 142672 | E30: AL QUOZ | F30: AL FUTTAIM | G30: Road base | H30: 72.12 | I30: 7.7 | J30: 555.324 | M30: 420.5 | P30: 550 | Q30: 0 | R30: 70 | S30: سانديب
A31: =IF(B31="","",MAX($A$1:A30)+1) -> 30 | B31: 2019-03-14 | C31: 25905 | D31: 2215676 | E31: Cement Factory | F31: AL RAWASI | G31: Road base | H31: 78 | I31: 16.65 | J31: 1298.7 | L31: 300 | M31: 420.5 | Q31: 0 | R31: 75 | S31: سانديب
A32: =IF(B32="","",MAX($A$1:A31)+1) -> 31 | B32: 2019-03-14 | C32: 25905 | D32: 142796 | E32: MAFRAQ | F32: AL FUTTAIM | G32: Road base | H32: 79.14 | I32: 16 | J32: 1266.24 | M32: 420.5 | P32: 550 | Q32: 0 | R32: 160 | S32: سانديب
A33: =IF(B33="","",MAX($A$1:A32)+1) -> 32 | B33: 2019-03-15 | C33: 25905 | D33: 142820 | E33: AL QUOZ | F33: AL FUTTAIM | G33: Road base | H33: 79.56 | I33: 7.7 | J33: 612.612 | M33: 420.5 | P33: 550 | Q33: 0 | R33: 70 | S33: سانديب
A34: =IF(B34="","",MAX($A$1:A33)+1) -> 33 | B34: 2019-03-16 | C34: 25905 | D34: 2216041 | E34: Cement Factory | F34: AL RAWASI | G34: Road base | H34: 85 | I34: 16.65 | J34: 1415.25 | L34: 300 | Q34: 0 | R34: 100 | S34: سانديب | T34: National
A35: =IF(B35="","",MAX($A$1:A34)+1) -> 34 | B35: 2019-03-16 | C35: 25905 | D35: 142873 | E35: JEBEL ALI | F35: AL FUTTAIM | G35: Road base | H35: 78.54 | I35: 8.75 | J35: 687.225 | M35: 420.5 | P35: 550 | Q35: 0 | R35: 80 | S35: سانديب
A36: =IF(B36="","",MAX($A$1:A35)+1) -> 35 | B36: 2019-03-16 | C36: 25905 | D36: 142917 | E36: JEBEL ALI | F36: AL FUTTAIM | G36: Road base | H36: 76.78 | I36: 8.75 | J36: 671.825 | M36: 420.5 | P36: 550 | Q36: 0 | R36: 80 | S36: سانديب
A37: =IF(B37="","",MAX($A$1:A36)+1) -> 36 | B37: 2019-03-17 | C37: 25905 | D37: 902716 | E37: DUCON | F37: AL BARRAK | G37: Road base | H37: 79.94 | I37: 21.97 | J37: 1756.2818 | K37: 560 | M37: 420.5 | Q37: 0 | R37: 80 | S37: سانديب
A38: =IF(B38="","",MAX($A$1:A37)+1) -> 37 | B38: 2019-03-18 | C38: 25905 | D38: 2216365 | E38: Cement Factory | F38: AL RAWASI | G38: Road base | H38: 80.84 | I38: 16.65 | J38: 1345.986 | L38: 300 | Q38: 0 | R38: 100 | S38: سانديب | T38: National
A39: =IF(B39="","",MAX($A$1:A38)+1) ->  | C39: 25905 | E39: AL QUOZ | F39: AL FUTTAIM | G39: Road base | Q39: 0 | R39: 70 | S39: سانديب
A40: =IF(B40="","",MAX($A$1:A39)+1) ->  | C40: 25905 | E40: AL QUOZ | F40: AL FUTTAIM | G40: Road base | Q40: 0 | R40: 70 | S40: سانديب
A41: =IF(B41="","",MAX($A$1:A40)+1) ->  | C41: 25905 | E41: JEBEL ALI | F41: AL FUTTAIM | G41: Road base | Q41: 0 | R41: 80 | S41: سانديب
A42: =IF(B42="","",MAX($A$1:A41)+1) ->  | C42: 25905 | E42: AL QUOZ | F42: AL FUTTAIM | G42: Road base | Q42: 0 | R42: 70 | S42: سانديب
A43: =IF(B43="","",MAX($A$1:A42)+1) ->  | C43: 25905 | E43: AL QUOZ | F43: AL FUTTAIM | G43: Road base | Q43: 0 | R43: 70 | S43: سانديب
A44: =IF(B44="","",MAX($A$1:A43)+1) ->  | C44: 25905 | E44: Cement Factory | F44: AL RAWASI | G44: Road base | Q44: 0 | S44: سانديب
A45: =IF(B45="","",MAX($A$1:A44)+1) ->  | C45: 25905 | E45: DUBAI | F45: CENTRAL | G45: Road base | Q45: 0 | S45: سانديب
A46: =IF(B46="","",MAX($A$1:A45)+1) ->  | C46: 25905 | E46: Cement Factory | F46: AL RAWASI | G46: Road base | Q46: 0 | S46: سانديب
A47: =IF(B47="","",MAX($A$1:A46)+1) ->  | C47: 25905 | E47: Cement Factory | F47: AL RAWASI | G47: Road base | Q47: 0 | S47: سانديب
A48: =IF(B48="","",MAX($A$1:A47)+1) ->  | C48: 25905 | E48: DUCON | F48: AL KAWTHER | G48: Road base | Q48: 0 | S48: سانديب
A49: =IF(B49="","",MAX($A$1:A48)+1) ->  | C49: 25905 | E49: Cement Factory | F49: AL RAWASI | G49: Road base | Q49: 0 | S49: سانديب
A50: =IF(B50="","",MAX($A$1:A49)+1) ->  | C50: 25905 | E50: DUCON | F50: AL KAWTHER | G50: Road base | Q50: 0 | S50: سانديب
A51: =IF(B51="","",MAX($A$1:A50)+1) ->  | C51: 25905 | E51: Cement Factory | F51: AL RAWASI | G51: Road base | Q51: 0 | S51: سانديب
A52: =IF(B52="","",MAX($A$1:A51)+1) ->  | C52: 25905 | E52: DUCON | F52: AL KAWTHER | G52: Road base | Q52: 0 | S52: سانديب
A53: =IF(B53="","",MAX($A$1:A52)+1) ->  | C53: 25905 | E53: DUCON | F53: AL KAWTHER | G53: Road base | Q53: 0 | S53: سانديب
A54: =IF(B54="","",MAX($A$1:A53)+1) ->  | C54: 25905 | E54: Cement Factory | F54: AL RAWASI | G54: Road base | Q54: 0 | S54: سانديب
A55: =IF(B55="","",MAX($A$1:A54)+1) ->  | C55: 25905 | E55: Cement Factory | F55: AL RAWASI | G55: Road base | Q55: 0 | S55: سانديب
A56: =IF(B56="","",MAX($A$1:A55)+1) ->  | C56: 25905 | E56: DUCON | F56: AL KAWTHER | G56: Road base | Q56: 0 | S56: سانديب
A57: =IF(B57="","",MAX($A$1:A56)+1) ->  | C57: 25905 | E57: Cement Factory | F57: AL RAWASI | G57: Road base | Q57: 0 | S57: سانديب
A58: =IF(B58="","",MAX($A$1:A57)+1) ->  | C58: 25905 | E58: MADAM | F58: AL RAWDA | G58: Road base | Q58: 0 | S58: سانديب
A59: =IF(B59="","",MAX($A$1:A58)+1) ->  | C59: 25905 | E59: DUCON | F59: AL KAWTHER | G59: Road base | Q59: 0 | S59: سانديب
A60: =IF(B60="","",MAX($A$1:A59)+1) ->  | C60: 25905 | E60: Cement Factory | F60: AL RAWASI | G60: Road base | Q60: 0 | S60: سانديب
A61: =IF(B61="","",MAX($A$1:A60)+1) ->  | C61: 25905 | E61: Cement Factory | F61: AL RAWASI | G61: Road base | Q61: 0 | S61: سانديب
A62: =IF(B62="","",MAX($A$1:A61)+1) ->  | C62: 25905 | E62: DUBAI | F62: CENTRAL | G62: Road base | Q62: 0 | S62: سانديب
A63: =IF(B63="","",MAX($A$1:A62)+1) ->  | C63: 25905 | E63: Cement Factory | F63: AL RAWASI | G63: Road base | Q63: 0 | S63: سانديب
A64: =IF(B64="","",MAX($A$1:A63)+1) ->  | C64: 25905 | E64: Cement Factory | F64: AL RAWASI | G64: Road base | Q64: 0 | S64: سانديب
A65: =IF(B65="","",MAX($A$1:A64)+1) ->  | C65: 25905 | E65: Cement Factory | F65: AL RAWASI | G65: Road base | Q65: 0 | S65: سانديب
A66: =IF(B66="","",MAX($A$1:A65)+1) ->  | C66: 25905 | E66: Cement Factory | F66: AL RAWASI | G66: Road base | I66: =IF(B66="","",(IF(AND(F66="RIDI SIDI"),"16.65",IF(AND(F66="CENTRAL",E66="DUBAI"),"19",IF(AND(F66="CENTRAL",E66="JEBEL ALI"),"21",IF(AND(F66="AL RAWASI"),"16.65",IF(AND(F66="AL NAKHEEL"),"16.65",IF(AND(F66="WB"),"22.60",IF(AND(F66="AL BARRAK",E66="DUCON"),"21.97",IF(AND(F66="AL KAWTHER",E66="DUCON"),"21.97",IF(AND(F66="AL KAWTHER"),"22.5",IF(AND(F66="AL FUTTAIM",E66="JEBEL ALI"),"8.75",IF(AND(F66="AL FUTTAIM",E66="MAFRAQ"),"16",IF(AND(F66="AL FUTTAIM",E66="AL QUOZ"),"7.70",IF(AND(F66="AL FUTTAIM",E66="MUSSAFAH"),"16.90",IF(AND(F66="AL FUTTAIM",E66="NAD AL SHEBA"),"8.50",IF(AND(F66="AL FUTTAIM",E66="MAHAWI"),"16.90",IF(AND(F66="AL RAWDA",E66="MADAM"),"24.50",)))))))))))))))))*1) ->  | J66: =IF(B66="","",I66*H66) ->  | Q66: 0 | S66: سانديب | T66: =IF(OR(R66=100,R66=115),"National","") -> 
A67: =IF(B67="","",MAX($A$1:A66)+1) ->  | C67: 25905 | E67: DUCON | F67: AL KAWTHER | G67: Road base | Q67: 0 | S67: سانديب
A68: =IF(B68="","",MAX($A$1:A67)+1) ->  | C68: 25905 | E68: DUCON | F68: AL KAWTHER | G68: Road base | Q68: 0 | S68: سانديب
A69: =IF(B69="","",MAX($A$1:A68)+1) ->  | C69: 25905 | E69: Cement Factory | F69: AL RAWASI | G69: Road base | Q69: 0 | S69: سانديب
A70: =IF(B70="","",MAX($A$1:A69)+1) ->  | C70: 25905 | E70: Cement Factory | F70: AL RAWASI | G70: Road base | Q70: 0 | S70: سانديب
A71: =IF(B71="","",MAX($A$1:A70)+1) ->  | C71: 25905 | E71: Cement Factory | F71: AL RAWASI | G71: Road base | Q71: 0 | S71: سانديب
A72: =IF(B72="","",MAX($A$1:A71)+1) ->  | C72: 25905 | E72: DUCON | F72: AL KAWTHER | G72: Road base | Q72: 0 | S72: سانديب
A73: =IF(B73="","",MAX($A$1:A72)+1) ->  | C73: 25905 | E73: DUCON | F73: AL KAWTHER | G73: Road base | Q73: 0 | S73: سانديب
A74: =IF(B74="","",MAX($A$1:A73)+1) ->  | C74: 25905 | E74: Cement Factory | F74: AL RAWASI | G74: Road base | Q74: 0 | S74: سانديب
A75: =IF(B75="","",MAX($A$1:A74)+1) ->  | C75: 25905 | E75: DUCON | F75: AL KAWTHER | G75: Road base | Q75: 0 | S75: سانديب
A76: =IF(B76="","",MAX($A$1:A75)+1) ->  | C76: 25905 | E76: DUCON | F76: AL KAWTHER | G76: Road base | Q76: 0 | S76: سانديب
A77: =IF(B77="","",MAX($A$1:A76)+1) ->  | C77: 25905 | E77: Cement Factory | F77: AL RAWASI | G77: Road base | Q77: 0 | S77: سانديب
A78: =IF(B78="","",MAX($A$1:A77)+1) ->  | C78: 25905 | E78: Cement Factory | F78: AL RAWASI | G78: Road base | Q78: 0 | S78: سانديب
A79: =IF(B79="","",MAX($A$1:A78)+1) ->  | C79: 25905 | E79: DUCON | F79: AL KAWTHER | G79: Road base | Q79: 0 | S79: سانديب
A80: =IF(B80="","",MAX($A$1:A79)+1) ->  | C80: 25905 | E80: Cement Factory | F80: AL RAWASI | G80: Road base | Q80: 0 | S80: سانديب
A81: =IF(B81="","",MAX($A$1:A80)+1) ->  | C81: 25905 | E81: DUBAI | F81: CENTRAL | G81: Road base | Q81: 0 | S81: سانديب
A82: =IF(B82="","",MAX($A$1:A81)+1) ->  | C82: 25905 | E82: DUCON | F82: AL BARRAK | G82: Road base | Q82: 0 | S82: سانديب
A83: =IF(B83="","",MAX($A$1:A82)+1) ->  | C83: 25905 | E83: DUCON | F83: AL BARRAK | G83: Road base | S83: سانديب
B84: =SUBTOTAL(2,B2:B83) -> 37 | H84: =SUBTOTAL(9,H2:H83) -> 2915.46 | J84: =SUBTOTAL(9,J2:J81) -> 38555.5608 | K84: =SUBTOTAL(9,K2:K83) -> 560 | L84: =SUBTOTAL(9,L2:L83) -> 3300 | M84: =SUBTOTAL(9,M2:M83) -> 13876.5 | N84: =SUBTOTAL(9,N2:N83) -> 0 | O84: 0 | P84: =SUBTOTAL(9,P2:P83) -> 13750 | Q84: 0 | R84: 4115 | T84: =IF(R84=100,"National","") -> 
K85: =SUBTOTAL(2,K2:K83) -> 1 | L85: 11 | M85: 33 | N85: 0 | O85: 0 | P85: 25 | Q85: 8.446
Q86: =Q84*Q85 -> 0
J89: كامل المصاريف
J90: الديزل | L90: =Q84 -> 0
C91: وارد السيارة | E91: =J84 -> 38555.5608 | J91: الاطارات | L91: 0 | P91: تم خصم الضريبة من خلال المصاريف ولم يتم اضافتها على الوارد
C92: كامل المصاريف | E92: =L97 -> 40625.43 | J92: تكت | L92: =SUM(K84:P84) -> 31486.5
C93: الصافي | E93: =E91-E92 -> -2069.8692 | J93: قطع غيار
J94: راتب السائق | L94: =R84 -> 4115
J95: فواتير متفرقة | L95: 5023.93
J96: رسوم تصريح /9
J97: الاجمالي | L97: =SUM(L90:M96) -> 40625.43

Sheet 47895
A1: م | B1: DATE التاريخ | C1: NO TRUCK رقم السيارة | D1: NO TICKET رقم الفاتورة | E1: DESTINATION الموقع | F1: CRUCHER الكسارة | G1: MATERIAL المادة | H1: NETWET الوزن | I1: RATE سعر الطن | J1: TOTAL الاجمالى | K1: FUJ ت/فجيرة | L1: SAEEDY ت/ساعدي | M1: DHAID ت/الذيد | N1: ZUBAIR ت/الزبير | O1: ALGHAIL ت/الغيل | P1: KADRAA ت/كدرة | Q1: DIESEL الديزل | R1: SALARY الراتب | S1: NAME DRIVER اسم السائق | T1: NOTICE ملاحظات
A2: =IF(B2="","",MAX($A$1:A1)+1) -> 1 | B2: 2019-03-01 | C2: 47895 | D2: 141334 | E2: MUSSAFAH | F2: AL FUTTAIM | G2: Road base | H2: 77.8 | I2: =IF(B2="","",(IF(AND(F2="RIDI SIDI"),"16.65",IF(AND(F2="CENTRAL",E2="DUBAI"),"19",IF(AND(F2="CENTRAL",E2="JEBEL ALI"),"21",IF(AND(F2="AL RAWASI"),"16.65",IF(AND(F2="AL NAKHEEL"),"16.65",IF(AND(F2="WB"),"22.60",IF(AND(F2="AL BARRAK",E2="DUCON"),"21.97",IF(AND(F2="AL KAWTHER",E2="DUCON"),"21.97",IF(AND(F2="AL KAWTHER"),"22.5",IF(AND(F2="AL FUTTAIM",E2="JEBEL ALI"),"8.75",IF(AND(F2="AL FUTTAIM",E2="MAFRAQ"),"16",IF(AND(F2="AL FUTTAIM",E2="AL QUOZ"),"7.70",IF(AND(F2="AL FUTTAIM",E2="MUSSAFAH"),"16.90",IF(AND(F2="AL FUTTAIM",E2="NAD AL SHEBA"),"8.50",IF(AND(F2="AL FUTTAIM",E2="MAHAWI"),"16.90",IF(AND(F2="AL RAWDA",E2="MADAM"),"24.50",)))))))))))))))))*1) -> 16.9 | J2: =IF(B2="","",I2*H2) -> 1314.82 | M2: 420.5 | P2: 550 | Q2: 0 | R2: 180 | S2: محمود | T2: =IF(OR(R2=100,R2=115),"National","") -> 
A3: =IF(B3="","",MAX($A$1:A2)+1) -> 2 | B3: 2019-03-02 | C3: 47895 | D3: 141426 | E3: MAFRAQ | F3: AL FUTTAIM | G3: Road base | H3: 76.78 | I3: 16 | J3: 1228.48 | M3: 420.5 | P3: 550 | Q3: 0 | R3: 160 | S3: محمود | T3: =IF(OR(R3=100,R3=115),"National","") -> 
A4: =IF(B4="","",MAX($A$1:A3)+1) -> 3 | B4: 2019-03-02 | C4: 47895 | D4: 141380 | E4: AL QUOZ | F4: AL FUTTAIM | G4: Road base | H4: 76.24 | I4: 7.7 | J4: 587.048 | M4: 420.5 | P4: 550 | Q4: 0 | R4: 70 | S4: محمود | T4: =IF(OR(R4=100,R4=115),"National","") -> 
A5: =IF(B5="","",MAX($A$1:A4)+1) -> 4 | B5: 2019-03-03 | C5: 47895 | D5: 141532 | E5: MAFRAQ | F5: AL FUTTAIM | G5: Road base | H5: 77 | I5: 16 | J5: 1232 | M5: 420.5 | P5: 550 | Q5: 0 | R5: 160 | S5: محمود
A6: =IF(B6="","",MAX($A$1:A5)+1) -> 5 | B6: 2019-03-03 | C6: 47895 | D6: 141470 | E6: AL QUOZ | F6: AL FUTTAIM | G6: Road base | H6: 75 | I6: 7.7 | J6: 577.5 | M6: 420.5 | P6: 550 | Q6: 0 | R6: 70 | S6: محمود | T6: =IF(OR(R6=100,R6=115),"National","") -> 
A7: =IF(B7="","",MAX($A$1:A6)+1) -> 6 | B7: 2019-03-04 | C7: 47895 | D7: 141647 | E7: MAFRAQ | F7: AL FUTTAIM | G7: Road base | H7: 76.84 | I7: 16 | J7: 1229.44 | M7: 420.5 | P7: 550 | Q7: 0 | R7: 160 | S7: محمود | T7: =IF(OR(R7=100,R7=115),"National","") -> 
A8: =IF(B8="","",MAX($A$1:A7)+1) -> 7 | B8: 2019-03-04 | C8: 47895 | D8: 141596 | E8: JEBEL ALI | F8: AL FUTTAIM | G8: Road base | H8: 76.84 | I8: 8.75 | J8: 672.35 | M8: 420.5 | P8: 550 | Q8: 0 | R8: 80 | S8: محمود
A9: =IF(B9="","",MAX($A$1:A8)+1) -> 8 | B9: 2019-03-05 | C9: 47895 | D9: 141816 | E9: MUSSAFAH | F9: AL FUTTAIM | G9: Road base | H9: 77.82 | I9: 16.9 | J9: 1315.158 | M9: 420.5 | P9: 550 | Q9: 0 | R9: 180 | S9: محمود
A10: =IF(B10="","",MAX($A$1:A9)+1) -> 9 | B10: 2019-03-05 | C10: 47895 | D10: 141688 | E10: AL QUOZ | F10: AL FUTTAIM | G10: Road base | H10: 74.16 | I10: 7.7 | J10: 571.032 | M10: 420.5 | P10: 550 | Q10: 0 | R10: 70 | S10: محمود | T10: =IF(OR(R10=100,R10=115),"National","") -> 
A11: =IF(B11="","",MAX($A$1:A10)+1) -> 10 | B11: 2019-03-06 | C11: 47895 | D11: 141782 | E11: AL QUOZ | F11: AL FUTTAIM | G11: Road base | H11: 76.38 | I11: 7.7 | J11: 588.126 | M11: 420.5 | P11: 550 | Q11: 0 | R11: 70 | S11: محمود | T11: =IF(OR(R11=100,R11=115),"National","") -> 
A12: =IF(B12="","",MAX($A$1:A11)+1) -> 11 | B12: 2019-03-06 | C12: 47895 | D12: 141832 | E12: MAFRAQ | F12: AL FUTTAIM | G12: Road base | H12: 75.36 | I12: 16 | J12: 1205.76 | M12: 420.5 | P12: 550 | Q12: 0 | R12: 160 | S12: محمود | T12: =IF(OR(R12=100,R12=115),"National","") -> 
A13: =IF(B13="","",MAX($A$1:A12)+1) -> 12 | B13: 2019-03-07 | C13: 47895 | D13: 141897 | E13: AL QUOZ | F13: AL FUTTAIM | G13: Road base | H13: 76.26 | I13: 7.7 | J13: 587.202 | M13: 420.5 | P13: 550 | Q13: 0 | R13: 70 | S13: محمود
A14: =IF(B14="","",MAX($A$1:A13)+1) -> 13 | B14: 2019-03-08 | C14: 47895 | D14: 2214588 | E14: Cement Factory | F14: AL RAWASI | G14: Road base | H14: 82.28 | I14: 16.65 | J14: 1369.962 | L14: 300 | Q14: 0 | R14: 100 | S14: محمود | T14: =IF(OR(R14=100,R14=115),"National","") -> National
A15: =IF(B15="","",MAX($A$1:A14)+1) -> 14 | B15: 2019-03-08 | C15: 47895 | D15: 141995 | E15: MUSSAFAH | F15: AL FUTTAIM | G15: Road base | H15: 79.82 | I15: 16.9 | J15: 1348.958 | M15: 420.5 | P15: 550 | Q15: 0 | R15: 180 | S15: محمود | T15: =IF(OR(R15=100,R15=115),"National","") -> 
A16: =IF(B16="","",MAX($A$1:A15)+1) -> 15 | B16: 2019-03-08 | C16: 47895 | D16: 141953 | E16: MAFRAQ | F16: AL FUTTAIM | G16: Road base | H16: 78.72 | I16: 16 | J16: 1259.52 | M16: 420.5 | P16: 550 | Q16: 0 | R16: 160 | S16: محمود | T16: =IF(OR(R16=100,R16=115),"National","") -> 
A17: =IF(B17="","",MAX($A$1:A16)+1) -> 16 | B17: 2019-03-09 | C17: 47895 | D17: 142073 | E17: AL QUOZ | F17: AL FUTTAIM | G17: Road base | H17: 76.1 | I17: 7.7 | J17: 585.97 | M17: 420.5 | P17: 550 | Q17: 0 | R17: 70 | S17: محمود
A18: =IF(B18="","",MAX($A$1:A17)+1) -> 17 | B18: 2019-03-09 | C18: 47895 | D18: 142116 | E18: MUSSAFAH | F18: AL FUTTAIM | G18: Road base | H18: 77.4 | I18: 16.9 | J18: 1308.06 | M18: 420.5 | P18: 550 | Q18: 0 | R18: 180 | S18: محمود | T18: =IF(OR(R18=100,R18=115),"National","") -> 
A19: =IF(B19="","",MAX($A$1:A18)+1) -> 18 | B19: 2019-03-10 | C19: 47895 | D19: 142210 | E19: AL QUOZ | F19: AL FUTTAIM | G19: Road base | H19: 75.06 | I19: 7.7 | J19: 577.962 | M19: 420.5 | P19: 550 | Q19: 0 | R19: 70 | S19: محمود | T19: =IF(OR(R19=100,R19=115),"National","") -> 
A20: =IF(B20="","",MAX($A$1:A19)+1) -> 19 | B20: 2019-03-10 | C20: 47895 | D20: 142240 | E20: MUSSAFAH | F20: AL FUTTAIM | G20: Road base | H20: 78.06 | I20: 16.9 | J20: 1319.214 | M20: 420.5 | P20: 550 | Q20: 0 | R20: 180 | S20: محمود | T20: =IF(OR(R20=100,R20=115),"National","") -> 
A21: =IF(B21="","",MAX($A$1:A20)+1) -> 20 | B21: 2019-03-11 | C21: 47895 | D21: 901373 | E21: DUCON | F21: AL BARRAK | G21: Road base | H21: 75.06 | I21: 21.97 | J21: 1649.0682 | K21: 530 | M21: 420.5 | Q21: 0 | R21: 90 | S21: محمود | T21: =IF(OR(R21=100,R21=115),"National","") -> 
A22: =IF(B22="","",MAX($A$1:A21)+1) -> 21 | B22: 2019-03-12 | C22: 47895 | D22: 142404 | E22: MUSSAFAH | F22: AL FUTTAIM | G22: Road base | H22: 78.28 | I22: 16.9 | J22: 1322.932 | M22: 420.5 | P22: 550 | Q22: 0 | R22: 180 | S22: محمود | T22: =IF(OR(R22=100,R22=115),"National","") -> 
A23: =IF(B23="","",MAX($A$1:A22)+1) -> 22 | B23: 2019-03-12 | C23: 47895 | D23: 142446 | E23: JEBEL ALI | F23: AL FUTTAIM | G23: Road base | H23: 76.92 | I23: 8.75 | J23: 673.05 | M23: 420.5 | P23: 550 | Q23: 0 | R23: 80 | S23: محمود
A24: =IF(B24="","",MAX($A$1:A23)+1) -> 23 | B24: 2019-03-13 | C24: 47895 | D24: 142630 | E24: MUSSAFAH | F24: AL FUTTAIM | G24: Road base | H24: 75.06 | I24: 16.9 | J24: 1268.514 | M24: 420.5 | P24: 550 | Q24: 0 | R24: 180 | S24: محمود
A25: =IF(B25="","",MAX($A$1:A24)+1) -> 24 | B25: 2019-03-13 | C25: 47895 | D25: 142517 | E25: MUSSAFAH | F25: AL FUTTAIM | G25: Road base | H25: 79.36 | I25: 16.9 | J25: 1341.184 | M25: 420.5 | P25: 550 | Q25: 0 | R25: 180 | S25: محمود
A26: =IF(B26="","",MAX($A$1:A25)+1) -> 25 | B26: 2019-03-14 | C26: 47895 | D26: 2215680 | E26: Cement Factory | F26: AL RAWASI | G26: Road base | H26: 78.12 | I26: 16.65 | J26: 1300.698 | L26: 300 | M26: 420.5 | Q26: 0 | R26: 75 | S26: محمود
A27: =IF(B27="","",MAX($A$1:A26)+1) -> 26 | B27: 2019-03-15 | C27: 47895 | D27: 2215740 | E27: Cement Factory | F27: AL RAWASI | G27: Road base | H27: 85.22 | I27: 16.65 | J27: 1418.913 | L27: 300 | Q27: 0 | R27: 100 | S27: محمود
A28: =IF(B28="","",MAX($A$1:A27)+1) -> 27 | B28: 2019-03-15 | C28: 47895 | D28: 142808 | E28: AL QUOZ | F28: AL FUTTAIM | G28: Road base | H28: 76.84 | I28: 7.7 | J28: 591.668 | M28: 420.5 | P28: 550 | Q28: 0 | R28: 70 | S28: محمود
A29: =IF(B29="","",MAX($A$1:A28)+1) -> 28 | B29: 2019-03-15 | C29: 47895 | D29: 142818 | E29: AL QUOZ | F29: AL FUTTAIM | G29: Road base | H29: 76.78 | I29: 7.7 | J29: 591.206 | M29: 420.5 | P29: 550 | Q29: 0 | R29: 70 | S29: محمود
A30: =IF(B30="","",MAX($A$1:A29)+1) -> 29 | B30: 2019-03-16 | C30: 47895 | D30: 2215999 | E30: Cement Factory | F30: AL RAWASI | G30: Road base | H30: 82.8 | I30: 16.65 | J30: 1378.62 | L30: 300 | Q30: 0 | R30: 100 | S30: محمود
A31: =IF(B31="","",MAX($A$1:A30)+1) -> 30 | B31: 2019-03-16 | C31: 47895 | D31: 142878 | E31: AL QUOZ | F31: AL FUTTAIM | G31: Road base | H31: 76.16 | I31: 7.7 | J31: 586.432 | M31: 420.5 | P31: 550 | Q31: 0 | R31: 70 | S31: محمود
A32: =IF(B32="","",MAX($A$1:A31)+1) -> 31 | B32: 2019-03-16 | C32: 47895 | D32: 142946 | E32: AL QUOZ | F32: AL FUTTAIM | G32: Road base | H32: 76.38 | I32: 7.7 | J32: 588.126 | M32: 420.5 | P32: 550 | Q32: 0 | R32: 70 | S32: محمود
A33: =IF(B33="","",MAX($A$1:A32)+1) -> 32 | B33: 2019-03-17 | C33: 47895 | D33: 902697 | E33: DUCON | F33: AL BARRAK | G33: Road base | H33: 68.74 | I33: 21.97 | J33: 1510.2178 | K33: 490 | M33: 420.5 | Q33: 0 | R33: 80 | S33: محمود
A34: =IF(B34="","",MAX($A$1:A33)+1) -> 33 | B34: 2019-03-18 | C34: 47895 | D34: 2216355 | E34: Cement Factory | F34: AL RAWASI | G34: Road base | H34: 82.96 | I34: 16.65 | J34: 1381.284 | L34: 300 | Q34: 0 | R34: 100 | S34: محمود
A35: =IF(B35="","",MAX($A$1:A34)+1) ->  | C35: 47895 | E35: AL QUOZ | F35: AL FUTTAIM | G35: Road base | Q35: 0 | R35: 70 | S35: محمود
A36: =IF(B36="","",MAX($A$1:A35)+1) ->  | C36: 47895 | E36: AL QUOZ | F36: AL FUTTAIM | G36: Road base | Q36: 0 | R36: 70 | S36: محمود
A37: =IF(B37="","",MAX($A$1:A36)+1) ->  | C37: 47895 | E37: MAFRAQ | F37: AL FUTTAIM | G37: Road base | Q37: 0 | R37: 160 | S37: محمود
A38: =IF(B38="","",MAX($A$1:A37)+1) ->  | C38: 47895 | E38: AL QUOZ | F38: AL FUTTAIM | G38: Road base | Q38: 0 | R38: 70 | S38: محمود
A39: =IF(B39="","",MAX($A$1:A38)+1) ->  | C39: 47895 | E39: MAFRAQ | F39: AL FUTTAIM | G39: Road base | Q39: 0 | R39: 160 | S39: محمود
A40: =IF(B40="","",MAX($A$1:A39)+1) ->  | C40: 47895 | E40: AL QUOZ | F40: AL FUTTAIM | G40: Road base | Q40: 0 | R40: 70 | S40: محمود
A41: =IF(B41="","",MAX($A$1:A40)+1) ->  | C41: 47895 | E41: AL QUOZ | F41: AL FUTTAIM | G41: Road base | Q41: 0 | R41: 70 | S41: محمود
A42: =IF(B42="","",MAX($A$1:A41)+1) ->  | C42: 47895 | E42: JEBEL ALI | F42: AL FUTTAIM | G42: Road base | Q42: 0 | R42: 80 | S42: محمود
A43: =IF(B43="","",MAX($A$1:A42)+1) ->  | C43: 47895 | G43: Road base | Q43: 0 | S43: محمود
A44: =IF(B44="","",MAX($A$1:A43)+1) ->  | C44: 47895 | G44: Road base | Q44: 0 | S44: محمود
A45: =IF(B45="","",MAX($A$1:A44)+1) ->  | C45: 47895 | G45: Road base | Q45: 0 | S45: محمود
A46: =IF(B46="","",MAX($A$1:A45)+1) ->  | C46: 47895 | G46: Road base | Q46: 0 | S46: محمود
A47: =IF(B47="","",MAX($A$1:A46)+1) ->  | C47: 47895 | G47: Road base | Q47: 0 | S47: محمود
A48: =IF(B48="","",MAX($A$1:A47)+1) ->  | C48: 47895 | G48: Road base | Q48: 0 | S48: محمود
A49: =IF(B49="","",MAX($A$1:A48)+1) ->  | C49: 47895 | G49: Road base | Q49: 0 | S49: محمود
A50: =IF(B50="","",MAX($A$1:A49)+1) ->  | C50: 47895 | E50: Cement Factory | F50: AL RAWASI | G50: Road base | Q50: 0 | S50: محمود
A51: =IF(B51="","",MAX($A$1:A50)+1) ->  | C51: 47895 | E51: DUCON | F51: WB | G51: Road base | Q51: 0 | S51: محمود
A52: =IF(B52="","",MAX($A$1:A51)+1) ->  | C52: 47895 | E52: DUCON | F52: WB | G52: Road base | Q52: 0 | S52: محمود
A53: =IF(B53="","",MAX($A$1:A52)+1) ->  | C53: 47895 | E53: Cement Factory | F53: AL RAWASI | G53: Road base | Q53: 0 | S53: محمود
A54: =IF(B54="","",MAX($A$1:A53)+1) ->  | C54: 47895 | E54: Cement Factory | F54: AL RAWASI | G54: Road base | Q54: 0 | S54: محمود
A55: =IF(B55="","",MAX($A$1:A54)+1) ->  | C55: 47895 | E55: Cement Factory | F55: AL NAKHEEL | G55: Road base | Q55: 0 | S55: محمود
A56: =IF(B56="","",MAX($A$1:A55)+1) ->  | C56: 47895 | E56: Cement Factory | F56: AL RAWASI | G56: Road base | Q56: 0 | S56: محمود
A57: =IF(B57="","",MAX($A$1:A56)+1) ->  | C57: 47895 | E57: DUCON | F57: WB | G57: Road base | Q57: 0 | S57: محمود
A58: =IF(B58="","",MAX($A$1:A57)+1) ->  | C58: 47895 | E58: DUBAI | F58: CENTRAL | G58: Road base | Q58: 0 | S58: محمود
A59: =IF(B59="","",MAX($A$1:A58)+1) ->  | C59: 47895 | G59: Road base | Q59: 0 | S59: محمود
A60: =IF(B60="","",MAX($A$1:A59)+1) ->  | C60: 47895 | G60: Road base | Q60: 0 | S60: محمود
A61: =IF(B61="","",MAX($A$1:A60)+1) ->  | C61: 47895 | G61: Road base | Q61: 0 | S61: محمود
A62: =IF(B62="","",MAX($A$1:A61)+1) ->  | C62: 47895 | G62: Road base | Q62: 0 | S62: محمود
A63: =IF(B63="","",MAX($A$1:A62)+1) ->  | C63: 47895 | G63: Road base | Q63: 0 | S63: محمود
A64: =IF(B64="","",MAX($A$1:A63)+1) ->  | C64: 47895 | G64: Road base | Q64: 0 | S64: محمود
A65: =IF(B65="","",MAX($A$1:A64)+1) ->  | C65: 47895 | G65: Road base | Q65: 0 | S65: محمود
A66: =IF(B66="","",MAX($A$1:A65)+1) ->  | C66: 47895 | G66: Road base | I66: =IF(B66="","",(IF(AND(F66="RIDI SIDI"),"16.65",IF(AND(F66="CENTRAL",E66="DUBAI"),"19",IF(AND(F66="CENTRAL",E66="JEBEL ALI"),"21",IF(AND(F66="AL RAWASI"),"16.65",IF(AND(F66="AL NAKHEEL"),"16.65",IF(AND(F66="WB"),"22.60",IF(AND(F66="AL BARRAK",E66="DUCON"),"21.97",IF(AND(F66="AL KAWTHER",E66="DUCON"),"21.97",IF(AND(F66="AL KAWTHER"),"22.5",IF(AND(F66="AL FUTTAIM",E66="JEBEL ALI"),"8.75",IF(AND(F66="AL FUTTAIM",E66="MAFRAQ"),"16",IF(AND(F66="AL FUTTAIM",E66="AL QUOZ"),"7.70",IF(AND(F66="AL FUTTAIM",E66="MUSSAFAH"),"16.90",IF(AND(F66="AL FUTTAIM",E66="NAD AL SHEBA"),"8.50",IF(AND(F66="AL FUTTAIM",E66="MAHAWI"),"16.90",IF(AND(F66="AL RAWDA",E66="MADAM"),"24.50",)))))))))))))))))*1) ->  | J66: =IF(B66="","",I66*H66) ->  | Q66: 0 | S66: محمود
A67: =IF(B67="","",MAX($A$1:A66)+1) ->  | C67: 47895 | G67: Road base | Q67: 0 | S67: محمود
A68: =IF(B68="","",MAX($A$1:A67)+1) ->  | C68: 47895 | G68: Road base | Q68: 0 | S68: محمود
A69: =IF(B69="","",MAX($A$1:A68)+1) ->  | C69: 47895 | G69: Road base | Q69: 0 | S69: محمود
A70: =IF(B70="","",MAX($A$1:A69)+1) ->  | C70: 47895 | G70: Road base | Q70: 0 | S70: محمود
A71: =IF(B71="","",MAX($A$1:A70)+1) ->  | C71: 47895 | G71: Road base | Q71: 0 | S71: محمود
A72: =IF(B72="","",MAX($A$1:A71)+1) ->  | C72: 47895 | G72: Road base | Q72: 0 | S72: محمود
A73: =IF(B73="","",MAX($A$1:A72)+1) ->  | C73: 47895 | G73: Road base | Q73: 0 | S73: محمود
A74: =IF(B74="","",MAX($A$1:A73)+1) ->  | C74: 47895 | G74: Road base | Q74: 0 | S74: محمود
A75: =IF(B75="","",MAX($A$1:A74)+1) ->  | C75: 47895 | G75: Road base | Q75: 0 | S75: محمود
A76: =IF(B76="","",MAX($A$1:A75)+1) ->  | C76: 47895 | G76: Road base | Q76: 0 | S76: محمود
A77: =IF(B77="","",MAX($A$1:A76)+1) ->  | C77: 47895 | G77: Road base | Q77: 0 | S77: محمود
A78: =IF(B78="","",MAX($A$1:A77)+1) ->  | C78: 47895 | G78: Road base | Q78: 0 | S78: محمود
A79: =IF(B79="","",MAX($A$1:A78)+1) ->  | C79: 47895 | G79: Road base | Q79: 0 | S79: محمود
A80: =IF(B80="","",MAX($A$1:A79)+1) ->  | C80: 47895 | G80: Road base | Q80: 0 | S80: محمود
A81: =IF(B81="","",MAX($A$1:A80)+1) ->  | C81: 47895 | G81: Road base | Q81: 0 | S81: محمود
A82: =IF(B82="","",MAX($A$1:A81)+1) ->  | C82: 47895 | G82: Road base | Q82: 0 | S82: محمود
A83: =IF(B83="","",MAX($A$1:A82)+1) ->  | C83: 47895 | G83: Road base | Q83: 0 | S83: محمود
A84: =IF(B84="","",MAX($A$1:A83)+1) ->  | C84: 47895 | G84: Road base | Q84: 0 | S84: محمود
A85: =IF(B85="","",MAX($A$1:A84)+1) ->  | C85: 47895 | G85: Road base | Q85: 0 | S85: محمود
A86: =IF(B86="","",MAX($A$1:A85)+1) ->  | C86: 47895 | G86: Road base | Q86: 0 | R86: 500 | S86: محمود
B87: =SUBTOTAL(2,B5:B86) -> 30 | H87: =SUBTOTAL(9,H5:H86) -> 2321.78 | J87: =SUBTOTAL(9,J5:J85) -> 31350.127 | K87: =SUBTOTAL(9,K2:K86) -> 1020 | L87: =SUBTOTAL(9,L2:L86) -> 1500 | M87: 12194.5 | N87: 0 | O87: 0 | P87: 14300 | Q87: =SUBTOTAL(9,Q5:Q86) -> 0 | R87: 4655 | T87: =IF(R87=100,"National","") -> 
Q88: 8.446
Q89: =Q87*Q88 -> 0
R91: =R87-35 -> 4620
L92: كامل المصاريف
L93: الديزل | N93: =Q87 -> 0
E94: وارد السيارة | G94: =J87 -> 31350.127 | L94: الاطارات | N94: 0
E95: كامل المصاريف | G95: =N100 -> 38693.43 | L95: تكت | N95: =SUM(K87:P87) -> 29014.5
E96: الصافي | G96: =G94-G95 -> -7343.303 | L96: قطع غيار
L97: راتب السائق | N97: =R87 -> 4655
L98: فواتير متفرقة | N98: 5023.93
L99: رسوم تصريح /9
L100: الاجمالي | N100: =SUM(N93:O99) -> 38693.43
H103: 11153.9306 | I103: 40104
H104: 10818.077 | I104: 47912
H105: -3003 | I105: 40223
H106: 2937.2266 | I106: 40224
H107: -5325.429 | I107: 40225
H108: -2917.3622 | I108: 40109
H109: 1228.384 | I109: 52152
H110: 12588.4638 | I110: 40229
H111: -2069.8692 | I111: 25905
H112: =G96 -> -7343.303 | I112: 47895
H113: =SUM(H103:H112) -> 18067.1186
H114: =H113/9 -> 2007.457622

Sheet Sheet6

Sheet SALIM_BALANCE
A1: م | B1: DATE التاريخ | C1: NO TRUCK رقم السيارة | D1: NO TICKET رقم الفاتورة | E1: DESTINATION الموقع | F1: CRUCHER الكسارة | G1: MATERIAL المادة | H1: NETWET الوزن | I1: RATE سعر الطن | J1: TOTAL الاجمالى
A2: 1 | B2: 2019-03-01 | C2: 40104 | D2: 141337 | E2: MUSSAFAH | F2: AL FUTTAIM | G2: Road base | H2: 78.14 | I2: 16.9 | J2: 1320.566 | K2: BEGIN OF SHEET: 40104
A3: 2 | B3: 2019-03-02 | C3: 40104 | D3: 141396 | E3: AL QUOZ | F3: AL FUTTAIM | G3: Road base | H3: 79.54 | I3: 7.7 | J3: 612.458
A4: 3 | B4: 2019-03-03 | C4: 40104 | D4: 2213818 | E4: Cement Factory | F4: AL RAWASI | G4: Road base | H4: 79.58 | I4: 16.65 | J4: 1325.007
A5: 4 | B5: 2019-03-03 | C5: 40104 | D5: 141521 | E5: JEBEL ALI | F5: AL FUTTAIM | G5: Road base | H5: 78.52 | I5: 8.75 | J5: 687.05
A6: 5 | B6: 2019-03-03 | C6: 40104 | D6: 141437 | E6: MUSSAFAH | F6: AL FUTTAIM | G6: Road base | H6: 78.28 | I6: 16.9 | J6: 1322.932
A7: 6 | B7: 2019-03-04 | C7: 40104 | D7: 141564 | E7: AL QUOZ | F7: AL FUTTAIM | G7: Road base | H7: 79.56 | I7: 7.7 | J7: 612.612
A8: 7 | B8: 2019-03-04 | C8: 40104 | D8: 141611 | E8: JEBEL ALI | F8: AL RAWASI | G8: Road base | H8: 78.72 | I8: 16.65 | J8: 1310.688
A9: 8 | B9: 2019-03-05 | C9: 40104 | D9: 141658 | E9: MAFRAQ | F9: AL FUTTAIM | G9: Road base | H9: 76.54 | I9: 16 | J9: 1224.64
A10: 9 | B10: 2019-03-06 | C10: 40104 | D10: 2214141 | E10: Cement Factory | F10: AL RAWASI | G10: Road base | H10: 83.58 | I10: 16.65 | J10: 1391.607
A11: 10 | B11: 2019-03-06 | C11: 40104 | D11: 2214280 | E11: Cement Factory | F11: AL RAWASI | G11: Road base | H11: 78.76 | I11: 16.65 | J11: 1311.354
A12: 11 | B12: 2019-03-06 | C12: 40104 | D12: 2214214 | E12: Cement Factory | F12: AL RAWASI | G12: Road base | H12: 81.24 | I12: 16.65 | J12: 1352.646
A13: 12 | B13: 2019-03-07 | C13: 40104 | D13: 2214314 | E13: Cement Factory | F13: AL RAWASI | G13: Road base | H13: 86.42 | I13: 16.65 | J13: 1438.893
A14: 13 | B14: 2019-03-07 | C14: 40104 | D14: 2214461 | E14: Cement Factory | F14: AL RAWASI | G14: Road base | H14: 80.42 | I14: 16.65 | J14: 1338.993
A15: 14 | B15: 2019-03-07 | C15: 40104 | D15: 141845 | E15: JEBEL ALI | F15: AL FUTTAIM | G15: Road base | H15: 77.66 | I15: 8.75 | J15: 679.525
A16: 15 | B16: 2019-03-08 | C16: 40104 | D16: 2214611 | E16: Cement Factory | F16: AL RAWASI | G16: Road base | H16: 84 | I16: 16.65 | J16: 1398.6
A17: 16 | B17: 2019-03-08 | C17: 40104 | D17: 2214848 | E17: Cement Factory | F17: AL RAWASI | G17: Road base | H17: 89.6 | I17: 16.65 | J17: 1491.84
A18: 17 | B18: 2019-03-08 | C18: 40104 | D18: 2214775 | E18: Cement Factory | F18: AL RAWASI | G18: Road base | H18: 74.64 | I18: 16.65 | J18: 1242.756
A19: 18 | B19: 2019-03-09 | C19: 40104 | D19: 2214914 | E19: Cement Factory | F19: AL RAWASI | G19: Road base | H19: 84.62 | I19: 16.65 | J19: 1408.923
A20: 19 | B20: 2019-03-09 | C20: 40104 | D20: 2215117 | E20: Cement Factory | F20: AL RAWASI | G20: Road base | H20: 80.76 | I20: 16.65 | J20: 1344.654
A21: 20 | B21: 2019-03-09 | C21: 40104 | D21: 2215049 | E21: Cement Factory | F21: AL RAWASI | G21: Road base | H21: 87.8 | I21: 16.65 | J21: 1461.87
A22: 21 | B22: 2019-03-10 | C22: 40104 | D22: 2215149 | E22: Cement Factory | F22: AL RAWASI | G22: Road base | H22: 81.84 | I22: 16.65 | J22: 1362.636
A23: 22 | B23: 2019-03-10 | C23: 40104 | D23: 142192 | E23: AL QUOZ | F23: AL FUTTAIM | G23: Road base | H23: 78.3 | I23: 7.7 | J23: 602.91
A24: 23 | B24: 2019-03-11 | C24: 40104 | D24: 2215276 | E24: Cement Factory | F24: AL RAWASI | G24: Road base | H24: 75.52 | I24: 16.65 | J24: 1257.408
A25: 24 | B25: 2019-03-11 | C25: 40104 | D25: 901370 | E25: DUCON | F25: AL BARRAK | G25: Road base | H25: 76.82 | I25: 21.97 | J25: 1687.7354
A26: 25 | B26: 2019-03-12 | C26: 40104 | D26: 2215474 | E26: Cement Factory | F26: AL RAWASI | G26: Road base | H26: 81.52 | I26: 16.65 | J26: 1357.308
A27: 26 | B27: 2019-03-12 | C27: 40104 | D27: 901558 | E27: DUCON | F27: AL BARRAK | G27: Road base | H27: 83.56 | I27: 21.97 | J27: 1835.8132
A28: 27 | B28: 2019-03-13 | C28: 40104 | D28: 2217647 | E28: Cement Factory | F28: AL RAWASI | G28: Road base | H28: 83.58 | I28: 16.65 | J28: 1391.607
A29: 28 | B29: 2019-03-13 | C29: 40104 | D29: 142555 | E29: AL QUOZ | F29: AL FUTTAIM | G29: Road base | H29: 75.74 | I29: 7.7 | J29: 583.198
A30: 29 | B30: 2019-03-13 | C30: 40104 | D30: 901920 | E30: DUCON | F30: AL BARRAK | G30: Road base | H30: 74.3 | I30: 21.97 | J30: 1632.371
A31: 30 | B31: 2019-03-14 | C31: 40104 | D31: 2215628 | E31: Cement Factory | F31: AL RAWASI | G31: Road base | H31: 80.96 | I31: 16.65 | J31: 1347.984
A32: 31 | B32: 2019-03-15 | C32: 40104 | D32: 2215716 | E32: Cement Factory | F32: AL RAWASI | G32: Road base | H32: 86 | I32: 16.65 | J32: 1431.9
A33: 32 | B33: 2019-03-15 | C33: 40104 | D33: 2215938 | E33: Cement Factory | F33: AL RAWASI | G33: Road base | H33: 85.74 | I33: 16.65 | J33: 1427.571
A34: 33 | B34: 2019-03-15 | C34: 40104 | D34: 142810 | E34: AL QUOZ | F34: AL FUTTAIM | G34: Road base | H34: 79.54 | I34: 7.7 | J34: 612.458
A35: 34 | B35: 2019-03-16 | C35: 40104 | D35: 2216017 | E35: Cement Factory | F35: AL RAWASI | G35: Road base | H35: 81.5 | I35: 16.65 | J35: 1356.975
A36: 35 | B36: 2019-03-16 | C36: 40104 | D36: 142881 | E36: AL QUOZ | F36: AL FUTTAIM | G36: Road base | H36: 77.22 | I36: 7.7 | J36: 594.594
A37: 36 | B37: 2019-03-17 | C37: 40104 | D37: 2216348 | E37: Cement Factory | F37: AL RAWASI | G37: Road base | H37: 77.04 | I37: 16.65 | J37: 1282.716
A38: 37 | B38: 2019-03-17 | C38: 40104 | D38: 2216298 | E38: Cement Factory | F38: AL RAWASI | G38: Road base | H38: 84.62 | I38: 16.65 | J38: 1408.923
A39: 38 | B39: 2019-03-18 | C39: 40104 | D39: 2216379 | E39: Cement Factory | F39: AL RAWASI | G39: Road base | H39: 81.66 | I39: 16.65 | J39: 1359.639 | K39: END OF SHEET: 40104
H40: =SUM(H2:H39) -> 3063.84 | J40: =SUM(J2:J39) -> 46811.3606 | K40: SUMMATION Of SHEET 40104
A41: 1 | B41: 2019-03-01 | C41: 47912 | D41: 141335 | E41: AL QUOZ | F41: AL FUTTAIM | G41: Road base | H41: 75.76 | I41: 7.7 | J41: 583.352 | K41: BEGIN OF SHEET: 47912
A42: 2 | B42: 2019-03-02 | C42: 47912 | D42: 2213475 | E42: Cement Factory | F42: AL RAWASI | G42: Road base | H42: 78.88 | I42: 16.65 | J42: 1313.352
A43: 3 | B43: 2019-03-02 | C43: 47912 | D43: 141368 | E43: AL QUOZ | F43: AL FUTTAIM | G43: Road base | H43: 78.16 | I43: 7.7 | J43: 601.832
A44: 4 | B44: 2019-03-03 | C44: 47912 | D44: 2213628 | E44: Cement Factory | F44: AL RAWASI | G44: Road base | H44: 80.26 | I44: 16.65 | J44: 1336.329
A45: 5 | B45: 2019-03-03 | C45: 47912 | D45: 2213792 | E45: Cement Factory | F45: AL RAWASI | G45: Road base | H45: 79.14 | I45: 16.65 | J45: 1317.681
A46: 6 | B46: 2019-03-04 | C46: 47912 | D46: 2213937 | E46: Cement Factory | F46: AL RAWASI | G46: Road base | H46: 70.34 | I46: 16.65 | J46: 1171.161
A47: 7 | B47: 2019-03-04 | C47: 47912 | D47: 141605 | E47: JEBEL ALI | F47: AL FUTTAIM | G47: Road base | H47: 77.4 | I47: 8.75 | J47: 677.25
A48: 8 | B48: 2019-03-04 | C48: 47912 | D48: 2213874 | E48: Cement Factory | F48: AL RAWASI | G48: Road base | H48: 77.2 | I48: 16.65 | J48: 1285.38
A49: 9 | B49: 2019-03-05 | C49: 47912 | D49: 2214101 | E49: Cement Factory | F49: AL RAWASI | G49: Road base | H49: 74.32 | I49: 16.65 | J49: 1237.428
A50: 10 | B50: 2019-03-05 | C50: 47912 | D50: 141657 | E50: JEBEL ALI | F50: AL FUTTAIM | G50: Road base | H50: 73.94 | I50: 8.75 | J50: 646.975
A51: 11 | B51: 2019-03-06 | C51: 47912 | D51: 2214237 | E51: Cement Factory | F51: AL RAWASI | G51: Road base | H51: 77.08 | I51: 16.65 | J51: 1283.382
A52: 12 | B52: 2019-03-06 | C52: 47912 | D52: 2214136 | E52: Cement Factory | F52: AL RAWASI | G52: Road base | H52: 79.44 | I52: 16.65 | J52: 1322.676
A53: 13 | B53: 2019-03-07 | C53: 47912 | D53: 2214329 | E53: Cement Factory | F53: AL RAWASI | G53: Road base | H53: 79.76 | I53: 16.65 | J53: 1328.004
A54: 14 | B54: 2019-03-07 | C54: 47912 | D54: 2214358 | E54: Cement Factory | F54: AL RAWASI | G54: Road base | H54: 73.08 | I54: 16.65 | J54: 1216.782
A55: 15 | B55: 2019-03-07 | C55: 47912 | D55: 2214434 | E55: Cement Factory | F55: AL RAWASI | G55: Road base | H55: 80.16 | I55: 16.65 | J55: 1334.664
A56: 16 | B56: 2019-03-08 | C56: 47912 | D56: 2214560 | E56: Cement Factory | F56: AL RAWASI | G56: Road base | H56: 73.84 | I56: 16.65 | J56: 1229.436
A57: 17 | B57: 2019-03-08 | C57: 47912 | D57: 2214792 | E57: Cement Factory | F57: AL RAWASI | G57: Road base | H57: 79.32 | I57: 16.65 | J57: 1320.678
A58: 18 | B58: 2019-03-09 | C58: 47912 | D58: 2214894 | E58: Cement Factory | F58: AL RAWASI | G58: Road base | H58: 81.5 | I58: 16.65 | J58: 1356.975
A59: 19 | B59: 2019-03-09 | C59: 47912 | D59: 2215052 | E59: Cement Factory | F59: AL NAKHEEL | G59: Road base | H59: 71.36 | I59: 16.65 | J59: 1188.144
A60: 20 | B60: 2019-03-09 | C60: 47912 | D60: 2215103 | E60: Cement Factory | F60: AL RAWASI | G60: Road base | H60: 78.56 | I60: 16.65 | J60: 1308.024
A61: 21 | B61: 2019-03-10 | C61: 47912 | D61: 2215152 | E61: Cement Factory | F61: AL RAWASI | G61: Road base | H61: 76.32 | I61: 16.65 | J61: 1270.728
A62: 22 | B62: 2019-03-10 | C62: 47912 | D62: 2215209 | E62: Cement Factory | F62: AL NAKHEEL | G62: Road base | H62: 69.46 | I62: 16.65 | J62: 1156.509
A63: 23 | B63: 2019-03-10 | C63: 47912 | D63: 142188 | E63: JEBEL ALI | F63: AL FUTTAIM | G63: Road base | H63: 77.02 | I63: 8.75 | J63: 673.925
A64: 24 | B64: 2019-03-11 | C64: 47912 | D64: 2215282 | E64: Cement Factory | F64: AL RAWASI | G64: Road base | H64: 78.36 | I64: 16.65 | J64: 1304.694
A65: 25 | B65: 2019-03-11 | C65: 47912 | D65: 2215399 | E65: Cement Factory | F65: AL RAWASI | G65: Road base | H65: 79.5 | I65: 16.65 | J65: 1323.675
A66: 26 | B66: 2019-03-12 | C66: 47912 | D66: 2215473 | E66: Cement Factory | F66: AL RAWASI | G66: Road base | H66: 73.34 | I66: 16.65 | J66: 1221.111
A67: 27 | B67: 2019-03-12 | C67: 47912 | D67: 2217516 | E67: Cement Factory | F67: AL RAWASI | G67: Road base | H67: 74.58 | I67: 16.65 | J67: 1241.757
A68: 28 | B68: 2019-03-12 | C68: 47912 | D68: 2217571 | E68: Cement Factory | F68: AL RAWASI | G68: Road base | H68: 78.34 | I68: 16.65 | J68: 1304.361
A69: 29 | B69: 2019-03-13 | C69: 47912 | D69: 142639 | E69: AL QUOZ | F69: AL FUTTAIM | G69: Road base | H69: 77.6 | I69: 7.7 | J69: 597.52
A70: 30 | B70: 2019-03-13 | C70: 47912 | D70: 142556 | E70: AL QUOZ | F70: AL FUTTAIM | G70: Road base | H70: 75.84 | I70: 7.7 | J70: 583.968
A71: 31 | B71: 2019-03-14 | C71: 47912 | D71: 2215590 | E71: Cement Factory | F71: AL RAWASI | G71: Road base | H71: 80.36 | I71: 16.65 | J71: 1337.994
A72: 32 | B72: 2019-03-15 | C72: 47912 | D72: 2215743 | E72: Cement Factory | F72: AL RAWASI | G72: Road base | H72: 74.76 | I72: 16.65 | J72: 1244.754
A73: 33 | B73: 2019-03-15 | C73: 47912 | D73: 2215952 | E73: Cement Factory | F73: AL RAWASI | G73: Road base | H73: 85 | I73: 16.65 | J73: 1415.25
A74: 34 | B74: 2019-03-16 | C74: 47912 | D74: 2216022 | E74: Cement Factory | F74: AL RAWASI | G74: Road base | H74: 74.68 | I74: 16.65 | J74: 1243.422
A75: 35 | B75: 2019-03-16 | C75: 47912 | D75: 2216156 | E75: Cement Factory | F75: AL RAWASI | G75: Road base | H75: 77.22 | I75: 16.65 | J75: 1285.713
A76: 36 | B76: 2019-03-17 | C76: 47912 | D76: 2216242 | E76: Cement Factory | F76: AL RAWASI | G76: Road base | H76: 72.74 | I76: 16.65 | J76: 1211.121 | K76: END OF SHEET: 47912
H77: =SUM(H41:H76) -> 2764.62 | J77: =SUM(J41:J76) -> 41476.007 | K77: SUMMATION Of SHEET 47912
A78: 1 | B78: 2019-03-01 | C78: 40223 | D78: 141343 | E78: MUSSAFAH | F78: AL FUTTAIM | G78: Road base | H78: 77.78 | I78: 16.9 | J78: 1314.482 | K78: BEGIN OF SHEET: 40223
A79: 2 | B79: 2019-03-02 | C79: 40223 | D79: 141397 | E79: AL QUOZ | F79: AL FUTTAIM | G79: Road base | H79: 76.76 | I79: 7.7 | J79: 591.052
A80: 3 | B80: 2019-03-03 | C80: 40223 | D80: 141485 | E80: AL QUOZ | F80: AL FUTTAIM | G80: Road base | H80: 75.32 | I80: 7.7 | J80: 579.964
A81: 4 | B81: 2019-03-03 | C81: 40223 | D81: 141441 | E81: MUSSAFAH | F81: AL FUTTAIM | G81: Road base | H81: 80.52 | I81: 16.9 | J81: 1360.788
A82: 5 | B82: 2019-03-04 | C82: 40223 | D82: 141536 | E82: MAFRAQ | F82: AL FUTTAIM | G82: Road base | H82: 76.02 | I82: 16 | J82: 1216.32
A83: 6 | B83: 2019-03-04 | C83: 40223 | D83: 141576 | E83: AL QUOZ | F83: AL FUTTAIM | G83: Road base | H83: 75.16 | I83: 7.7 | J83: 578.732
A84: 7 | B84: 2019-03-04 | C84: 40223 | D84: 141637 | E84: JEBEL ALI | F84: AL FUTTAIM | G84: Road base | H84: 76.94 | I84: 8.75 | J84: 673.225
A85: 8 | B85: 2019-03-05 | C85: 40223 | D85: 141735 | E85: MAFRAQ | F85: AL FUTTAIM | G85: Road base | H85: 77.42 | I85: 16 | J85: 1238.72
A86: 9 | B86: 2019-03-05 | C86: 40223 | D86: 141703 | E86: AL QUOZ | F86: AL FUTTAIM | G86: Road base | H86: 77.74 | I86: 7.7 | J86: 598.598
A87: 10 | B87: 2019-03-05 | C87: 40223 | D87: 141670 | E87: JEBEL ALI | F87: AL FUTTAIM | G87: Road base | H87: 76.62 | I87: 8.75 | J87: 670.425
A88: 11 | B88: 2019-03-06 | C88: 40223 | D88: 141781 | E88: AL QUOZ | F88: AL FUTTAIM | G88: Road base | H88: 75.62 | I88: 7.7 | J88: 582.274
A89: 12 | B89: 2019-03-07 | C89: 40223 | D89: 2214604 | E89: Cement Factory | F89: AL RAWASI | G89: Road base | H89: 87.84 | I89: 16.65 | J89: 1462.536
A90: 13 | B90: 2019-03-07 | C90: 40223 | D90: 2214335 | E90: Cement Factory | F90: AL NAKHEEL | G90: Road base | H90: 74.48 | I90: 16.65 | J90: 1240.092
A91: 14 | B91: 2019-03-07 | C91: 40223 | D91: 141853 | E91: JEBEL ALI | F91: AL FUTTAIM | G91: Road base | H91: 78.26 | I91: 8.75 | J91: 684.775
A92: 15 | B92: 2019-03-07 | C92: 40223 | D92: 900718 | E92: DUCON | F92: AL BARRAK | G92: Road base | H92: 71.76 | I92: 21.97 | J92: 1576.5672
A93: 16 | B93: 2019-03-08 | C93: 40223 | D93: 2214861 | E93: Cement Factory | F93: AL RAWASI | G93: Road base | H93: 77.7 | I93: 16.65 | J93: 1293.705
A94: 17 | B94: 2019-03-08 | C94: 40223 | D94: 141960 | E94: MAFRAQ | F94: AL FUTTAIM | G94: Road base | H94: 79.58 | I94: 16 | J94: 1273.28
A95: 18 | B95: 2019-03-09 | C95: 40223 | D95: 142031 | E95: MUSSAFAH | F95: AL FUTTAIM | G95: Road base | H95: 78 | I95: 16.9 | J95: 1318.2
A96: 19 | B96: 2019-03-09 | C96: 40223 | D96: 142108 | E96: AL QUOZ | F96: AL FUTTAIM | G96: Road base | H96: 77.6 | I96: 7.7 | J96: 597.52
A97: 20 | B97: 2019-03-10 | C97: 40223 | D97: 142167 | E97: MUSSAFAH | F97: AL FUTTAIM | G97: Road base | H97: 76.74 | I97: 16.9 | J97: 1296.906
A98: 21 | B98: 2019-03-11 | C98: 40223 | D98: 142303 | E98: MUSSAFAH | F98: AL FUTTAIM | G98: Road base | H98: 81.82 | I98: 16.9 | J98: 1382.758
A99: 22 | B99: 2019-03-11 | C99: 40223 | D99: 142391 | E99: MAHAWI | F99: AL FUTTAIM | G99: Road base | H99: 82.7 | I99: 16.9 | J99: 1397.63
A100: 23 | B100: 2019-03-11 | C100: 40223 | D100: 2215244 | E100: Cement Factory | F100: AL RAWASI | G100: Road base | H100: 75.76 | I100: 16.65 | J100: 1261.404
A101: 24 | B101: 2019-03-11 | C101: 40223 | D101: 2215422 | E101: Cement Factory | F101: AL RAWASI | G101: Road base | H101: 79.66 | I101: 16.65 | J101: 1326.339
A102: 25 | B102: 2019-03-12 | C102: 40223 | D102: 142460 | E102: JEBEL ALI | F102: AL FUTTAIM | G102: Road base | H102: 77.8 | I102: 8.75 | J102: 680.75
A103: 26 | B103: 2019-03-13 | C103: 40223 | D103: 142541 | E103: MUSSAFAH | F103: AL FUTTAIM | G103: Road base | H103: 78.38 | I103: 16.9 | J103: 1324.622
A104: 27 | B104: 2019-03-13 | C104: 40223 | D104: 142599 | E104: AL QUOZ | F104: AL FUTTAIM | G104: Road base | H104: 76.4 | I104: 7.7 | J104: 588.28
A105: 28 | B105: 2019-03-13 | C105: 40223 | D105: 142665 | E105: JEBEL ALI | F105: AL FUTTAIM | G105: Road base | H105: 77.36 | I105: 8.75 | J105: 676.9
A106: 29 | B106: 2019-03-14 | C106: 40223 | D106: 2215674 | E106: Cement Factory | F106: AL RAWASI | G106: Road base | H106: 77.2 | I106: 16.65 | J106: 1285.38
A107: 30 | B107: 2019-03-14 | C107: 40223 | D107: 142793 | E107: MAFRAQ | F107: AL FUTTAIM | G107: Road base | H107: 78.12 | I107: 16 | J107: 1249.92
A108: 31 | B108: 2019-03-15 | C108: 40223 | D108: 142819 | E108: AL QUOZ | F108: AL FUTTAIM | G108: Road base | H108: 77.92 | I108: 7.7 | J108: 599.984
A109: 32 | B109: 2019-03-16 | C109: 40223 | D109: 2216043 | E109: Cement Factory | F109: AL RAWASI | G109: Road base | H109: 82.44 | I109: 16.65 | J109: 1372.626
A110: 33 | B110: 2019-03-16 | C110: 40223 | D110: 142874 | E110: JEBEL ALI | F110: AL FUTTAIM | G110: Road base | H110: 74.86 | I110: 8.75 | J110: 655.025
A111: 34 | B111: 2019-03-16 | C111: 40223 | D111: 142934 | E111: MAFRAQ | F111: AL FUTTAIM | G111: Road base | H111: 78.52 | I111: 16 | J111: 1256.32
A112: 35 | B112: 2019-03-17 | C112: 40223 | D112: 902719 | E112: DUCON | F112: AL BARRAK | G112: Road base | H112: 80.64 | I112: 21.97 | J112: 1771.6608
A113: 36 | B113: 2019-03-18 | C113: 40223 | D113: 2216384 | E113: Cement Factory | F113: AL RAWASI | G113: Road base | H113: 79.8 | I113: 16.65 | J113: 1328.67 | K113: END OF SHEET: 40223
H114: =SUM(H78:H113) -> 2807.24 | J114: =SUM(J78:J113) -> 38306.43 | K114: SUMMATION Of SHEET 40223
A115: 1 | B115: 2019-03-01 | C115: 40224 | D115: 141342 | E115: MUSSAFAH | F115: AL FUTTAIM | G115: Road base | H115: 81.04 | I115: 16.9 | J115: 1369.576 | K115: BEGIN OF SHEET: 40224
A116: 2 | B116: 2019-03-02 | C116: 40224 | D116: 141415 | E116: MAFRAQ | F116: AL FUTTAIM | G116: Road base | H116: 77.92 | I116: 16 | J116: 1246.72
A117: 3 | B117: 2019-03-02 | C117: 40224 | D117: 141381 | E117: AL QUOZ | F117: AL FUTTAIM | G117: Road base | H117: 77 | I117: 7.7 | J117: 592.9
A118: 4 | B118: 2019-03-03 | C118: 40224 | D118: 141528 | E118: MAFRAQ | F118: AL FUTTAIM | G118: Road base | H118: 79.54 | I118: 16 | J118: 1272.64
A119: 5 | B119: 2019-03-03 | C119: 40224 | D119: 899839 | E119: DUCON | F119: AL BARRAK | G119: Road base | H119: 71.48 | I119: 21.97 | J119: 1570.4156
A120: 6 | B120: 2019-03-04 | C120: 40224 | D120: 141643 | E120: MAFRAQ | F120: AL FUTTAIM | G120: Road base | H120: 77.12 | I120: 16 | J120: 1233.92
A121: 7 | B121: 2019-03-04 | C121: 40224 | D121: 141588 | E121: JEBEL ALI | F121: AL FUTTAIM | G121: Road base | H121: 78.24 | I121: 8.75 | J121: 684.6
A122: 8 | B122: 2019-03-05 | C122: 40224 | D122: 141687 | E122: AL QUOZ | F122: AL FUTTAIM | G122: Road base | H122: 74.18 | I122: 7.7 | J122: 571.186
A123: 9 | B123: 2019-03-06 | C123: 40224 | D123: 2214124 | E123: Cement Factory | F123: AL RAWASI | G123: Road base | H123: 83.74 | I123: 16.65 | J123: 1394.271
A124: 10 | B124: 2019-03-06 | C124: 40224 | D124: 2214210 | E124: Cement Factory | F124: AL RAWASI | G124: Road base | H124: 82.82 | I124: 16.65 | J124: 1378.953
A125: 11 | B125: 2019-03-06 | C125: 40224 | D125: 2214281 | E125: Cement Factory | F125: AL RAWASI | G125: Road base | H125: 85 | I125: 16.65 | J125: 1415.25
A126: 12 | B126: 2019-03-07 | C126: 40224 | D126: 2214317 | E126: Cement Factory | F126: AL RAWASI | G126: Road base | H126: 84.46 | I126: 16.65 | J126: 1406.259
A127: 13 | B127: 2019-03-07 | C127: 40224 | D127: 141891 | E127: AL QUOZ | F127: AL FUTTAIM | G127: Road base | H127: 75.3 | I127: 7.7 | J127: 579.81
A128: 14 | B128: 2019-03-07 | C128: 40224 | D128: 141843 | E128: JEBEL ALI | F128: AL FUTTAIM | G128: Road base | H128: 75.58 | I128: 8.75 | J128: 661.325
A129: 15 | B129: 2019-03-08 | C129: 40224 | D129: 2214557 | E129: Cement Factory | F129: AL RAWASI | G129: Road base | H129: 87.64 | I129: 16.65 | J129: 1459.206
A130: 16 | B130: 2019-03-08 | C130: 40224 | D130: 2214765 | E130: Cement Factory | F130: AL RAWASI | G130: Road base | H130: 86.14 | I130: 16.65 | J130: 1434.231
A131: 17 | B131: 2019-03-08 | C131: 40224 | D131: 2214684 | E131: Cement Factory | F131: AL RAWASI | G131: Road base | H131: 82.68 | I131: 16.65 | J131: 1376.622
A132: 18 | B132: 2019-03-08 | C132: 40224 | D132: 141999 | E132: MAFRAQ | F132: AL FUTTAIM | G132: Road base | H132: 78.72 | I132: 16 | J132: 1259.52
A133: 19 | B133: 2019-03-09 | C133: 40224 | D133: 142137 | E133: MUSSAFAH | F133: AL FUTTAIM | G133: Road base | H133: 79.3 | I133: 16.9 | J133: 1340.17
A134: 20 | B134: 2019-03-09 | C134: 40224 | D134: 900991 | E134: DUCON | F134: AL BARRAK | G134: Road base | H134: 70.44 | I134: 21.97 | J134: 1547.5668
A135: 21 | B135: 2019-03-10 | C135: 40224 | D135: 142216 | E135: AL QUOZ | F135: AL FUTTAIM | G135: Road base | H135: 76.06 | I135: 7.7 | J135: 585.662
A136: 22 | B136: 2019-03-11 | C136: 40224 | D136: 2215256 | E136: Cement Factory | F136: AL RAWASI | G136: Road base | H136: 84.88 | I136: 16.65 | J136: 1413.252
A137: 23 | B137: 2019-03-11 | C137: 40224 | D137: 2215406 | E137: Cement Factory | F137: AL RAWASI | G137: Road base | H137: 84.44 | I137: 16.65 | J137: 1405.926
A138: 24 | B138: 2019-03-11 | C138: 40224 | D138: 2215322 | E138: Cement Factory | F138: AL RAWASI | G138: Road base | H138: 82.14 | I138: 16.65 | J138: 1367.631
A139: 25 | B139: 2019-03-12 | C139: 40224 | D139: 2215475 | E139: Cement Factory | F139: AL RAWASI | G139: Road base | H139: 81 | I139: 16.65 | J139: 1348.65
A140: 26 | B140: 2019-03-12 | C140: 40224 | D140: 142498 | E140: MAFRAQ | F140: AL FUTTAIM | G140: Road base | H140: 73.72 | I140: 16 | J140: 1179.52
A141: 27 | B141: 2019-03-12 | C141: 40224 | D141: 142415 | E141: AL QUOZ | F141: AL FUTTAIM | G141: Road base | H141: 75.34 | I141: 7.7 | J141: 580.118
A142: 28 | B142: 2019-03-13 | C142: 40224 | D142: 142643 | E142: JEBEL ALI | F142: AL FUTTAIM | G142: Road base | H142: 79.08 | I142: 8.75 | J142: 691.95
A143: 29 | B143: 2019-03-13 | C143: 40224 | D143: 142572 | E143: AL QUOZ | F143: AL FUTTAIM | G143: Road base | H143: 76.14 | I143: 7.7 | J143: 586.278
A144: 30 | B144: 2019-03-14 | C144: 40224 | D144: 2215682 | E144: Cement Factory | F144: AL RAWASI | G144: Road base | H144: 85.56 | I144: 16.65 | J144: 1424.574
A145: 31 | B145: 2019-03-14 | C145: 40224 | D145: 142708 | E145: AL QUOZ | F145: AL FUTTAIM | G145: Road base | H145: 77.6 | I145: 7.7 | J145: 597.52
A146: 32 | B146: 2019-03-15 | C146: 40224 | D146: 2215752 | E146: Cement Factory | F146: AL RAWASI | G146: Road base | H146: 81.86 | I146: 16.65 | J146: 1362.969
A147: 33 | B147: 2019-03-15 | C147: 40224 | D147: 142807 | E147: AL QUOZ | F147: AL FUTTAIM | G147: Road base | H147: 78.14 | I147: 7.7 | J147: 601.678
A148: 34 | B148: 2019-03-16 | C148: 40224 | D148: 2216005 | E148: Cement Factory | F148: AL RAWASI | G148: Road base | H148: 84.52 | I148: 16.65 | J148: 1407.258
A149: 35 | B149: 2019-03-16 | C149: 40224 | D149: 142871 | E149: JEBEL ALI | F149: AL FUTTAIM | G149: Road base | H149: 79.9 | I149: 8.75 | J149: 699.125
A150: 36 | B150: 2019-03-16 | C150: 40224 | D150: 142923 | E150: MAFRAQ | F150: AL FUTTAIM | G150: Road base | H150: 78.96 | I150: 16 | J150: 1263.36
A151: 37 | B151: 2019-03-17 | C151: 40224 | D151: 902709 | E151: DUCON | F151: AL BARRAK | G151: Road base | H151: 83.66 | I151: 21.97 | J151: 1838.0102
A152: 38 | B152: 2019-03-18 | C152: 40224 | D152: 22163545 | E152: Cement Factory | F152: AL RAWASI | G152: Road base | H152: 77.96 | I152: 16.65 | J152: 1298.034 | K152: END OF SHEET: 40224
H153: =SUM(H115:H152) -> 3029.3 | J153: =SUM(J115:J152) -> 43446.6566 | K153: SUMMATION Of SHEET 40224
A154: 1 | B154: 2019-03-01 | C154: 40225 | D154: 141339 | E154: MUSSAFAH | F154: AL FUTTAIM | G154: Road base | H154: 75.54 | I154: 16.9 | J154: 1276.626 | K154: BEGIN OF SHEET: 40225
A155: 2 | B155: 2019-03-02 | C155: 40225 | D155: 141398 | E155: AL QUOZ | F155: AL FUTTAIM | G155: Road base | H155: 76.18 | I155: 7.7 | J155: 586.586
A156: 3 | B156: 2019-03-03 | C156: 40225 | D156: 141484 | E156: AL QUOZ | F156: AL FUTTAIM | G156: Road base | H156: 73.1 | I156: 7.7 | J156: 562.87
A157: 4 | B157: 2019-03-03 | C157: 40225 | D157: 141442 | E157: MUSSAFAH | F157: AL FUTTAIM | G157: Road base | H157: 80.86 | I157: 16.9 | J157: 1366.534
A158: 5 | B158: 2019-03-04 | C158: 40225 | D158: 141560 | E158: AL QUOZ | F158: AL FUTTAIM | G158: Road base | H158: 75.34 | I158: 7.7 | J158: 580.118
A159: 6 | B159: 2019-03-04 | C159: 40225 | D159: 141545 | E159: JEBEL ALI | F159: AL FUTTAIM | G159: Road base | H159: 79.18 | I159: 8.75 | J159: 692.825
A160: 7 | B160: 2019-03-04 | C160: 40225 | D160: 141612 | E160: JEBEL ALI | F160: AL FUTTAIM | G160: Road base | H160: 75.74 | I160: 8.75 | J160: 662.725
A161: 8 | B161: 2019-03-05 | C161: 40225 | D161: 141695 | E161: AL QUOZ | F161: AL FUTTAIM | G161: Road base | H161: 75.96 | I161: 7.7 | J161: 584.892
A162: 9 | B162: 2019-03-05 | C162: 40225 | D162: 141654 | E162: MAFRAQ | F162: AL FUTTAIM | G162: Road base | H162: 77.66 | I162: 16 | J162: 1242.56
A163: 10 | B163: 2019-03-06 | C163: 40225 | D163: 141745 | E163: MUSSAFAH | F163: AL FUTTAIM | G163: Road base | H163: 77.44 | I163: 16.9 | J163: 1308.736
A164: 11 | B164: 2019-03-06 | C164: 40225 | D164: 141788 | E164: AL QUOZ | F164: AL FUTTAIM | G164: Road base | H164: 76.36 | I164: 7.7 | J164: 587.972
A165: 12 | B165: 2019-03-07 | C165: 40225 | D165: 141838 | E165: MAFRAQ | F165: AL FUTTAIM | G165: Road base | H165: 73.92 | I165: 16 | J165: 1182.72
A166: 13 | B166: 2019-03-07 | C166: 40225 | D166: 141894 | E166: AL QUOZ | F166: AL FUTTAIM | G166: Road base | H166: 74.48 | I166: 7.7 | J166: 573.496
A167: 14 | B167: 2019-03-08 | C167: 40225 | D167: 2214600 | E167: Cement Factory | F167: AL RAWASI | G167: Road base | H167: 88.34 | I167: 16.65 | J167: 1470.861
A168: 15 | B168: 2019-03-08 | C168: 40225 | D168: 141956 | E168: MAFRAQ | F168: AL FUTTAIM | G168: Road base | H168: 78.5 | I168: 16 | J168: 1256
A169: 16 | B169: 2019-03-09 | C169: 40225 | D169: 2214868 | E169: Cement Factory | F169: AL RAWASI | G169: Road base | H169: 78.48 | I169: 16.65 | J169: 1306.692
A170: 17 | B170: 2019-03-09 | C170: 40225 | D170: 142034 | E170: MUSSAFAH | F170: AL FUTTAIM | G170: Road base | H170: 79.5 | I170: 16.9 | J170: 1343.55
A171: 18 | B171: 2019-03-09 | C171: 40225 | D171: 142090 | E171: AL QUOZ | F171: AL FUTTAIM | G171: Road base | H171: 78.04 | I171: 7.7 | J171: 600.908
A172: 19 | B172: 2019-03-10 | C172: 40225 | D172: 2215216 | E172: Cement Factory | F172: AL RAWASI | G172: Road base | H172: 78.08 | I172: 16.65 | J172: 1300.032
A173: 20 | B173: 2019-03-10 | C173: 40225 | D173: 142166 | E173: MUSSAFAH | F173: AL FUTTAIM | G173: Road base | H173: 75.14 | I173: 16.9 | J173: 1269.866
A174: 21 | B174: 2019-03-10 | C174: 40225 | D174: 142269 | E174: MUSSAFAH | F174: AL FUTTAIM | G174: Road base | H174: 76.28 | I174: 16.9 | J174: 1289.132
A175: 22 | B175: 2019-03-11 | C175: 40225 | D175: 901356 | E175: DUCON | F175: AL BARRAK | G175: Road base | H175: 73.9 | I175: 21.97 | J175: 1623.583
A176: 23 | B176: 2019-03-12 | C176: 40225 | D176: 2215472 | E176: Cement Factory | F176: AL RAWASI | G176: Road base | H176: 81.2 | I176: 16.65 | J176: 1351.98
A177: 24 | B177: 2019-03-12 | C177: 40225 | D177: 142473 | E177: AL QUOZ | F177: AL FUTTAIM | G177: Road base | H177: 78.9 | I177: 7.7 | J177: 607.53
A178: 25 | B178: 2019-03-13 | C178: 40225 | D178: 142629 | E178: AL QUOZ | F178: AL FUTTAIM | G178: Road base | H178: 76.6 | I178: 7.7 | J178: 589.82
A179: 26 | B179: 2019-03-13 | C179: 40225 | D179: 142539 | E179: MUSSAFAH | F179: AL FUTTAIM | G179: Road base | H179: 78.48 | I179: 16.9 | J179: 1326.312
A180: 27 | B180: 2019-03-14 | C180: 40225 | D180: 2215690 | E180: Cement Factory | F180: AL RAWASI | G180: Road base | H180: 85.84 | I180: 16.65 | J180: 1429.236
A181: 28 | B181: 2019-03-14 | C181: 40225 | D181: 142717 | E181: AL QUOZ | F181: AL FUTTAIM | G181: Road base | H181: 76.3 | I181: 7.7 | J181: 587.51
A182: 29 | B182: 2019-03-15 | C182: 40225 | D182: 142817 | E182: AL QUOZ | F182: AL FUTTAIM | G182: Road base | H182: 77.86 | I182: 7.7 | J182: 599.522
A183: 30 | B183: 2019-03-15 | C183: 40225 | D183: 142802 | E183: MAFRAQ | F183: AL FUTTAIM | G183: Road base | H183: 80.8 | I183: 16 | J183: 1292.8
A184: 31 | B184: 2019-03-16 | C184: 40225 | D184: 2216038 | E184: Cement Factory | F184: AL RAWASI | G184: Road base | H184: 87.08 | I184: 16.65 | J184: 1449.882
A185: 32 | B185: 2019-03-16 | C185: 40225 | D185: 142876 | E185: JEBEL ALI | F185: AL FUTTAIM | G185: Road base | H185: 75.9 | I185: 8.75 | J185: 664.125 | K185: END OF SHEET: 40225
H186: =SUM(H154:H185) -> 2496.98 | J186: =SUM(J154:J185) -> 32568.001 | K186: SUMMATION Of SHEET 40225
A187: 1 | B187: 2019-03-01 | C187: 40109 | D187: 141338 | E187: MUSSAFAH | F187: AL FUTTAIM | G187: Road base | H187: 79.32 | I187: 16.9 | J187: 1340.508 | K187: BEGIN OF SHEET: 40109
A188: 2 | B188: 2019-03-02 | C188: 40109 | D188: 141384 | E188: AL QUOZ | F188: AL FUTTAIM | G188: Road base | H188: 76.32 | I188: 7.7 | J188: 587.664
A189: 3 | B189: 2019-03-02 | C189: 40109 | D189: 141431 | E189: MAFRAQ | F189: AL FUTTAIM | G189: Road base | H189: 77.42 | I189: 16 | J189: 1238.72
A190: 4 | B190: 2019-03-03 | C190: 40109 | D190: 141451 | E190: AL QUOZ | F190: AL FUTTAIM | G190: Road base | H190: 77.5 | I190: 7.7 | J190: 596.75
A191: 5 | B191: 2019-03-03 | C191: 40109 | D191: 141496 | E191: JEBEL ALI | F191: AL FUTTAIM | G191: Road base | H191: 78.78 | I191: 8.75 | J191: 689.325
A192: 6 | B192: 2019-03-04 | C192: 40109 | D192: 141561 | E192: AL QUOZ | F192: AL FUTTAIM | G192: Road base | H192: 76.12 | I192: 7.7 | J192: 586.124
A193: 7 | B193: 2019-03-04 | C193: 40109 | D193: 141604 | E193: JEBEL ALI | F193: AL FUTTAIM | G193: Road base | H193: 76.86 | I193: 8.75 | J193: 672.525
A194: 8 | B194: 2019-03-05 | C194: 40109 | D194: 141738 | E194: MUSSAFAH | F194: AL FUTTAIM | G194: Road base | H194: 77.22 | I194: 16.9 | J194: 1305.018
A195: 9 | B195: 2019-03-05 | C195: 40109 | D195: 141696 | E195: AL QUOZ | F195: AL FUTTAIM | G195: Road base | H195: 76.28 | I195: 7.7 | J195: 587.356
A196: 10 | B196: 2019-03-05 | C196: 40109 | D196: 141653 | E196: MAFRAQ | F196: AL FUTTAIM | G196: Road base | H196: 78.32 | I196: 16 | J196: 1253.12
A197: 11 | B197: 2019-03-06 | C197: 40109 | D197: 141784 | E197: AL QUOZ | F197: AL FUTTAIM | G197: Road base | H197: 77.32 | I197: 7.7 | J197: 595.364
A198: 12 | B198: 2019-03-07 | C198: 40109 | D198: 2214334 | E198: Cement Factory | F198: AL NAKHEEL | G198: Road base | H198: 76.86 | I198: 16.65 | J198: 1279.719
A199: 13 | B199: 2019-03-07 | C199: 40109 | D199: 2214447 | E199: Cement Factory | F199: AL RAWASI | G199: Road base | H199: 74.78 | I199: 16.65 | J199: 1245.087
A200: 14 | B200: 2019-03-07 | C200: 40109 | D200: 141851 | E200: JEBEL ALI | F200: AL FUTTAIM | G200: Road base | H200: 79.76 | I200: 8.75 | J200: 697.9
... 179 more rows

Sheet Sheet5
